Body_Code,Body_Name,Service,GL Code,GL Code Desc,Posting Date,Doc Number,Doc Net Amount,Supplier Name
http://statistics.data.gov.uk/id/local-authority/38,Oxfordshire County Council,MEADOWBROOK TRANSPT,4330,Transport to School Activities,30/05/2017,3110230025,580,001 Alpha Cars Ltd
http://statistics.data.gov.uk/id/local-authority/38,Oxfordshire County Council,SEN TRANSPORT,4330,Transport to School Activities,30/05/2017,3110230005,608,001 Alpha Cars Ltd
http://statistics.data.gov.uk/id/local-authority/38,Oxfordshire County Council,TRANSPORT COSTS,4330,Transport to School Activities,11/05/2017,3110224739,619,001 Alpha Cars Ltd
http://statistics.data.gov.uk/id/local-authority/38,Oxfordshire County Council,SEN TRANSPORT,4330,Transport to School Activities,30/05/2017,3110230018,671.22,001 Alpha Cars Ltd
http://statistics.data.gov.uk/id/local-authority/38,Oxfordshire County Council,SEN TRANSPORT,4330,Transport to School Activities,30/05/2017,3110230023,720,001 Alpha Cars Ltd
http://statistics.data.gov.uk/id/local-authority/38,Oxfordshire County Council,Care Packages & Placements- LD - OCC,5227,Other Transport Arrangements,11/05/2017,3110224736,758.54,001 Alpha Cars Ltd
http://statistics.data.gov.uk/id/local-authority/38,Oxfordshire County Council,MEADOWBROOK TRANSPT,4330,Transport to School Activities,30/05/2017,3110230015,935,001 Alpha Cars Ltd
http://statistics.data.gov.uk/id/local-authority/38,Oxfordshire County Council,SEN TRANSPORT,4330,Transport to School Activities,30/05/2017,3110230010,990,001 Alpha Cars Ltd
http://statistics.data.gov.uk/id/local-authority/38,Oxfordshire County Council,SEN TRANSPORT,4330,Transport to School Activities,30/05/2017,3110230003,"1,440.00",001 Alpha Cars Ltd
http://statistics.data.gov.uk/id/local-authority/38,Oxfordshire County Council,CSB - DIDCOT,5689,,31/05/2017,3110231026,592.76,1 to 1 Care
http://statistics.data.gov.uk/id/local-authority/38,Oxfordshire County Council,Care Packages & Placements- Older People,5689,,31/05/2017,3110231039,719.26,1 to 1 Care
http://statistics.data.gov.uk/id/local-authority/38,Oxfordshire County Council,Care Packages & Placements- Older People,5689,,03/05/2017,3110221492,723.82,1 to 1 Care
http://statistics.data.gov.uk/id/local-authority/38,Oxfordshire County Council,CSB - DIDCOT,5689,,03/05/2017,3110221486,854.38,1 to 1 Care
http://statistics.data.gov.uk/id/local-authority/38,Oxfordshire County Council,CSB - DIDCOT,5689,,03/05/2017,3110221488,912.04,1 to 1 Care
http://statistics.data.gov.uk/id/local-authority/38,Oxfordshire County Council,CSB - DIDCOT,5689,,31/05/2017,3110231035,915.39,1 to 1 Care
http://statistics.data.gov.uk/id/local-authority/38,Oxfordshire County Council,CSB - DIDCOT,5689,,31/05/2017,3110231028,987.28,1 to 1 Care
http://statistics.data.gov.uk/id/local-authority/38,Oxfordshire County Council,CSB - DIDCOT,5689,,03/05/2017,3110221481,"1,004.88",1 to 1 Care
http://statistics.data.gov.uk/id/local-authority/38,Oxfordshire County Council,CSB - CITY,5689,,03/05/2017,3110221477,"1,016.61",1 to 1 Care
http://statistics.data.gov.uk/id/local-authority/38,Oxfordshire County Council,CSB - CITY,5689,,31/05/2017,3110231024,"1,037.55",1 to 1 Care
http://statistics.data.gov.uk/id/local-authority/38,Oxfordshire County Council,CSB - DIDCOT,5689,,31/05/2017,3110231032,"1,084.02",1 to 1 Care
http://statistics.data.gov.uk/id/local-authority/38,Oxfordshire County Council,CSB - DIDCOT,5689,,03/05/2017,3110221485,"1,110.95",1 to 1 Care
http://statistics.data.gov.uk/id/local-authority/38,Oxfordshire County Council,CSB - DIDCOT,5689,,31/05/2017,3110231033,"1,125.84",1 to 1 Care
http://statistics.data.gov.uk/id/local-authority/38,Oxfordshire County Council,CSB - DIDCOT,5689,,03/05/2017,3110221483,"1,153.42",1 to 1 Care
http://statistics.data.gov.uk/id/local-authority/38,Oxfordshire County Council,CSB - ABINGDON,5689,,31/05/2017,3110231036,"1,298.02",1 to 1 Care
http://statistics.data.gov.uk/id/local-authority/38,Oxfordshire County Council,CSB - DIDCOT,5689,,31/05/2017,3110231034,"1,464.24",1 to 1 Care
http://statistics.data.gov.uk/id/local-authority/38,Oxfordshire County Council,CSB - DIDCOT,5689,,31/05/2017,3110231030,"1,507.41",1 to 1 Care
http://statistics.data.gov.uk/id/local-authority/38,Oxfordshire County Council,Care Packages & Placements- Older People,5689,,31/05/2017,3110231042,"1,602.09",1 to 1 Care
http://statistics.data.gov.uk/id/local-authority/38,Oxfordshire County Council,CSB - DIDCOT,5689,,03/05/2017,3110221487,"1,622.88",1 to 1 Care
http://statistics.data.gov.uk/id/local-authority/38,Oxfordshire County Council,Care Packages & Placements- Older People,5689,,03/05/2017,3110221495,"1,658.01",1 to 1 Care
http://statistics.data.gov.uk/id/local-authority/38,Oxfordshire County Council,LD CLIENTS SOUTH,5689,,31/05/2017,3110231038,"1,825.20",1 to 1 Care
http://statistics.data.gov.uk/id/local-authority/38,Oxfordshire County Council,Care Packages & Placements- Older People,5689,,03/05/2017,3110221494,"1,925.67",1 to 1 Care
http://statistics.data.gov.uk/id/local-authority/38,Oxfordshire County Council,Care Packages & Placements- Older People,5689,,31/05/2017,3110231041,"1,936.40",1 to 1 Care
http://statistics.data.gov.uk/id/local-authority/38,Oxfordshire County Council,LD CLIENTS SOUTH,5689,,03/05/2017,3110221491,"1,939.48",1 to 1 Care
http://statistics.data.gov.uk/id/local-authority/38,Oxfordshire County Council,Care Packages & Placements- Older People,5689,,03/05/2017,3110221493,"1,990.22",1 to 1 Care
http://statistics.data.gov.uk/id/local-authority/38,Oxfordshire County Council,Care Packages & Placements- Older People,5689,,31/05/2017,3110231040,"2,031.33",1 to 1 Care
http://statistics.data.gov.uk/id/local-authority/38,Oxfordshire County Council,CSB - ABINGDON,5689,,03/05/2017,3110221489,"2,488.01",1 to 1 Care
http://statistics.data.gov.uk/id/local-authority/38,Oxfordshire County Council,CSB - CITY,5689,,31/05/2017,3110231025,"2,520.18",1 to 1 Care
http://statistics.data.gov.uk/id/local-authority/38,Oxfordshire County Council,CSB - CITY,5689,,03/05/2017,3110221478,"2,569.26",1 to 1 Care
http://statistics.data.gov.uk/id/local-authority/38,Oxfordshire County Council,CSB - CITY,5689,,24/05/2017,3110229625,508.25,1st Homecare (Oxford) Ltd
http://statistics.data.gov.uk/id/local-authority/38,Oxfordshire County Council,Care Packages & Placements- Older People,5693,,24/05/2017,3110229611,517.06,1st Homecare (Oxford) Ltd
http://statistics.data.gov.uk/id/local-authority/38,Oxfordshire County Council,Care Packages & Placements- Older People,5688,,11/05/2017,3110224041,532,1st Homecare (Oxford) Ltd
http://statistics.data.gov.uk/id/local-authority/38,Oxfordshire County Council,Care Packages & Placements- Older People,5688,,24/05/2017,3110229615,532,1st Homecare (Oxford) Ltd
http://statistics.data.gov.uk/id/local-authority/38,Oxfordshire County Council,PD COMM SUPP - CITY,5689,,24/05/2017,3110229614,555.64,1st Homecare (Oxford) Ltd
http://statistics.data.gov.uk/id/local-authority/38,Oxfordshire County Council,PD COMM SUPP - CITY,5689,,04/05/2017,3110222580,575.59,1st Homecare (Oxford) Ltd
http://statistics.data.gov.uk/id/local-authority/38,Oxfordshire County Council,LD CLIENTS CITY,5688,,24/05/2017,3110229619,608,1st Homecare (Oxford) Ltd
http://statistics.data.gov.uk/id/local-authority/38,Oxfordshire County Council,LD CLIENTS CITY,5688,,11/05/2017,3110224049,636.5,1st Homecare (Oxford) Ltd
http://statistics.data.gov.uk/id/local-authority/38,Oxfordshire County Council,CSB - CITY,5688,,11/05/2017,3110224045,717.25,1st Homecare (Oxford) Ltd
http://statistics.data.gov.uk/id/local-authority/38,Oxfordshire County Council,CSB - CITY,5688,,24/05/2017,3110229617,745.75,1st Homecare (Oxford) Ltd
http://statistics.data.gov.uk/id/local-authority/38,Oxfordshire County Council,CSB - CITY,5688,,11/05/2017,3110224043,783.75,1st Homecare (Oxford) Ltd
http://statistics.data.gov.uk/id/local-authority/38,Oxfordshire County Council,LD CLIENTS CITY,5688,,11/05/2017,3110224055,786.22,1st Homecare (Oxford) Ltd
http://statistics.data.gov.uk/id/local-authority/38,Oxfordshire County Council,LD CLIENTS CITY,5688,,24/05/2017,3110229621,795.53,1st Homecare (Oxford) Ltd
http://statistics.data.gov.uk/id/local-authority/38,Oxfordshire County Council,CSB - CITY,5688,,24/05/2017,3110229616,798,1st Homecare (Oxford) Ltd
http://statistics.data.gov.uk/id/local-authority/38,Oxfordshire County Council,CSB - CITY,5688,,11/05/2017,3110224058,"1,121.00",1st Homecare (Oxford) Ltd
http://statistics.data.gov.uk/id/local-authority/38,Oxfordshire County Council,CSB - CITY,5688,,24/05/2017,3110229623,"1,149.50",1st Homecare (Oxford) Ltd
http://statistics.data.gov.uk/id/local-authority/38,Oxfordshire County Council,MH COMMUNITY SUP'T,5688,,11/05/2017,3110224047,"1,391.75",1st Homecare (Oxford) Ltd
http://statistics.data.gov.uk/id/local-authority/38,Oxfordshire County Council,MH COMMUNITY SUP'T,5688,,24/05/2017,3110229618,"1,500.62",1st Homecare (Oxford) Ltd
http://statistics.data.gov.uk/id/local-authority/38,Oxfordshire County Council,CSB - CITY,5688,,11/05/2017,3110224056,"2,346.50",1st Homecare (Oxford) Ltd
http://statistics.data.gov.uk/id/local-authority/38,Oxfordshire County Council,CSB - CITY,5688,,24/05/2017,3110229622,"2,441.50",1st Homecare (Oxford) Ltd
http://statistics.data.gov.uk/id/local-authority/38,Oxfordshire County Council,LD CLIENTS NORTH,5689,,18/05/2017,3110227580,"3,716.84",1st Homecare (Oxford) Ltd
http://statistics.data.gov.uk/id/local-authority/38,Oxfordshire County Council,CHC - CARE HOME PLAC,5691,,15/05/2017,2200351913,"11,865.16",1st Homecare (Oxford) Ltd
http://statistics.data.gov.uk/id/local-authority/38,Oxfordshire County Council,ECH NICHOLSON HOUSE,5688,,11/05/2017,3110223919,"19,199.06",1st Homecare (Oxford) Ltd
http://statistics.data.gov.uk/id/local-authority/38,Oxfordshire County Council,MAINSTREAM-PRIMARY,4330,Transport to School Activities,22/05/2017,3110227959,540,1St Taxis
http://statistics.data.gov.uk/id/local-authority/38,Oxfordshire County Council,MAINSTREAM-SECONDARY,4330,Transport to School Activities,22/05/2017,3110227960,700,1St Taxis
http://statistics.data.gov.uk/id/local-authority/38,Oxfordshire County Council,SEN TRANSPORT,4330,Transport to School Activities,22/05/2017,3110227957,720,1St Taxis
http://statistics.data.gov.uk/id/local-authority/38,Oxfordshire County Council,SEN TRANSPORT,4330,Transport to School Activities,22/05/2017,3110227962,742.5,1St Taxis
http://statistics.data.gov.uk/id/local-authority/38,Oxfordshire County Council,MH SPOT FUNDING,5686,,11/05/2017,3110224026,"25,800.87",2 Care
http://statistics.data.gov.uk/id/local-authority/38,Oxfordshire County Council,CONTRACEPTION,4933,,04/05/2017,3110223828,772.5,27 Beaumont Street
http://statistics.data.gov.uk/id/local-authority/38,Oxfordshire County Council,NHS HEALTHCHECK PROG,4933,,10/05/2017,3110224549,773,27 Beaumont Street
http://statistics.data.gov.uk/id/local-authority/38,Oxfordshire County Council,GP Services,4933,,02/05/2017,3110230058,845,27 Beaumont Street
http://statistics.data.gov.uk/id/local-authority/38,Oxfordshire County Council,STI TESTING+TREATMEN,4933,,16/05/2017,3110227372,892,27 Beaumont Street
http://statistics.data.gov.uk/id/local-authority/38,Oxfordshire County Council,NHS HEALTHCHECK PROG,4933,,10/05/2017,3110224580,529,28 Beaumont Street
http://statistics.data.gov.uk/id/local-authority/38,Oxfordshire County Council,North FSS Statutory - Banbury,2040,Agency Staff,03/05/2017,2200346310,808.43,3D Recruit Ltd
http://statistics.data.gov.uk/id/local-authority/38,Oxfordshire County Council,South Integrated Locality Team,2040,Agency Staff,12/05/2017,2200351578,905.31,3D Recruit Ltd
http://statistics.data.gov.uk/id/local-authority/38,Oxfordshire County Council,Hospital Social Work Team North,2040,Agency Staff,02/05/2017,2200345165,989.14,3D Recruit Ltd
http://statistics.data.gov.uk/id/local-authority/38,Oxfordshire County Council,Hospital Social Work Team North,2040,Agency Staff,02/05/2017,2200345160,"1,005.90",3D Recruit Ltd
http://statistics.data.gov.uk/id/local-authority/38,Oxfordshire County Council,Hospital Social Work Team North,2040,Agency Staff,12/05/2017,2200351155,"1,005.90",3D Recruit Ltd
http://statistics.data.gov.uk/id/local-authority/38,Oxfordshire County Council,Rapid Response Reablement Outreach Team,2040,Agency Staff,09/05/2017,2200348565,"1,021.20",3D Recruit Ltd
http://statistics.data.gov.uk/id/local-authority/38,Oxfordshire County Council,ADULT PROTECTION,2040,Agency Staff,10/05/2017,2200349835,"1,034.82",3D Recruit Ltd
http://statistics.data.gov.uk/id/local-authority/38,Oxfordshire County Council,Delayed Patient Care Beds,2040,Agency Staff,12/05/2017,2200351588,"1,055.63",3D Recruit Ltd
http://statistics.data.gov.uk/id/local-authority/38,Oxfordshire County Council,KINGFISHER,2040,Agency Staff,02/05/2017,2200345313,"1,087.35",3D Recruit Ltd
http://statistics.data.gov.uk/id/local-authority/38,Oxfordshire County Council,North Rapid Response,2040,Agency Staff,02/05/2017,2200345120,"1,088.20",3D Recruit Ltd
http://statistics.data.gov.uk/id/local-authority/38,Oxfordshire County Council,KINGFISHER,2040,Agency Staff,02/05/2017,2200345310,"1,095.90",3D Recruit Ltd
http://statistics.data.gov.uk/id/local-authority/38,Oxfordshire County Council,Rapid Response Reablement Outreach Team,2040,Agency Staff,12/05/2017,2200351165,"1,106.49",3D Recruit Ltd
http://statistics.data.gov.uk/id/local-authority/38,Oxfordshire County Council,ASSESSMENT TEAM NORT,2040,Agency Staff,02/05/2017,2200344871,"1,113.83",3D Recruit Ltd
http://statistics.data.gov.uk/id/local-authority/38,Oxfordshire County Council,North FSS Statutory - Witney,2040,Agency Staff,16/05/2017,2200352836,"1,121.10",3D Recruit Ltd
http://statistics.data.gov.uk/id/local-authority/38,Oxfordshire County Council,South Integrated Locality Team,2040,Agency Staff,12/05/2017,2200351595,"1,122.44",3D Recruit Ltd
http://statistics.data.gov.uk/id/local-authority/38,Oxfordshire County Council,Delayed Patient Care Beds,2040,Agency Staff,02/05/2017,2200345146,"1,140.02",3D Recruit Ltd
http://statistics.data.gov.uk/id/local-authority/38,Oxfordshire County Council,City Rapid Respose Team,2040,Agency Staff,03/05/2017,2200346347,"1,140.02",3D Recruit Ltd
http://statistics.data.gov.uk/id/local-authority/38,Oxfordshire County Council,South FSS Statutory - Didcot,2040,Agency Staff,23/05/2017,2200356062,"1,145.89",3D Recruit Ltd
http://statistics.data.gov.uk/id/local-authority/38,Oxfordshire County Council,Hospital Social Work Team North,2040,Agency Staff,23/05/2017,2200356373,"1,156.79",3D Recruit Ltd
http://statistics.data.gov.uk/id/local-authority/38,Oxfordshire County Council,South Integrated Locality Team,2040,Agency Staff,12/05/2017,2200351575,"1,158.16",3D Recruit Ltd
http://statistics.data.gov.uk/id/local-authority/38,Oxfordshire County Council,ASSESSMENT TEAM NORT,2040,Agency Staff,02/05/2017,2200344848,"1,179.98",3D Recruit Ltd
http://statistics.data.gov.uk/id/local-authority/38,Oxfordshire County Council,North FSS Statutory - Witney,2040,Agency Staff,03/05/2017,2200346344,"1,193.19",3D Recruit Ltd
http://statistics.data.gov.uk/id/local-authority/38,Oxfordshire County Council,South Integrated Locality Team,2040,Agency Staff,24/05/2017,2200356555,"1,203.37",3D Recruit Ltd
http://statistics.data.gov.uk/id/local-authority/38,Oxfordshire County Council,South Integrated Locality Team,2040,Agency Staff,12/05/2017,2200351592,"1,207.08",3D Recruit Ltd
http://statistics.data.gov.uk/id/local-authority/38,Oxfordshire County Council,Hospital Social Work Team North,2040,Agency Staff,08/05/2017,2200347955,"1,240.61",3D Recruit Ltd
http://statistics.data.gov.uk/id/local-authority/38,Oxfordshire County Council,Delayed Patient Care Beds,2040,Agency Staff,23/05/2017,2200356181,"1,240.61",3D Recruit Ltd
http://statistics.data.gov.uk/id/local-authority/38,Oxfordshire County Council,Hospital Social Work Team North,2040,Agency Staff,26/05/2017,2200357966,"1,240.61",3D Recruit Ltd
http://statistics.data.gov.uk/id/local-authority/38,Oxfordshire County Council,Delayed Patient Care Beds,2040,Agency Staff,26/05/2017,2200358096,"1,240.61",3D Recruit Ltd
http://statistics.data.gov.uk/id/local-authority/38,Oxfordshire County Council,North Rapid Response,2040,Agency Staff,16/05/2017,2200352675,"1,241.57",3D Recruit Ltd
http://statistics.data.gov.uk/id/local-authority/38,Oxfordshire County Council,North Rapid Response,2040,Agency Staff,08/05/2017,2200347995,"1,242.60",3D Recruit Ltd
http://statistics.data.gov.uk/id/local-authority/38,Oxfordshire County Council,North FSS Statutory - Witney,2040,Agency Staff,03/05/2017,2200346345,"1,257.58",3D Recruit Ltd
http://statistics.data.gov.uk/id/local-authority/38,Oxfordshire County Council,Delayed Patient Care Beds,2040,Agency Staff,08/05/2017,2200347984,"1,273.91",3D Recruit Ltd
http://statistics.data.gov.uk/id/local-authority/38,Oxfordshire County Council,Rapid Response Reablement Outreach Team,2040,Agency Staff,26/05/2017,2200358086,"1,282.01",3D Recruit Ltd
http://statistics.data.gov.uk/id/local-authority/38,Oxfordshire County Council,Rapid Response Reablement Outreach Team,2040,Agency Staff,23/05/2017,2200356177,"1,288.31",3D Recruit Ltd
http://statistics.data.gov.uk/id/local-authority/38,Oxfordshire County Council,ASSESSMENT TEAM NORT,2040,Agency Staff,12/05/2017,2200351283,"1,329.41",3D Recruit Ltd
http://statistics.data.gov.uk/id/local-authority/38,Oxfordshire County Council,North FSS Statutory - Witney,2040,Agency Staff,17/05/2017,2200353473,"1,329.41",3D Recruit Ltd
http://statistics.data.gov.uk/id/local-authority/38,Oxfordshire County Council,KINGFISHER,2040,Agency Staff,02/05/2017,2200345312,"1,366.31",3D Recruit Ltd
http://statistics.data.gov.uk/id/local-authority/38,Oxfordshire County Council,ASSESSMENT TEAM NORT,2040,Agency Staff,12/05/2017,2200351285,"1,370.81",3D Recruit Ltd
http://statistics.data.gov.uk/id/local-authority/38,Oxfordshire County Council,South FSS Statutory - Didcot,2040,Agency Staff,24/05/2017,2200356464,"1,418.96",3D Recruit Ltd
http://statistics.data.gov.uk/id/local-authority/38,Oxfordshire County Council,South FSS Statutory - Didcot,2040,Agency Staff,30/05/2017,2200358560,"1,426.16",3D Recruit Ltd
http://statistics.data.gov.uk/id/local-authority/38,Oxfordshire County Council,SM QUALITY ASSURANCE,2040,Agency Staff,09/05/2017,2200348575,"1,447.80",3D Recruit Ltd
http://statistics.data.gov.uk/id/local-authority/38,Oxfordshire County Council,ADULT PROTECTION,2040,Agency Staff,24/05/2017,2200356552,"1,494.74",3D Recruit Ltd
http://statistics.data.gov.uk/id/local-authority/38,Oxfordshire County Council,ADULT PROTECTION,2040,Agency Staff,12/05/2017,2200351590,"1,580.98",3D Recruit Ltd
http://statistics.data.gov.uk/id/local-authority/38,Oxfordshire County Council,South Integrated Locality Team,2040,Agency Staff,12/05/2017,2200351572,"1,719.86",3D Recruit Ltd
http://statistics.data.gov.uk/id/local-authority/38,Oxfordshire County Council,ADULT PROTECTION,2040,Agency Staff,12/05/2017,2200351548,"1,753.45",3D Recruit Ltd
http://statistics.data.gov.uk/id/local-authority/38,Oxfordshire County Council,ADULT PROTECTION,2040,Agency Staff,30/05/2017,2200358510,"1,854.05",3D Recruit Ltd
http://statistics.data.gov.uk/id/local-authority/38,Oxfordshire County Council,LEGAL SERVICES,5251,Legal Costs,26/05/2017,2200358272,"12,070.00",A Leong
http://statistics.data.gov.uk/id/local-authority/38,Oxfordshire County Council,FOSTERING MAIN,5542,B*Payments to carers,24/05/2017,3110229462,"1,039.14",Redacted Personal Data
http://statistics.data.gov.uk/id/local-authority/38,Oxfordshire County Council,FOSTERING MAIN,5542,B*Payments to carers,03/05/2017,3110221858,"1,077.56",Redacted Personal Data
http://statistics.data.gov.uk/id/local-authority/38,Oxfordshire County Council,FOSTERING MAIN,5542,B*Payments to carers,10/05/2017,3110223666,"1,077.56",Redacted Personal Data
http://statistics.data.gov.uk/id/local-authority/38,Oxfordshire County Council,FOSTERING MAIN,5542,B*Payments to carers,17/05/2017,3110225572,"1,077.56",Redacted Personal Data
http://statistics.data.gov.uk/id/local-authority/38,Oxfordshire County Council,FOSTERING MAIN,5542,B*Payments to carers,31/05/2017,3110230464,"1,077.56",Redacted Personal Data
http://statistics.data.gov.uk/id/local-authority/38,Oxfordshire County Council,FOSTERING MAIN,5549,B*Fostering Allowance - Regulation 38,03/05/2017,3110221888,572.96,Redacted Personal Data
http://statistics.data.gov.uk/id/local-authority/38,Oxfordshire County Council,FOSTERING MAIN,5549,B*Fostering Allowance - Regulation 38,10/05/2017,3110223682,572.96,Redacted Personal Data
http://statistics.data.gov.uk/id/local-authority/38,Oxfordshire County Council,FOSTERING MAIN,5549,B*Fostering Allowance - Regulation 38,17/05/2017,3110225588,572.96,Redacted Personal Data
http://statistics.data.gov.uk/id/local-authority/38,Oxfordshire County Council,FOSTERING MAIN,5549,B*Fostering Allowance - Regulation 38,24/05/2017,3110229490,572.96,Redacted Personal Data
http://statistics.data.gov.uk/id/local-authority/38,Oxfordshire County Council,FOSTERING MAIN,5549,B*Fostering Allowance - Regulation 38,31/05/2017,3110230480,572.96,Redacted Personal Data
http://statistics.data.gov.uk/id/local-authority/38,Oxfordshire County Council,OPPB FAST TRACK,5687,,11/05/2017,3110224145,"83,681.69",Abbey Crest Nursing Home
http://statistics.data.gov.uk/id/local-authority/38,Oxfordshire County Council,SEN DELEGATION,5537,Payments to Other Establishments,18/05/2017,3110227455,"13,334.90",Abbey Woods Academy
http://statistics.data.gov.uk/id/local-authority/38,Oxfordshire County Council,Care Packages & Placements- Older People,5688,,11/05/2017,3110224456,"1,372.86",Abbeyfield London Polish Society
http://statistics.data.gov.uk/id/local-authority/38,Oxfordshire County Council,SEN TRANSPORT,5227,Other Transport Arrangements,03/05/2017,3110222701,690,ABC Travel
http://statistics.data.gov.uk/id/local-authority/38,Oxfordshire County Council,SEN TRANSPORT,4330,Transport to School Activities,03/05/2017,3110222698,"1,472.00",ABC Travel
http://statistics.data.gov.uk/id/local-authority/38,Oxfordshire County Council,Care Packages & Placements- Older People,5689,,31/05/2017,3110231525,502.6,Abicare Services Ltd (Homecare)
http://statistics.data.gov.uk/id/local-authority/38,Oxfordshire County Council,Care Packages & Placements- Older People,5689,,03/05/2017,3110222229,503.66,Abicare Services Ltd (Homecare)
http://statistics.data.gov.uk/id/local-authority/38,Oxfordshire County Council,CSB - BANBURY,5689,,03/05/2017,3110222204,506.49,Abicare Services Ltd (Homecare)
http://statistics.data.gov.uk/id/local-authority/38,Oxfordshire County Council,PD COMM SUPP BANB,5689,,31/05/2017,3110231529,523.14,Abicare Services Ltd (Homecare)
http://statistics.data.gov.uk/id/local-authority/38,Oxfordshire County Council,CSB - BANBURY,5689,,31/05/2017,3110231511,527.23,Abicare Services Ltd (Homecare)
http://statistics.data.gov.uk/id/local-authority/38,Oxfordshire County Council,CSB - BANBURY,5689,,31/05/2017,3110231508,530.06,Abicare Services Ltd (Homecare)
http://statistics.data.gov.uk/id/local-authority/38,Oxfordshire County Council,CSB - BANBURY,5689,,03/05/2017,3110222214,541.36,Abicare Services Ltd (Homecare)
http://statistics.data.gov.uk/id/local-authority/38,Oxfordshire County Council,CSB - BANBURY,5689,,03/05/2017,3110222202,542.93,Abicare Services Ltd (Homecare)
http://statistics.data.gov.uk/id/local-authority/38,Oxfordshire County Council,CSB - BANBURY,5689,,03/05/2017,3110222206,546.08,Abicare Services Ltd (Homecare)
http://statistics.data.gov.uk/id/local-authority/38,Oxfordshire County Council,Care Packages & Placements- Older People,5689,,03/05/2017,3110222216,549.72,Abicare Services Ltd (Homecare)
http://statistics.data.gov.uk/id/local-authority/38,Oxfordshire County Council,CSB - BANBURY,5689,,31/05/2017,3110231501,554.25,Abicare Services Ltd (Homecare)
http://statistics.data.gov.uk/id/local-authority/38,Oxfordshire County Council,CSB - BANBURY,5689,,31/05/2017,3110231499,561.16,Abicare Services Ltd (Homecare)
http://statistics.data.gov.uk/id/local-authority/38,Oxfordshire County Council,Care Packages & Placements- Older People,5689,,31/05/2017,3110231513,562.42,Abicare Services Ltd (Homecare)
http://statistics.data.gov.uk/id/local-authority/38,Oxfordshire County Council,CSB - BANBURY,5689,,31/05/2017,3110231503,565.25,Abicare Services Ltd (Homecare)
http://statistics.data.gov.uk/id/local-authority/38,Oxfordshire County Council,CSB - BANBURY,5689,,03/05/2017,3110222209,596.66,Abicare Services Ltd (Homecare)
http://statistics.data.gov.uk/id/local-authority/38,Oxfordshire County Council,CSB - BANBURY,5689,,03/05/2017,3110222211,598.87,Abicare Services Ltd (Homecare)
http://statistics.data.gov.uk/id/local-authority/38,Oxfordshire County Council,Care Packages & Placements- Older People,5689,,31/05/2017,3110231527,603.89,Abicare Services Ltd (Homecare)
http://statistics.data.gov.uk/id/local-authority/38,Oxfordshire County Council,CSB - BANBURY,5689,,03/05/2017,3110222205,637.82,Abicare Services Ltd (Homecare)
http://statistics.data.gov.uk/id/local-authority/38,Oxfordshire County Council,CSB - BANBURY,5689,,31/05/2017,3110231502,643.17,Abicare Services Ltd (Homecare)
http://statistics.data.gov.uk/id/local-authority/38,Oxfordshire County Council,CSB - BANBURY,5689,,31/05/2017,3110231506,648.82,Abicare Services Ltd (Homecare)
http://statistics.data.gov.uk/id/local-authority/38,Oxfordshire County Council,Care Packages & Placements- Older People,5689,,03/05/2017,3110222218,702.87,Abicare Services Ltd (Homecare)
http://statistics.data.gov.uk/id/local-authority/38,Oxfordshire County Council,Care Packages & Placements- Older People,5689,,31/05/2017,3110231516,738.37,Abicare Services Ltd (Homecare)
http://statistics.data.gov.uk/id/local-authority/38,Oxfordshire County Council,CSB - BANBURY,5689,,31/05/2017,3110231496,741.66,Abicare Services Ltd (Homecare)
http://statistics.data.gov.uk/id/local-authority/38,Oxfordshire County Council,Care Packages & Placements- Older People,5689,,03/05/2017,3110222217,771.46,Abicare Services Ltd (Homecare)
http://statistics.data.gov.uk/id/local-authority/38,Oxfordshire County Council,Care Packages & Placements- Older People,5689,,31/05/2017,3110231515,790.12,Abicare Services Ltd (Homecare)
http://statistics.data.gov.uk/id/local-authority/38,Oxfordshire County Council,CSB - BANBURY,5689,,03/05/2017,3110222212,808.12,Abicare Services Ltd (Homecare)
http://statistics.data.gov.uk/id/local-authority/38,Oxfordshire County Council,Care Packages & Placements- Older People,5689,,03/05/2017,3110222222,897.67,Abicare Services Ltd (Homecare)
http://statistics.data.gov.uk/id/local-authority/38,Oxfordshire County Council,Care Packages & Placements- Older People,5689,,03/05/2017,3110222224,911.49,Abicare Services Ltd (Homecare)
http://statistics.data.gov.uk/id/local-authority/38,Oxfordshire County Council,Care Packages & Placements- Older People,5689,,31/05/2017,3110231522,923.43,Abicare Services Ltd (Homecare)
http://statistics.data.gov.uk/id/local-authority/38,Oxfordshire County Council,Care Packages & Placements- Older People,5689,,31/05/2017,3110231520,929.72,Abicare Services Ltd (Homecare)
http://statistics.data.gov.uk/id/local-authority/38,Oxfordshire County Council,Care Packages & Placements- Older People,5689,,03/05/2017,3110222225,"1,034.02",Abicare Services Ltd (Homecare)
http://statistics.data.gov.uk/id/local-authority/38,Oxfordshire County Council,Care Packages & Placements- Older People,5689,,31/05/2017,3110231523,"1,057.94",Abicare Services Ltd (Homecare)
http://statistics.data.gov.uk/id/local-authority/38,Oxfordshire County Council,Care Packages & Placements- Older People,5689,,03/05/2017,3110222228,"1,573.65",Abicare Services Ltd (Homecare)
http://statistics.data.gov.uk/id/local-authority/38,Oxfordshire County Council,Care Packages & Placements- Older People,5689,,31/05/2017,3110231526,"1,663.94",Abicare Services Ltd (Homecare)
http://statistics.data.gov.uk/id/local-authority/38,Oxfordshire County Council,Care Packages & Placements- Older People,5689,,31/05/2017,3110231524,"2,203.80",Abicare Services Ltd (Homecare)
http://statistics.data.gov.uk/id/local-authority/38,Oxfordshire County Council,CSB - BANBURY,5689,,31/05/2017,3110231507,"2,206.31",Abicare Services Ltd (Homecare)
http://statistics.data.gov.uk/id/local-authority/38,Oxfordshire County Council,Care Packages & Placements- Older People,5689,,03/05/2017,3110222226,"2,234.27",Abicare Services Ltd (Homecare)
http://statistics.data.gov.uk/id/local-authority/38,Oxfordshire County Council,CSB - BANBURY,5689,,03/05/2017,3110222210,"2,256.90",Abicare Services Ltd (Homecare)
http://statistics.data.gov.uk/id/local-authority/38,Oxfordshire County Council,LD CLIENTS SOUTH,5899,Social Care - Direct Payments,17/05/2017,3110226142,"6,427.92",Redacted Personal Data
http://statistics.data.gov.uk/id/local-authority/38,Oxfordshire County Council,NHS HEALTHCHECK PROG,4933,,10/05/2017,3110224545,"1,848.00",Abingdon Surgery
http://statistics.data.gov.uk/id/local-authority/38,Oxfordshire County Council,CONTRACEPTION,4933,,04/05/2017,3110223831,"1,925.00",Abingdon Surgery
http://statistics.data.gov.uk/id/local-authority/38,Oxfordshire County Council,NHS HEALTHCHECK PROG,4933,,10/05/2017,3110224557,"2,022.00",Abingdon Surgery
http://statistics.data.gov.uk/id/local-authority/38,Oxfordshire County Council,NHS HEALTHCHECK PROG,4933,,10/05/2017,3110224566,"2,670.00",Abingdon Surgery
http://statistics.data.gov.uk/id/local-authority/38,Oxfordshire County Council,Care Packages & Placements- LD - OCC,5227,Other Transport Arrangements,17/05/2017,3110227299,612,Abingdon Taxis FKN Autotaxis
http://statistics.data.gov.uk/id/local-authority/38,Oxfordshire County Council,SEN TRANSPORT,4330,Transport to School Activities,22/05/2017,3110227977,660,Abingdon Taxis FKN Autotaxis
http://statistics.data.gov.uk/id/local-authority/38,Oxfordshire County Council,SEN TRANSPORT,4330,Transport to School Activities,22/05/2017,3110227978,696,Abingdon Taxis FKN Autotaxis
http://statistics.data.gov.uk/id/local-authority/38,Oxfordshire County Council,Care Packages & Placements- LD - OCC,5227,Other Transport Arrangements,17/05/2017,3110227296,745.2,Abingdon Taxis FKN Autotaxis
http://statistics.data.gov.uk/id/local-authority/38,Oxfordshire County Council,SEN TRANSPORT,4330,Transport to School Activities,22/05/2017,3110227968,773.75,Abingdon Taxis FKN Autotaxis
http://statistics.data.gov.uk/id/local-authority/38,Oxfordshire County Council,SEN TRANSPORT,4330,Transport to School Activities,22/05/2017,3110227969,775.08,Abingdon Taxis FKN Autotaxis
http://statistics.data.gov.uk/id/local-authority/38,Oxfordshire County Council,Care Packages & Placements- LD - OCC,5227,Other Transport Arrangements,17/05/2017,3110227297,787.5,Abingdon Taxis FKN Autotaxis
http://statistics.data.gov.uk/id/local-authority/38,Oxfordshire County Council,Care Packages & Placements- LD - OCC,5227,Other Transport Arrangements,17/05/2017,3110227300,854.2,Abingdon Taxis FKN Autotaxis
http://statistics.data.gov.uk/id/local-authority/38,Oxfordshire County Council,SEN TRANSPORT,4330,Transport to School Activities,22/05/2017,3110227970,"1,104.66",Abingdon Taxis FKN Autotaxis
http://statistics.data.gov.uk/id/local-authority/38,Oxfordshire County Council,SEN TRANSPORT,4330,Transport to School Activities,22/05/2017,3110227972,"1,116.00",Abingdon Taxis FKN Autotaxis
http://statistics.data.gov.uk/id/local-authority/38,Oxfordshire County Council,SEN TRANSPORT,4330,Transport to School Activities,22/05/2017,3110227980,"1,228.00",Abingdon Taxis FKN Autotaxis
http://statistics.data.gov.uk/id/local-authority/38,Oxfordshire County Council,TRANSPORT COSTS,4330,Transport to School Activities,17/05/2017,3110227302,"1,281.00",Abingdon Taxis FKN Autotaxis
http://statistics.data.gov.uk/id/local-authority/38,Oxfordshire County Council,SEN TRANSPORT,4330,Transport to School Activities,22/05/2017,3110227982,"1,857.90",Abingdon Taxis FKN Autotaxis
http://statistics.data.gov.uk/id/local-authority/38,Oxfordshire County Council,SEN TRANSPORT,4330,Transport to School Activities,22/05/2017,3110227973,"2,016.00",Abingdon Taxis FKN Autotaxis
http://statistics.data.gov.uk/id/local-authority/38,Oxfordshire County Council,CARE HOME SPOT SOUTH,5686,,11/05/2017,3110224225,"80,769.98",Acacia Lodge Care Home
http://statistics.data.gov.uk/id/local-authority/38,Oxfordshire County Council,Care Packages & Placements- LD - OCC,5227,Other Transport Arrangements,08/05/2017,3110222943,600,Ace Taxis (West Oxfordshire) Ltd
http://statistics.data.gov.uk/id/local-authority/38,Oxfordshire County Council,MAINSTREAM-SECONDARY,4330,Transport to School Activities,03/05/2017,3110222665,687.12,Ace Taxis (West Oxfordshire) Ltd
http://statistics.data.gov.uk/id/local-authority/38,Oxfordshire County Council,MAINSTREAM-PRIMARY,4330,Transport to School Activities,03/05/2017,3110222662,687.13,Ace Taxis (West Oxfordshire) Ltd
http://statistics.data.gov.uk/id/local-authority/38,Oxfordshire County Council,OPPB INTER FUND,5686,,11/05/2017,3110224350,"102,411.47",ACER HEALTHCARE LTD
http://statistics.data.gov.uk/id/local-authority/38,Oxfordshire County Council,PD COMM SUPP - CITY,5899,Social Care - Direct Payments,17/05/2017,3110225859,"2,424.00",Redacted Personal Data
http://statistics.data.gov.uk/id/local-authority/38,Oxfordshire County Council,ContrO ASC Payments Control Account,5689,,24/05/2017,3110228476,"-4,111.00",Acquire Care Ltd
http://statistics.data.gov.uk/id/local-authority/38,Oxfordshire County Council,Care Packages & Placements- Older People,5689,,03/05/2017,3110221136,574.53,Acquire Care Ltd
http://statistics.data.gov.uk/id/local-authority/38,Oxfordshire County Council,Care Packages & Placements- Older People,5689,,31/05/2017,3110230710,600.59,Acquire Care Ltd
http://statistics.data.gov.uk/id/local-authority/38,Oxfordshire County Council,Care Packages & Placements- PD - OCC,5689,,24/05/2017,3110228471,611.05,Acquire Care Ltd
http://statistics.data.gov.uk/id/local-authority/38,Oxfordshire County Council,Care Packages & Placements- PD - OCC,5689,,24/05/2017,3110228465,641.15,Acquire Care Ltd
http://statistics.data.gov.uk/id/local-authority/38,Oxfordshire County Council,Care Packages & Placements- Older People,5689,,24/05/2017,3110228458,651.04,Acquire Care Ltd
http://statistics.data.gov.uk/id/local-authority/38,Oxfordshire County Council,Care Packages & Placements- Older People,5689,,24/05/2017,3110228416,667.66,Acquire Care Ltd
http://statistics.data.gov.uk/id/local-authority/38,Oxfordshire County Council,Care Packages & Placements- Older People,5689,,24/05/2017,3110228436,700.46,Acquire Care Ltd
http://statistics.data.gov.uk/id/local-authority/38,Oxfordshire County Council,CSB - BANBURY,5689,,31/05/2017,3110230698,708.82,Acquire Care Ltd
http://statistics.data.gov.uk/id/local-authority/38,Oxfordshire County Council,Care Packages & Placements- Older People,5689,,24/05/2017,3110228439,745.84,Acquire Care Ltd
http://statistics.data.gov.uk/id/local-authority/38,Oxfordshire County Council,CSB - BANBURY,5689,,03/05/2017,3110221124,749.73,Acquire Care Ltd
http://statistics.data.gov.uk/id/local-authority/38,Oxfordshire County Council,Care Packages & Placements- Older People,5689,,24/05/2017,3110228419,791.67,Acquire Care Ltd
http://statistics.data.gov.uk/id/local-authority/38,Oxfordshire County Council,Care Packages & Placements- Older People,5689,,24/05/2017,3110228440,800.66,Acquire Care Ltd
http://statistics.data.gov.uk/id/local-authority/38,Oxfordshire County Council,Care Packages & Placements- PD - OCC,5689,,24/05/2017,3110228472,837.5,Acquire Care Ltd
http://statistics.data.gov.uk/id/local-authority/38,Oxfordshire County Council,Care Packages & Placements- Older People,5689,,24/05/2017,3110228423,842.44,Acquire Care Ltd
http://statistics.data.gov.uk/id/local-authority/38,Oxfordshire County Council,Care Packages & Placements- Older People,5689,,31/05/2017,3110230703,842.73,Acquire Care Ltd
http://statistics.data.gov.uk/id/local-authority/38,Oxfordshire County Council,CSB - CITY,5689,,24/05/2017,3110228413,876.65,Acquire Care Ltd
http://statistics.data.gov.uk/id/local-authority/38,Oxfordshire County Council,Care Packages & Placements- Older People,5689,,03/05/2017,3110221129,889.19,Acquire Care Ltd
http://statistics.data.gov.uk/id/local-authority/38,Oxfordshire County Council,CSB - CITY,5689,,31/05/2017,3110230702,903.79,Acquire Care Ltd
http://statistics.data.gov.uk/id/local-authority/38,Oxfordshire County Council,CSB - BANBURY,5689,,31/05/2017,3110230701,923.97,Acquire Care Ltd
http://statistics.data.gov.uk/id/local-authority/38,Oxfordshire County Council,Care Packages & Placements- Older People,5689,,31/05/2017,3110230711,927.56,Acquire Care Ltd
http://statistics.data.gov.uk/id/local-authority/38,Oxfordshire County Council,CSB - BANBURY,5689,,03/05/2017,3110221127,964.89,Acquire Care Ltd
http://statistics.data.gov.uk/id/local-authority/38,Oxfordshire County Council,Care Packages & Placements- Older People,5689,,24/05/2017,3110228461,"1,026.21",Acquire Care Ltd
http://statistics.data.gov.uk/id/local-authority/38,Oxfordshire County Council,Care Packages & Placements- Older People,5689,,24/05/2017,3110228456,"1,040.13",Acquire Care Ltd
http://statistics.data.gov.uk/id/local-authority/38,Oxfordshire County Council,CSB - CITY,5689,,03/05/2017,3110221128,"1,052.90",Acquire Care Ltd
http://statistics.data.gov.uk/id/local-authority/38,Oxfordshire County Council,Care Packages & Placements- Older People,5689,,24/05/2017,3110228443,"1,068.88",Acquire Care Ltd
http://statistics.data.gov.uk/id/local-authority/38,Oxfordshire County Council,Care Packages & Placements- PD - OCC,5689,,24/05/2017,3110228470,"1,082.36",Acquire Care Ltd
http://statistics.data.gov.uk/id/local-authority/38,Oxfordshire County Council,Care Packages & Placements- Older People,5689,,24/05/2017,3110228426,"1,102.13",Acquire Care Ltd
http://statistics.data.gov.uk/id/local-authority/38,Oxfordshire County Council,Care Packages & Placements- Older People,5689,,24/05/2017,3110228415,"1,305.21",Acquire Care Ltd
http://statistics.data.gov.uk/id/local-authority/38,Oxfordshire County Council,Care Packages & Placements- Older People,5689,,24/05/2017,3110228432,"1,310.61",Acquire Care Ltd
http://statistics.data.gov.uk/id/local-authority/38,Oxfordshire County Council,Care Packages & Placements- Older People,5689,,03/05/2017,3110221137,"1,375.55",Acquire Care Ltd
http://statistics.data.gov.uk/id/local-authority/38,Oxfordshire County Council,Care Packages & Placements- Older People,5689,,24/05/2017,3110228450,"1,395.53",Acquire Care Ltd
http://statistics.data.gov.uk/id/local-authority/38,Oxfordshire County Council,Care Packages & Placements- Older People,5689,,24/05/2017,3110228430,"1,437.76",Acquire Care Ltd
http://statistics.data.gov.uk/id/local-authority/38,Oxfordshire County Council,Care Packages & Placements- Older People,5689,,24/05/2017,3110228431,"1,453.48",Acquire Care Ltd
http://statistics.data.gov.uk/id/local-authority/38,Oxfordshire County Council,Care Packages & Placements- Older People,5689,,24/05/2017,3110228452,"1,474.60",Acquire Care Ltd
http://statistics.data.gov.uk/id/local-authority/38,Oxfordshire County Council,Care Packages & Placements- Older People,5689,,24/05/2017,3110228451,"1,507.40",Acquire Care Ltd
http://statistics.data.gov.uk/id/local-authority/38,Oxfordshire County Council,Care Packages & Placements- Older People,5689,,24/05/2017,3110228427,"1,516.39",Acquire Care Ltd
http://statistics.data.gov.uk/id/local-authority/38,Oxfordshire County Council,Care Packages & Placements- Older People,5689,,24/05/2017,3110228457,"1,524.48",Acquire Care Ltd
http://statistics.data.gov.uk/id/local-authority/38,Oxfordshire County Council,Care Packages & Placements- Older People,5689,,24/05/2017,3110228418,"1,544.24",Acquire Care Ltd
http://statistics.data.gov.uk/id/local-authority/38,Oxfordshire County Council,Care Packages & Placements- Older People,5689,,24/05/2017,3110228448,"1,654.32",Acquire Care Ltd
http://statistics.data.gov.uk/id/local-authority/38,Oxfordshire County Council,Care Packages & Placements- Older People,5689,,31/05/2017,3110230706,"1,676.21",Acquire Care Ltd
http://statistics.data.gov.uk/id/local-authority/38,Oxfordshire County Council,CSB - BANBURY,5689,,31/05/2017,3110230699,"1,678.70",Acquire Care Ltd
http://statistics.data.gov.uk/id/local-authority/38,Oxfordshire County Council,Care Packages & Placements- Older People,5689,,03/05/2017,3110221131,"1,692.45",Acquire Care Ltd
http://statistics.data.gov.uk/id/local-authority/38,Oxfordshire County Council,Care Packages & Placements- Older People,5689,,24/05/2017,3110228429,"1,714.53",Acquire Care Ltd
http://statistics.data.gov.uk/id/local-authority/38,Oxfordshire County Council,CSB - BANBURY,5689,,03/05/2017,3110221125,"1,724.29",Acquire Care Ltd
http://statistics.data.gov.uk/id/local-authority/38,Oxfordshire County Council,Care Packages & Placements- Older People,5689,,24/05/2017,3110228455,"1,744.64",Acquire Care Ltd
http://statistics.data.gov.uk/id/local-authority/38,Oxfordshire County Council,CSB - BANBURY,5689,,31/05/2017,3110230697,"1,890.23",Acquire Care Ltd
http://statistics.data.gov.uk/id/local-authority/38,Oxfordshire County Council,Care Packages & Placements- Older People,5689,,24/05/2017,3110228441,"1,982.76",Acquire Care Ltd
http://statistics.data.gov.uk/id/local-authority/38,Oxfordshire County Council,Care Packages & Placements- Older People,5689,,31/05/2017,3110230709,"2,165.18",Acquire Care Ltd
http://statistics.data.gov.uk/id/local-authority/38,Oxfordshire County Council,Care Packages & Placements- Older People,5689,,03/05/2017,3110221135,"2,169.79",Acquire Care Ltd
http://statistics.data.gov.uk/id/local-authority/38,Oxfordshire County Council,Care Packages & Placements- Older People,5689,,03/05/2017,3110221134,"2,176.31",Acquire Care Ltd
http://statistics.data.gov.uk/id/local-authority/38,Oxfordshire County Council,Care Packages & Placements- Older People,5689,,31/05/2017,3110230708,"2,182.37",Acquire Care Ltd
http://statistics.data.gov.uk/id/local-authority/38,Oxfordshire County Council,Care Packages & Placements- Older People,5689,,24/05/2017,3110228433,"2,335.01",Acquire Care Ltd
http://statistics.data.gov.uk/id/local-authority/38,Oxfordshire County Council,Care Packages & Placements- Older People,5689,,03/05/2017,3110221133,"2,590.09",Acquire Care Ltd
http://statistics.data.gov.uk/id/local-authority/38,Oxfordshire County Council,Care Packages & Placements- Older People,5689,,31/05/2017,3110230707,"2,591.18",Acquire Care Ltd
http://statistics.data.gov.uk/id/local-authority/38,Oxfordshire County Council,CSB - BANBURY,5689,,03/05/2017,3110221123,"2,920.96",Acquire Care Ltd
http://statistics.data.gov.uk/id/local-authority/38,Oxfordshire County Council,Care Packages & Placements- Older People,5689,,24/05/2017,3110228424,"2,973.46",Acquire Care Ltd
http://statistics.data.gov.uk/id/local-authority/38,Oxfordshire County Council,PD COMM SUPP BANB,5689,,03/05/2017,3110221138,"2,996.16",Acquire Care Ltd
http://statistics.data.gov.uk/id/local-authority/38,Oxfordshire County Council,PD COMM SUPP BANB,5689,,31/05/2017,3110230712,"3,025.34",Acquire Care Ltd
http://statistics.data.gov.uk/id/local-authority/38,Oxfordshire County Council,Care Packages & Placements- Older People,5689,,24/05/2017,3110228422,"3,037.27",Acquire Care Ltd
http://statistics.data.gov.uk/id/local-authority/38,Oxfordshire County Council,PD COMM SUPP AB'DON,5689,,11/05/2017,3110224066,"3,080.00",Acquire Care Ltd
http://statistics.data.gov.uk/id/local-authority/38,Oxfordshire County Council,PD COMM SUPP AB'DON,5689,,31/05/2017,3110231659,"3,080.00",Acquire Care Ltd
http://statistics.data.gov.uk/id/local-authority/38,Oxfordshire County Council,Care Packages & Placements- PD - OCC,5689,,24/05/2017,3110228468,"3,267.76",Acquire Care Ltd
http://statistics.data.gov.uk/id/local-authority/38,Oxfordshire County Council,Care Packages & Placements- Older People,5689,,24/05/2017,3110228444,"3,314.48",Acquire Care Ltd
http://statistics.data.gov.uk/id/local-authority/38,Oxfordshire County Council,Care Packages & Placements- Older People,5689,,24/05/2017,3110228446,"3,341.00",Acquire Care Ltd
http://statistics.data.gov.uk/id/local-authority/38,Oxfordshire County Council,Care Packages & Placements- Older People,5689,,24/05/2017,3110228428,"3,350.88",Acquire Care Ltd
http://statistics.data.gov.uk/id/local-authority/38,Oxfordshire County Council,Care Packages & Placements- Older People,5689,,24/05/2017,3110228417,"3,354.92",Acquire Care Ltd
http://statistics.data.gov.uk/id/local-authority/38,Oxfordshire County Council,Care Packages & Placements- Older People,5689,,24/05/2017,3110228435,"3,382.78",Acquire Care Ltd
http://statistics.data.gov.uk/id/local-authority/38,Oxfordshire County Council,Care Packages & Placements- Older People,5689,,24/05/2017,3110228445,"3,389.52",Acquire Care Ltd
http://statistics.data.gov.uk/id/local-authority/38,Oxfordshire County Council,Care Packages & Placements- Older People,5689,,24/05/2017,3110228437,"3,514.87",Acquire Care Ltd
http://statistics.data.gov.uk/id/local-authority/38,Oxfordshire County Council,Care Packages & Placements- Older People,5689,,24/05/2017,3110228442,"3,563.85",Acquire Care Ltd
http://statistics.data.gov.uk/id/local-authority/38,Oxfordshire County Council,Care Packages & Placements- Older People,5689,,24/05/2017,3110228449,"3,591.25",Acquire Care Ltd
http://statistics.data.gov.uk/id/local-authority/38,Oxfordshire County Council,Care Packages & Placements- Older People,5689,,24/05/2017,3110228434,"3,624.06",Acquire Care Ltd
http://statistics.data.gov.uk/id/local-authority/38,Oxfordshire County Council,Care Packages & Placements- Older People,5689,,24/05/2017,3110228459,"4,152.88",Acquire Care Ltd
http://statistics.data.gov.uk/id/local-authority/38,Oxfordshire County Council,Care Packages & Placements- Older People,5689,,24/05/2017,3110228420,"4,325.86",Acquire Care Ltd
http://statistics.data.gov.uk/id/local-authority/38,Oxfordshire County Council,Care Packages & Placements- PD - OCC,5689,,24/05/2017,3110228464,"4,754.94",Acquire Care Ltd
http://statistics.data.gov.uk/id/local-authority/38,Oxfordshire County Council,Care Packages & Placements- Older People,5689,,24/05/2017,3110228447,"4,815.60",Acquire Care Ltd
http://statistics.data.gov.uk/id/local-authority/38,Oxfordshire County Council,Care Packages & Placements- OP Health,5689,,24/05/2017,3110228463,"5,007.45",Acquire Care Ltd
http://statistics.data.gov.uk/id/local-authority/38,Oxfordshire County Council,ContrO ASC Payments Control Account,5689,,24/05/2017,3110228475,"14,706.00",Acquire Care Ltd
http://statistics.data.gov.uk/id/local-authority/38,Oxfordshire County Council,PD RES PURCH - SOUTH,5686,,11/05/2017,3110224006,"4,835.87",ACTION ON HEARING LOSS
http://statistics.data.gov.uk/id/local-authority/38,Oxfordshire County Council,PD COMM SUPP - CITY,5688,,11/05/2017,3110224395,"4,990.91",ACTION ON HEARING LOSS
http://statistics.data.gov.uk/id/local-authority/38,Oxfordshire County Council,LAC PUPIL PREMIUM,5537,Payments to Other Establishments,16/05/2017,3110225112,550,Activate Learning Education Trust
http://statistics.data.gov.uk/id/local-authority/38,Oxfordshire County Council,HN IN SEC SCHOOLS,5537,Payments to Other Establishments,02/05/2017,3110220885,"3,313.00",Activate Learning Education Trust
http://statistics.data.gov.uk/id/local-authority/38,Oxfordshire County Council,HN IN SEC SCHOOLS,5537,Payments to Other Establishments,18/05/2017,3110227617,"3,313.00",Activate Learning Education Trust
http://statistics.data.gov.uk/id/local-authority/38,Oxfordshire County Council,LAC PUPIL PREMIUM,5537,Payments to Other Establishments,16/05/2017,3110225143,"4,400.00",Activate Learning Education Trust
http://statistics.data.gov.uk/id/local-authority/38,Oxfordshire County Council,LD CLIENTS SOUTH,5899,Social Care - Direct Payments,17/05/2017,3110226174,"2,076.92",Redacted Personal Data
http://statistics.data.gov.uk/id/local-authority/38,Oxfordshire County Council,DIRECTOR'S OFFICE,3103,Other Training Courses and Qualification,19/05/2017,2200355057,780,ADCS LTD
http://statistics.data.gov.uk/id/local-authority/38,Oxfordshire County Council,DIRECTOR'S OFFICE,5460,Entertainment Expenses,12/05/2017,2200351713,"3,135.00",ADCS LTD
http://statistics.data.gov.uk/id/local-authority/38,Oxfordshire County Council,RESIDENTIAL TREATMEN,5686,,18/05/2017,2200354636,"2,485.80",Addiction Recovery Centre
http://statistics.data.gov.uk/id/local-authority/38,Oxfordshire County Council,RESIDENTIAL TREATMEN,5686,,18/05/2017,2200354637,"2,485.80",Addiction Recovery Centre
http://statistics.data.gov.uk/id/local-authority/38,Oxfordshire County Council,RESIDENTIAL TREATMEN,5686,,18/05/2017,2200354639,"2,485.80",Addiction Recovery Centre
http://statistics.data.gov.uk/id/local-authority/38,Oxfordshire County Council,OUT OF COUNTY,5537,Payments to Other Establishments,05/05/2017,2200347234,"3,270.25",Addington School
http://statistics.data.gov.uk/id/local-authority/38,Oxfordshire County Council,ICT Operations & Maintenance,5039,ITC Services,08/05/2017,2200347871,597.82,ADT Fire & Security PLC
http://statistics.data.gov.uk/id/local-authority/38,Oxfordshire County Council,Care Packages & Placements- LD - OCC,5690,,11/05/2017,3110223929,919.93,ADVANCE HOUSING & SUPPORT LTD
http://statistics.data.gov.uk/id/local-authority/38,Oxfordshire County Council,LD EXT RESP CONTRACT,5544,B*Fostering - Temp/Respite,11/05/2017,3110224011,"20,917.64",ADVANCE HOUSING & SUPPORT LTD
http://statistics.data.gov.uk/id/local-authority/38,Oxfordshire County Council,LD CLIENTS NORTH,5688,,11/05/2017,3110224400,"34,016.79",ADVANCE HOUSING & SUPPORT LTD
http://statistics.data.gov.uk/id/local-authority/38,Oxfordshire County Council,SM DISABILITIES,5899,Social Care - Direct Payments,26/05/2017,3110229857,517.18,Advance Oxford
http://statistics.data.gov.uk/id/local-authority/38,Oxfordshire County Council,SM DISABILITIES,5899,Social Care - Direct Payments,26/05/2017,3110229853,564.2,Advance Oxford
http://statistics.data.gov.uk/id/local-authority/38,Oxfordshire County Council,SM DISABILITIES,5899,Social Care - Direct Payments,26/05/2017,3110229869,640,Advance Oxford
http://statistics.data.gov.uk/id/local-authority/38,Oxfordshire County Council,SM DISABILITIES,5899,Social Care - Direct Payments,26/05/2017,3110229847,713.1,Advance Oxford
http://statistics.data.gov.uk/id/local-authority/38,Oxfordshire County Council,SM DISABILITIES,5899,Social Care - Direct Payments,26/05/2017,3110229846,752.27,Advance Oxford
http://statistics.data.gov.uk/id/local-authority/38,Oxfordshire County Council,SM DISABILITIES,5899,Social Care - Direct Payments,26/05/2017,3110229844,846.3,Advance Oxford
http://statistics.data.gov.uk/id/local-authority/38,Oxfordshire County Council,ContrO ASC Payments Control Account,5899,Social Care - Direct Payments,26/05/2017,3110229850,854.88,Advance Oxford
http://statistics.data.gov.uk/id/local-authority/38,Oxfordshire County Council,SM DISABILITIES,5899,Social Care - Direct Payments,26/05/2017,3110229838,940.33,Advance Oxford
http://statistics.data.gov.uk/id/local-authority/38,Oxfordshire County Council,SM DISABILITIES,5899,Social Care - Direct Payments,26/05/2017,3110229841,960,Advance Oxford
http://statistics.data.gov.uk/id/local-authority/38,Oxfordshire County Council,ContrO ASC Payments Control Account,5899,Social Care - Direct Payments,26/05/2017,3110229843,"1,170.78",Advance Oxford
http://statistics.data.gov.uk/id/local-authority/38,Oxfordshire County Council,ContrO ASC Payments Control Account,5899,Social Care - Direct Payments,26/05/2017,3110229852,"1,170.78",Advance Oxford
http://statistics.data.gov.uk/id/local-authority/38,Oxfordshire County Council,SM DISABILITIES,5899,Social Care - Direct Payments,26/05/2017,3110229854,"1,175.42",Advance Oxford
http://statistics.data.gov.uk/id/local-authority/38,Oxfordshire County Council,ContrO ASC Payments Control Account,5899,Social Care - Direct Payments,26/05/2017,3110229867,"1,333.80",Advance Oxford
http://statistics.data.gov.uk/id/local-authority/38,Oxfordshire County Council,SM DISABILITIES,5899,Social Care - Direct Payments,19/05/2017,3110227724,"1,568.00",Advance Oxford
http://statistics.data.gov.uk/id/local-authority/38,Oxfordshire County Council,ContrO ASC Payments Control Account,5899,Social Care - Direct Payments,26/05/2017,3110229849,"1,857.96",Advance Oxford
http://statistics.data.gov.uk/id/local-authority/38,Oxfordshire County Council,SM DISABILITIES,5899,Social Care - Direct Payments,26/05/2017,3110229863,"2,788.45",Advance Oxford
http://statistics.data.gov.uk/id/local-authority/38,Oxfordshire County Council,SM DISABILITIES,5899,Social Care - Direct Payments,26/05/2017,3110229864,"2,788.45",Advance Oxford
http://statistics.data.gov.uk/id/local-authority/38,Oxfordshire County Council,GYPSY & TRAVELLER SV,4861,Hired and Contracted Services,16/05/2017,2200352718,754,Advanced Pest Control Ltd
http://statistics.data.gov.uk/id/local-authority/38,Oxfordshire County Council,Infrastructure Mgt Project Sponsorship,4861,Hired and Contracted Services,17/05/2017,2200353771,"4,004.99",AECOM Infrastructure & Environment
http://statistics.data.gov.uk/id/local-authority/38,Oxfordshire County Council,Infrastructure Mgt Project Sponsorship,4940,Other Services,08/05/2017,2200348052,"5,760.00",AECOM Infrastructure & Environment
http://statistics.data.gov.uk/id/local-authority/38,Oxfordshire County Council,Infrastructure Mgt Project Sponsorship,5526,Payments to Private Contractors,10/05/2017,2200349803,"5,892.15",AECOM Infrastructure & Environment
http://statistics.data.gov.uk/id/local-authority/38,Oxfordshire County Council,Infrastructure Mgt Project Sponsorship,4861,Hired and Contracted Services,11/05/2017,2200350746,"7,142.00",AECOM Infrastructure & Environment
http://statistics.data.gov.uk/id/local-authority/38,Oxfordshire County Council,Infrastructure Mgt Project Sponsorship,4861,Hired and Contracted Services,12/05/2017,2200351206,"7,278.18",AECOM Infrastructure & Environment
http://statistics.data.gov.uk/id/local-authority/38,Oxfordshire County Council,Oxfordshire Growth Board,4861,Hired and Contracted Services,18/05/2017,2200354364,"6,800.00",AECOM Limited
http://statistics.data.gov.uk/id/local-authority/38,Oxfordshire County Council,LD CLIENTS SOUTH,5686,,11/05/2017,3110223988,"7,295.58",AFFINITY TRUST
http://statistics.data.gov.uk/id/local-authority/38,Oxfordshire County Council,LD CLIENTS CITY,5688,,11/05/2017,3110224380,"235,421.26",AFFINITY TRUST
http://statistics.data.gov.uk/id/local-authority/38,Oxfordshire County Council,GYPSY & TRAVELLER SV,3956,Non System - Water - Metered,12/05/2017,2200351743,"1,628.17",AFFINITY WATER
http://statistics.data.gov.uk/id/local-authority/38,Oxfordshire County Council,INFORMATION & ADVICE,5520,Payments to Voluntary bodies,23/05/2017,3500029770,"40,000.00",Age UK Oxfordshire
http://statistics.data.gov.uk/id/local-authority/38,Oxfordshire County Council,INFORMATION & ADVICE,5520,Payments to Voluntary bodies,05/05/2017,3500029353,"95,000.00",Age UK Oxfordshire
http://statistics.data.gov.uk/id/local-authority/38,Oxfordshire County Council,INFORMATION & ADVICE,5520,Payments to Voluntary bodies,23/05/2017,3500029769,"131,907.00",Age UK Oxfordshire
http://statistics.data.gov.uk/id/local-authority/38,Oxfordshire County Council,ICT Transformation,5039,ITC Services,10/05/2017,2200350165,"7,230.00",Agile Collective Ltd
http://statistics.data.gov.uk/id/local-authority/38,Oxfordshire County Council,ICT Transformation,5039,ITC Services,10/05/2017,2200350147,"9,318.00",Agile Collective Ltd
http://statistics.data.gov.uk/id/local-authority/38,Oxfordshire County Council,CSB - DIDCOT,5899,Social Care - Direct Payments,17/05/2017,3110225815,"2,620.00",Redacted Personal Data
http://statistics.data.gov.uk/id/local-authority/38,Oxfordshire County Council,COMPOSTING,5526,Payments to Private Contractors,24/05/2017,2200357117,"1,946.97",Agrivert (Ardley) Limited
http://statistics.data.gov.uk/id/local-authority/38,Oxfordshire County Council,COMPOSTING,5526,Payments to Private Contractors,02/05/2017,2200345623,"24,661.51",Agrivert (Ardley) Limited
http://statistics.data.gov.uk/id/local-authority/38,Oxfordshire County Council,COMPOSTING,5526,Payments to Private Contractors,02/05/2017,2200345618,"75,582.18",Agrivert (Ardley) Limited
http://statistics.data.gov.uk/id/local-authority/38,Oxfordshire County Council,COMPOSTING,5526,Payments to Private Contractors,02/05/2017,2200345620,"88,330.46",Agrivert (Ardley) Limited
http://statistics.data.gov.uk/id/local-authority/38,Oxfordshire County Council,COMPOSTING,5526,Payments to Private Contractors,24/05/2017,2200357118,"91,592.64",Agrivert (Ardley) Limited
http://statistics.data.gov.uk/id/local-authority/38,Oxfordshire County Council,COMPOSTING,5526,Payments to Private Contractors,24/05/2017,2200357119,"110,449.56",Agrivert (Ardley) Limited
http://statistics.data.gov.uk/id/local-authority/38,Oxfordshire County Council,COMPOSTING,5526,Payments to Private Contractors,24/05/2017,2200357121,"1,478.26",Agrivert (Biogas) Limited
http://statistics.data.gov.uk/id/local-authority/38,Oxfordshire County Council,COMPOSTING,5526,Payments to Private Contractors,02/05/2017,2200345622,"41,901.44",Agrivert (Biogas) Limited
http://statistics.data.gov.uk/id/local-authority/38,Oxfordshire County Council,COMPOSTING,5526,Payments to Private Contractors,24/05/2017,2200357116,"60,808.39",Agrivert (Biogas) Limited
http://statistics.data.gov.uk/id/local-authority/38,Oxfordshire County Council,LD CLIENTS SOUTH,5899,Social Care - Direct Payments,17/05/2017,3110226126,"1,184.48",Redacted Personal Data
http://statistics.data.gov.uk/id/local-authority/38,Oxfordshire County Council,MAINSTREAM-SECONDARY,4330,Transport to School Activities,04/05/2017,3110222685,590,Airport Transfers Banbury Ltd
http://statistics.data.gov.uk/id/local-authority/38,Oxfordshire County Council,MAINSTREAM-PRIMARY,4330,Transport to School Activities,04/05/2017,3110222682,913.5,Airport Transfers Banbury Ltd
http://statistics.data.gov.uk/id/local-authority/38,Oxfordshire County Council,POST 16 SEN,4330,Transport to School Activities,24/05/2017,3110229663,"1,000.00",Airport Transfers Banbury Ltd
http://statistics.data.gov.uk/id/local-authority/38,Oxfordshire County Council,SEN TRANSPORT,4330,Transport to School Activities,04/05/2017,3110222697,"1,110.00",Airport Transfers Banbury Ltd
http://statistics.data.gov.uk/id/local-authority/38,Oxfordshire County Council,SEN TRANSPORT,4330,Transport to School Activities,04/05/2017,3110222688,"1,515.00",Airport Transfers Banbury Ltd
http://statistics.data.gov.uk/id/local-authority/38,Oxfordshire County Council,SEN TRANSPORT,4330,Transport to School Activities,04/05/2017,3110222700,"1,900.00",Airport Transfers Banbury Ltd
http://statistics.data.gov.uk/id/local-authority/38,Oxfordshire County Council,COMMUNICATIONS,5086,Other Communications,15/05/2017,2200351928,"8,869.90",Airwave Solutions Ltd
http://statistics.data.gov.uk/id/local-authority/38,Oxfordshire County Council,ICT Business Services,5039,ITC Services,22/05/2017,2200355522,"5,850.00",AITAM SERVICES LTD
http://statistics.data.gov.uk/id/local-authority/38,Oxfordshire County Council,MENTAL CAPACITY,5668,Technical and Professional Consultant F,19/05/2017,2200354983,660,Ajana Ltd
http://statistics.data.gov.uk/id/local-authority/38,Oxfordshire County Council,South Rapid Response Team,2040,Agency Staff,15/05/2017,2200351892,"1,163.75",Ajana Ltd
http://statistics.data.gov.uk/id/local-authority/38,Oxfordshire County Council,South Integrated Locality Team,2040,Agency Staff,04/05/2017,2200346588,"2,493.75",Ajana Ltd
http://statistics.data.gov.uk/id/local-authority/38,Oxfordshire County Council,South Integrated Locality Team,2040,Agency Staff,22/05/2017,2200355303,"2,547.25",Ajana Ltd
http://statistics.data.gov.uk/id/local-authority/38,Oxfordshire County Council,MAINSTREAM-PRIMARY,4330,Transport to School Activities,09/05/2017,3110223227,720,AKR Ltd
http://statistics.data.gov.uk/id/local-authority/38,Oxfordshire County Council,SEN TRANSPORT,4330,Transport to School Activities,09/05/2017,3110223217,990,AKR Ltd
http://statistics.data.gov.uk/id/local-authority/38,Oxfordshire County Council,SEN TRANSPORT,4330,Transport to School Activities,09/05/2017,3110223233,"1,069.20",AKR Ltd
http://statistics.data.gov.uk/id/local-authority/38,Oxfordshire County Council,SEN TRANSPORT,4330,Transport to School Activities,09/05/2017,3110223213,"1,230.00",AKR Ltd
http://statistics.data.gov.uk/id/local-authority/38,Oxfordshire County Council,MAINSTREAM-PRIMARY,4330,Transport to School Activities,09/05/2017,3110223214,"1,250.00",AKR Ltd
http://statistics.data.gov.uk/id/local-authority/38,Oxfordshire County Council,SEN TRANSPORT,4330,Transport to School Activities,09/05/2017,3110223219,"1,260.00",AKR Ltd
http://statistics.data.gov.uk/id/local-authority/38,Oxfordshire County Council,SEN TRANSPORT,4330,Transport to School Activities,09/05/2017,3110223221,"1,460.00",AKR Ltd
http://statistics.data.gov.uk/id/local-authority/38,Oxfordshire County Council,SEN TRANSPORT,4330,Transport to School Activities,09/05/2017,3110223229,"1,501.20",AKR Ltd
http://statistics.data.gov.uk/id/local-authority/38,Oxfordshire County Council,SEN TRANSPORT,4330,Transport to School Activities,09/05/2017,3110223241,"1,560.00",AKR Ltd
http://statistics.data.gov.uk/id/local-authority/38,Oxfordshire County Council,SEN TRANSPORT,4330,Transport to School Activities,09/05/2017,3110223215,"1,574.10",AKR Ltd
http://statistics.data.gov.uk/id/local-authority/38,Oxfordshire County Council,SEN TRANSPORT,4330,Transport to School Activities,09/05/2017,3110223225,"1,958.00",AKR Ltd
http://statistics.data.gov.uk/id/local-authority/38,Oxfordshire County Council,MAINSTREAM-PRIMARY,4330,Transport to School Activities,09/05/2017,3110223212,"1,970.00",AKR Ltd
http://statistics.data.gov.uk/id/local-authority/38,Oxfordshire County Council,SEN TRANSPORT,4330,Transport to School Activities,09/05/2017,3110223237,"2,380.00",AKR Ltd
http://statistics.data.gov.uk/id/local-authority/38,Oxfordshire County Council,LD CLIENTS NORTH,5686,,11/05/2017,3110224311,"50,681.91",ALBANY FARM CARE
http://statistics.data.gov.uk/id/local-authority/38,Oxfordshire County Council,TRAINING MANAGEMENT,3103,Other Training Courses and Qualification,02/05/2017,2200345587,711.3,Alendi Consulting Ltd
http://statistics.data.gov.uk/id/local-authority/38,Oxfordshire County Council,ASC WORKFORCE STRAT,5668,Technical and Professional Consultant F,04/05/2017,2200346768,"3,500.00",Alex Braddell Associates Limited
http://statistics.data.gov.uk/id/local-authority/38,Oxfordshire County Council,ContrO ASC Payments Control Account,7190,Other Recovered Costs,11/05/2017,3110224318,"4,714.28",Alexander Care Home
http://statistics.data.gov.uk/id/local-authority/38,Oxfordshire County Council,LEGAL SERVICES,5251,Legal Costs,18/05/2017,2200354490,550,Alexander Forbes
http://statistics.data.gov.uk/id/local-authority/38,Oxfordshire County Council,LEGAL SERVICES,5251,Legal Costs,26/05/2017,2200358260,800,Alexander Forbes
http://statistics.data.gov.uk/id/local-authority/38,Oxfordshire County Council,LEGAL SERVICES,5251,Legal Costs,17/05/2017,2200353730,"1,500.00",Alexander Forbes
http://statistics.data.gov.uk/id/local-authority/38,Oxfordshire County Council,LD CLIENTS SOUTH,5899,Social Care - Direct Payments,17/05/2017,3110226178,"2,995.08",Redacted Personal Data
http://statistics.data.gov.uk/id/local-authority/38,Oxfordshire County Council,ContrO ASC Payments Control Account,5899,Social Care - Direct Payments,26/05/2017,3110229826,"1,297.79",Redacted Personal Data
http://statistics.data.gov.uk/id/local-authority/38,Oxfordshire County Council,LD CLIENTS CITY,5899,Social Care - Direct Payments,17/05/2017,3110225807,"5,388.00",Redacted Personal Data
http://statistics.data.gov.uk/id/local-authority/38,Oxfordshire County Council,LD CLIENTS CITY,5899,Social Care - Direct Payments,17/05/2017,3110225772,"6,654.76",Redacted Personal Data
http://statistics.data.gov.uk/id/local-authority/38,Oxfordshire County Council,LD CLIENTS SOUTH,5899,Social Care - Direct Payments,17/05/2017,3110226336,753.24,Redacted Personal Data
http://statistics.data.gov.uk/id/local-authority/38,Oxfordshire County Council,LD CLIENTS NORTH,5899,Social Care - Direct Payments,17/05/2017,3110226136,"4,493.16",Redacted Personal Data
http://statistics.data.gov.uk/id/local-authority/38,Oxfordshire County Council,MH COMMUNITY SUP'T,5899,Social Care - Direct Payments,17/05/2017,3110225976,640,Redacted Personal Data
http://statistics.data.gov.uk/id/local-authority/38,Oxfordshire County Council,CARE HOME SPOT CITY,5686,,11/05/2017,3110224305,"8,436.16",ALLIED CARE LTD
http://statistics.data.gov.uk/id/local-authority/38,Oxfordshire County Council,TRANSPORT GENERAL,4232,Vehicle Fuel,18/05/2017,2200354492,900.16,Allstar Business Solutions Ltd
http://statistics.data.gov.uk/id/local-authority/38,Oxfordshire County Council,PROCUREMENT,4232,Vehicle Fuel,05/05/2017,2200347442,"5,440.88",Allstar Business Solutions Ltd
http://statistics.data.gov.uk/id/local-authority/38,Oxfordshire County Council,FLEET OPERATIONS,4232,Vehicle Fuel,05/05/2017,2200347235,"9,445.17",Allstar Business Solutions Ltd
http://statistics.data.gov.uk/id/local-authority/38,Oxfordshire County Council,LD CLIENTS SOUTH,5686,,11/05/2017,3110224297,"23,222.59",Alocare Group
http://statistics.data.gov.uk/id/local-authority/38,Oxfordshire County Council,ASSET RATIONALISATN,4494,Purchase of IT Equipment,24/05/2017,2200356748,"-2,326.00",Alternative Communication Systems
http://statistics.data.gov.uk/id/local-authority/38,Oxfordshire County Council,ASSET RATIONALISATN,4494,Purchase of IT Equipment,09/05/2017,2200349005,"2,326.00",Alternative Communication Systems
http://statistics.data.gov.uk/id/local-authority/38,Oxfordshire County Council,ASSET RATIONALISATN,4494,Purchase of IT Equipment,24/05/2017,2200356764,"2,326.00",Alternative Communication Systems
http://statistics.data.gov.uk/id/local-authority/38,Oxfordshire County Council,DEPARTMENTAL MANAGE,8350,Furn. & Equip. costing 6000 or more,30/05/2017,2200358429,"6,386.00",Alternative Communication Systems
http://statistics.data.gov.uk/id/local-authority/38,Oxfordshire County Council,DEPARTMENTAL MANAGE,8350,Furn. & Equip. costing 6000 or more,30/05/2017,2200358428,"9,672.00",Alternative Communication Systems
http://statistics.data.gov.uk/id/local-authority/38,Oxfordshire County Council,PD COMM SUPP WITNEY,5899,Social Care - Direct Payments,17/05/2017,3110226484,928,Redacted Personal Data
http://statistics.data.gov.uk/id/local-authority/38,Oxfordshire County Council,Care Packages & Placements- Older People,5899,Social Care - Direct Payments,17/05/2017,3110226573,984,Redacted Personal Data
http://statistics.data.gov.uk/id/local-authority/38,Oxfordshire County Council,PD COMM SUPP AB'DON,5689,,03/05/2017,3110221098,525.84,Amber Healthcare Personnel Ltd
http://statistics.data.gov.uk/id/local-authority/38,Oxfordshire County Council,CSB - ABINGDON,5689,,31/05/2017,3110230641,559.5,Amber Healthcare Personnel Ltd
http://statistics.data.gov.uk/id/local-authority/38,Oxfordshire County Council,PD COMM SUPP AB'DON,5689,,03/05/2017,3110221099,564.01,Amber Healthcare Personnel Ltd
http://statistics.data.gov.uk/id/local-authority/38,Oxfordshire County Council,CSB - ABINGDON,5689,,03/05/2017,3110221064,571.56,Amber Healthcare Personnel Ltd
http://statistics.data.gov.uk/id/local-authority/38,Oxfordshire County Council,CSB - ABINGDON,5689,,31/05/2017,3110230637,581.75,Amber Healthcare Personnel Ltd
http://statistics.data.gov.uk/id/local-authority/38,Oxfordshire County Council,Care Packages & Placements- Older People,5689,,31/05/2017,3110230659,581.81,Amber Healthcare Personnel Ltd
http://statistics.data.gov.uk/id/local-authority/38,Oxfordshire County Council,CSB - ABINGDON,5689,,03/05/2017,3110221060,585.63,Amber Healthcare Personnel Ltd
http://statistics.data.gov.uk/id/local-authority/38,Oxfordshire County Council,CSB - ABINGDON,5689,,31/05/2017,3110230642,594.49,Amber Healthcare Personnel Ltd
http://statistics.data.gov.uk/id/local-authority/38,Oxfordshire County Council,CSB - ABINGDON,5689,,03/05/2017,3110221059,598.55,Amber Healthcare Personnel Ltd
http://statistics.data.gov.uk/id/local-authority/38,Oxfordshire County Council,Care Packages & Placements- Older People,5689,,03/05/2017,3110221080,601.13,Amber Healthcare Personnel Ltd
http://statistics.data.gov.uk/id/local-authority/38,Oxfordshire County Council,CSB - ABINGDON,5689,,03/05/2017,3110221065,609.26,Amber Healthcare Personnel Ltd
http://statistics.data.gov.uk/id/local-authority/38,Oxfordshire County Council,Care Packages & Placements- Older People,5689,,03/05/2017,3110221089,660.86,Amber Healthcare Personnel Ltd
http://statistics.data.gov.uk/id/local-authority/38,Oxfordshire County Council,Care Packages & Placements- Older People,5689,,31/05/2017,3110230653,684.43,Amber Healthcare Personnel Ltd
http://statistics.data.gov.uk/id/local-authority/38,Oxfordshire County Council,Care Packages & Placements- Older People,5689,,31/05/2017,3110230668,687.49,Amber Healthcare Personnel Ltd
http://statistics.data.gov.uk/id/local-authority/38,Oxfordshire County Council,Care Packages & Placements- Older People,5689,,03/05/2017,3110221076,696.04,Amber Healthcare Personnel Ltd
http://statistics.data.gov.uk/id/local-authority/38,Oxfordshire County Council,CSB - ABINGDON,5689,,31/05/2017,3110230649,701.97,Amber Healthcare Personnel Ltd
http://statistics.data.gov.uk/id/local-authority/38,Oxfordshire County Council,Care Packages & Placements- Older People,5689,,31/05/2017,3110230656,759.01,Amber Healthcare Personnel Ltd
http://statistics.data.gov.uk/id/local-authority/38,Oxfordshire County Council,Care Packages & Placements- Older People,5689,,03/05/2017,3110221077,763.14,Amber Healthcare Personnel Ltd
http://statistics.data.gov.uk/id/local-authority/38,Oxfordshire County Council,PD COMM SUPP AB'DON,5689,,03/05/2017,3110221100,813.44,Amber Healthcare Personnel Ltd
http://statistics.data.gov.uk/id/local-authority/38,Oxfordshire County Council,Care Packages & Placements- PD - OCC,5689,,03/05/2017,3110221093,818.94,Amber Healthcare Personnel Ltd
http://statistics.data.gov.uk/id/local-authority/38,Oxfordshire County Council,CSB - ABINGDON,5689,,03/05/2017,3110221067,820.84,Amber Healthcare Personnel Ltd
http://statistics.data.gov.uk/id/local-authority/38,Oxfordshire County Council,Care Packages & Placements- Older People,5689,,03/05/2017,3110221078,858.72,Amber Healthcare Personnel Ltd
http://statistics.data.gov.uk/id/local-authority/38,Oxfordshire County Council,Care Packages & Placements- Older People,5689,,31/05/2017,3110230657,897.51,Amber Healthcare Personnel Ltd
http://statistics.data.gov.uk/id/local-authority/38,Oxfordshire County Council,Care Packages & Placements- PD - OCC,5689,,03/05/2017,3110221091,989.47,Amber Healthcare Personnel Ltd
http://statistics.data.gov.uk/id/local-authority/38,Oxfordshire County Council,Care Packages & Placements- Older People,5689,,03/05/2017,3110221079,998.12,Amber Healthcare Personnel Ltd
http://statistics.data.gov.uk/id/local-authority/38,Oxfordshire County Council,Care Packages & Placements- Older People,5689,,31/05/2017,3110230658,"1,029.94",Amber Healthcare Personnel Ltd
http://statistics.data.gov.uk/id/local-authority/38,Oxfordshire County Council,CSB - ABINGDON,5689,,31/05/2017,3110230633,"1,052.27",Amber Healthcare Personnel Ltd
http://statistics.data.gov.uk/id/local-authority/38,Oxfordshire County Council,Care Packages & Placements- Older People,5689,,31/05/2017,3110230665,"1,111.58",Amber Healthcare Personnel Ltd
http://statistics.data.gov.uk/id/local-authority/38,Oxfordshire County Council,Care Packages & Placements- Older People,5689,,03/05/2017,3110221088,"1,157.94",Amber Healthcare Personnel Ltd
http://statistics.data.gov.uk/id/local-authority/38,Oxfordshire County Council,Care Packages & Placements- Older People,5689,,31/05/2017,3110230667,"1,166.52",Amber Healthcare Personnel Ltd
http://statistics.data.gov.uk/id/local-authority/38,Oxfordshire County Council,CSB - ABINGDON,5689,,31/05/2017,3110230638,"1,173.58",Amber Healthcare Personnel Ltd
http://statistics.data.gov.uk/id/local-authority/38,Oxfordshire County Council,CSB - ABINGDON,5689,,03/05/2017,3110221061,"1,180.10",Amber Healthcare Personnel Ltd
http://statistics.data.gov.uk/id/local-authority/38,Oxfordshire County Council,Care Packages & Placements- Older People,5689,,03/05/2017,3110221084,"1,180.33",Amber Healthcare Personnel Ltd
http://statistics.data.gov.uk/id/local-authority/38,Oxfordshire County Council,Care Packages & Placements- Older People,5689,,03/05/2017,3110221086,"1,182.04",Amber Healthcare Personnel Ltd
http://statistics.data.gov.uk/id/local-authority/38,Oxfordshire County Council,Care Packages & Placements- Older People,5689,,31/05/2017,3110230663,"1,190.06",Amber Healthcare Personnel Ltd
http://statistics.data.gov.uk/id/local-authority/38,Oxfordshire County Council,Care Packages & Placements- PD - OCC,5689,,31/05/2017,3110230674,"1,192.78",Amber Healthcare Personnel Ltd
http://statistics.data.gov.uk/id/local-authority/38,Oxfordshire County Council,Care Packages & Placements- PD - OCC,5689,,03/05/2017,3110221095,"1,205.66",Amber Healthcare Personnel Ltd
http://statistics.data.gov.uk/id/local-authority/38,Oxfordshire County Council,Care Packages & Placements- LD - OCC,5689,,31/05/2017,3110230678,"1,254.50",Amber Healthcare Personnel Ltd
http://statistics.data.gov.uk/id/local-authority/38,Oxfordshire County Council,Care Packages & Placements- PD - OCC,5689,,31/05/2017,3110230672,"1,427.24",Amber Healthcare Personnel Ltd
http://statistics.data.gov.uk/id/local-authority/38,Oxfordshire County Council,CSB - ABINGDON,5689,,03/05/2017,3110221062,"1,468.73",Amber Healthcare Personnel Ltd
http://statistics.data.gov.uk/id/local-authority/38,Oxfordshire County Council,CSB - ABINGDON,5689,,31/05/2017,3110230639,"1,483.98",Amber Healthcare Personnel Ltd
http://statistics.data.gov.uk/id/local-authority/38,Oxfordshire County Council,Care Packages & Placements- Older People,5689,,31/05/2017,3110230662,"1,495.34",Amber Healthcare Personnel Ltd
http://statistics.data.gov.uk/id/local-authority/38,Oxfordshire County Council,Care Packages & Placements- Older People,5689,,03/05/2017,3110221082,"1,522.19",Amber Healthcare Personnel Ltd
http://statistics.data.gov.uk/id/local-authority/38,Oxfordshire County Council,Care Packages & Placements- Older People,5689,,31/05/2017,3110230670,"1,740.03",Amber Healthcare Personnel Ltd
http://statistics.data.gov.uk/id/local-authority/38,Oxfordshire County Council,CSB - ABINGDON,5689,,03/05/2017,3110221072,"1,804.95",Amber Healthcare Personnel Ltd
http://statistics.data.gov.uk/id/local-authority/38,Oxfordshire County Council,PD COMM SUPP AB'DON,5689,,03/05/2017,3110221097,"2,619.10",Amber Healthcare Personnel Ltd
http://statistics.data.gov.uk/id/local-authority/38,Oxfordshire County Council,PD COMM SUPP AB'DON,5689,,31/05/2017,3110230679,"2,651.44",Amber Healthcare Personnel Ltd
http://statistics.data.gov.uk/id/local-authority/38,Oxfordshire County Council,CSB - ABINGDON,5689,,31/05/2017,3110230648,"2,661.97",Amber Healthcare Personnel Ltd
http://statistics.data.gov.uk/id/local-authority/38,Oxfordshire County Council,CSB - ABINGDON,5689,,03/05/2017,3110221071,"2,717.39",Amber Healthcare Personnel Ltd
http://statistics.data.gov.uk/id/local-authority/38,Oxfordshire County Council,CSB - ABINGDON,5689,,31/05/2017,3110230643,"2,736.92",Amber Healthcare Personnel Ltd
http://statistics.data.gov.uk/id/local-authority/38,Oxfordshire County Council,CSB - ABINGDON,5689,,03/05/2017,3110221066,"2,766.63",Amber Healthcare Personnel Ltd
http://statistics.data.gov.uk/id/local-authority/38,Oxfordshire County Council,CSB - ABINGDON,5689,,03/05/2017,3110221074,"3,024.25",Amber Healthcare Personnel Ltd
http://statistics.data.gov.uk/id/local-authority/38,Oxfordshire County Council,CSB - ABINGDON,5689,,31/05/2017,3110230650,"3,104.04",Amber Healthcare Personnel Ltd
http://statistics.data.gov.uk/id/local-authority/38,Oxfordshire County Council,CMPB WITNEY,5689,,11/05/2017,3110223964,"5,336.00",Amber Healthcare Personnel Ltd
http://statistics.data.gov.uk/id/local-authority/38,Oxfordshire County Council,COMM DRAWDOWN FUNDNG,8004,Design Consultant,08/05/2017,2200348300,"3,704.00",AMEC Foster Wheeler Environment &
http://statistics.data.gov.uk/id/local-authority/38,Oxfordshire County Council,COMM DRAWDOWN FUNDNG,8004,Design Consultant,09/05/2017,2200348573,"7,615.00",AMEC Foster Wheeler Environment &
http://statistics.data.gov.uk/id/local-authority/38,Oxfordshire County Council,COMM DRAWDOWN FUNDNG,8004,Design Consultant,04/05/2017,2200346396,"10,000.00",AMEC Foster Wheeler Environment &
http://statistics.data.gov.uk/id/local-authority/38,Oxfordshire County Council,Mainstream Res,5558,,08/05/2017,2200348242,"15,800.00",Amegreen Children's Services Ltd
http://statistics.data.gov.uk/id/local-authority/38,Oxfordshire County Council,COMM DRAWDOWN FUNDNG,8102,Payments to main contractor,30/05/2017,2200358542,"73,501.21",Amey OW Ltd
http://statistics.data.gov.uk/id/local-authority/38,Oxfordshire County Council,LD CLIENTS SOUTH,5899,Social Care - Direct Payments,17/05/2017,3110226304,"2,171.48",Redacted Personal Data
http://statistics.data.gov.uk/id/local-authority/38,Oxfordshire County Council,RESIDENTIAL TREATMEN,5686,,18/05/2017,2200354641,"1,260.00",ANA
http://statistics.data.gov.uk/id/local-authority/38,Oxfordshire County Council,RESIDENTIAL TREATMEN,5686,,22/05/2017,2200355316,"2,571.43",ANA
http://statistics.data.gov.uk/id/local-authority/38,Oxfordshire County Council,RESIDENTIAL TREATMEN,5686,,18/05/2017,2200354640,"2,752.11",ANA
http://statistics.data.gov.uk/id/local-authority/38,Oxfordshire County Council,RESIDENTIAL TREATMEN,5686,,22/05/2017,2200355315,"2,837.06",ANA
http://statistics.data.gov.uk/id/local-authority/38,Oxfordshire County Council,Care Packages & Placements- Older People,5899,Social Care - Direct Payments,17/05/2017,3110226612,925.88,Redacted Personal Data
http://statistics.data.gov.uk/id/local-authority/38,Oxfordshire County Council,SM DISABILITIES,5899,Social Care - Direct Payments,26/05/2017,3110229813,564.2,Redacted Personal Data
http://statistics.data.gov.uk/id/local-authority/38,Oxfordshire County Council,Care Packages & Placements- PD - OCC,5899,Social Care - Direct Payments,17/05/2017,3110226350,"2,156.72",Redacted Personal Data
http://statistics.data.gov.uk/id/local-authority/38,Oxfordshire County Council,Care Packages & Placements- PD - OCC,5899,Social Care - Direct Payments,17/05/2017,3110225686,"5,250.80",Redacted Personal Data
http://statistics.data.gov.uk/id/local-authority/38,Oxfordshire County Council,Mental Health Clients,5899,Social Care - Direct Payments,17/05/2017,3110226488,605.08,Redacted Personal Data
http://statistics.data.gov.uk/id/local-authority/38,Oxfordshire County Council,TVERC,4494,Purchase of IT Equipment,05/05/2017,2200347688,"1,136.90",Andy Foy Consulting
http://statistics.data.gov.uk/id/local-authority/38,Oxfordshire County Council,"Rose Hill CC, The Oval",4477,Catering Equipment,24/05/2017,2200356894,534.19,Angel Springs Ltd
http://statistics.data.gov.uk/id/local-authority/38,Oxfordshire County Council,PD COMM SUPP BANB,5899,Social Care - Direct Payments,17/05/2017,3110225763,"1,833.60",Angela  Breeze
http://statistics.data.gov.uk/id/local-authority/38,Oxfordshire County Council,PD COMM SUPP BANB,5899,Social Care - Direct Payments,17/05/2017,3110226338,"1,402.80",Angela Prince
http://statistics.data.gov.uk/id/local-authority/38,Oxfordshire County Council,Care Packages & Placements- LD - OCC,4330,Transport to School Activities,22/05/2017,3110227949,575,Angelas Travel
http://statistics.data.gov.uk/id/local-authority/38,Oxfordshire County Council,POST 16 SEN,4330,Transport to School Activities,22/05/2017,3110227950,575,Angelas Travel
http://statistics.data.gov.uk/id/local-authority/38,Oxfordshire County Council,SEN TRANSPORT,4330,Transport to School Activities,22/05/2017,3110227944,600,Angelas Travel
http://statistics.data.gov.uk/id/local-authority/38,Oxfordshire County Council,SEN TRANSPORT,4330,Transport to School Activities,22/05/2017,3110227939,623.25,Angelas Travel
http://statistics.data.gov.uk/id/local-authority/38,Oxfordshire County Council,MAINSTREAM-SECONDARY,4330,Transport to School Activities,22/05/2017,3110227948,642.35,Angelas Travel
http://statistics.data.gov.uk/id/local-authority/38,Oxfordshire County Council,SEN TRANSPORT,4330,Transport to School Activities,22/05/2017,3110227942,740,Angelas Travel
http://statistics.data.gov.uk/id/local-authority/38,Oxfordshire County Council,SEN TRANSPORT,4330,Transport to School Activities,22/05/2017,3110227938,949,Angelas Travel
http://statistics.data.gov.uk/id/local-authority/38,Oxfordshire County Council,SEN TRANSPORT,4330,Transport to School Activities,22/05/2017,3110227946,987.4,Angelas Travel
http://statistics.data.gov.uk/id/local-authority/38,Oxfordshire County Council,FOSTERING MAIN,5548,B*Fostering - Special Rates & Plus Amou,03/05/2017,3110221938,732.44,Redacted Personal Data
http://statistics.data.gov.uk/id/local-authority/38,Oxfordshire County Council,FOSTERING MAIN,5548,B*Fostering - Special Rates & Plus Amou,10/05/2017,3110223705,732.44,Redacted Personal Data
http://statistics.data.gov.uk/id/local-authority/38,Oxfordshire County Council,FOSTERING MAIN,5548,B*Fostering - Special Rates & Plus Amou,24/05/2017,3110229516,732.44,Redacted Personal Data
http://statistics.data.gov.uk/id/local-authority/38,Oxfordshire County Council,FOSTERING MAIN,5548,B*Fostering - Special Rates & Plus Amou,31/05/2017,3110230506,732.44,Redacted Personal Data
http://statistics.data.gov.uk/id/local-authority/38,Oxfordshire County Council,FPT NORTH,4525,Furniture,17/05/2017,3110225613,"1,303.38",Redacted Personal Data
http://statistics.data.gov.uk/id/local-authority/38,Oxfordshire County Council,Care Packages & Placements- Older People,5899,Social Care - Direct Payments,17/05/2017,3110226550,"2,596.00",Redacted Personal Data
http://statistics.data.gov.uk/id/local-authority/38,Oxfordshire County Council,PD COMM SUPP BANB,5899,Social Care - Direct Payments,17/05/2017,3110225809,647.48,Redacted Personal Data
http://statistics.data.gov.uk/id/local-authority/38,Oxfordshire County Council,CSB - BANBURY,5899,Social Care - Direct Payments,17/05/2017,3110226012,"4,258.44",Redacted Personal Data
http://statistics.data.gov.uk/id/local-authority/38,Oxfordshire County Council,PD COMM SUPP AB'DON,5899,Social Care - Direct Payments,17/05/2017,3110225962,"1,367.12",Redacted Personal Data
http://statistics.data.gov.uk/id/local-authority/38,Oxfordshire County Council,LD CLIENTS SOUTH,5899,Social Care - Direct Payments,17/05/2017,3110225817,"3,337.60",Redacted Personal Data
http://statistics.data.gov.uk/id/local-authority/38,Oxfordshire County Council,CSB - BANBURY,5899,Social Care - Direct Payments,17/05/2017,3110226166,"5,412.00",Redacted Personal Data
http://statistics.data.gov.uk/id/local-authority/38,Oxfordshire County Council,LD CLIENTS SOUTH,5899,Social Care - Direct Payments,17/05/2017,3110226230,768,Redacted Personal Data
http://statistics.data.gov.uk/id/local-authority/38,Oxfordshire County Council,Mental Health Clients,5691,,31/05/2017,3110231598,"2,009.96",Redacted Personal Data
http://statistics.data.gov.uk/id/local-authority/38,Oxfordshire County Council,Young Peoples Service,5195,Grant Aid and Donations,10/05/2017,3500029501,"28,333.33",Aquarius Action Projects
http://statistics.data.gov.uk/id/local-authority/38,Oxfordshire County Council,Young Peoples Service,5195,Grant Aid and Donations,27/05/2017,3500029832,"28,333.33",Aquarius Action Projects
http://statistics.data.gov.uk/id/local-authority/38,Oxfordshire County Council,FOSTERING MAIN,5549,B*Fostering Allowance - Regulation 38,03/05/2017,3110221762,525.35,Redacted Personal Data
http://statistics.data.gov.uk/id/local-authority/38,Oxfordshire County Council,FOSTERING MAIN,5549,B*Fostering Allowance - Regulation 38,10/05/2017,3110223618,525.35,Redacted Personal Data
http://statistics.data.gov.uk/id/local-authority/38,Oxfordshire County Council,FOSTERING MAIN,5549,B*Fostering Allowance - Regulation 38,17/05/2017,3110225526,525.35,Redacted Personal Data
http://statistics.data.gov.uk/id/local-authority/38,Oxfordshire County Council,FOSTERING MAIN,5549,B*Fostering Allowance - Regulation 38,24/05/2017,3110229347,525.35,Redacted Personal Data
http://statistics.data.gov.uk/id/local-authority/38,Oxfordshire County Council,FOSTERING MAIN,5549,B*Fostering Allowance - Regulation 38,31/05/2017,3110230418,525.35,Redacted Personal Data
http://statistics.data.gov.uk/id/local-authority/38,Oxfordshire County Council,OUT OF COUNTY,5500,Payments to Other Local Authorities,24/05/2017,2200357065,"10,417.00",Arbourvale School
http://statistics.data.gov.uk/id/local-authority/38,Oxfordshire County Council,OUT OF COUNTY,5500,Payments to Other Local Authorities,24/05/2017,2200357081,"25,000.00",Arbourvale School
http://statistics.data.gov.uk/id/local-authority/38,Oxfordshire County Council,ContrO ASC Payments Control Account,5899,Social Care - Direct Payments,26/05/2017,3110229880,"5,063.89",Redacted Personal Data
http://statistics.data.gov.uk/id/local-authority/38,Oxfordshire County Council,REAL TIME BUS INFO,3945,Rent,26/05/2017,2200357895,"-5,541.12",Arqiva Limited
http://statistics.data.gov.uk/id/local-authority/38,Oxfordshire County Council,REAL TIME BUS INFO,3945,Rent,24/05/2017,2200356616,"9,818.00",Arqiva Limited
http://statistics.data.gov.uk/id/local-authority/38,Oxfordshire County Council,S38 INSPECT & OTHER,4531,Materials,10/05/2017,2200349754,"21,978.50",Arriva Trains Holdings Ltd
http://statistics.data.gov.uk/id/local-authority/38,Oxfordshire County Council,S38 INSPECT & OTHER,4531,Materials,17/05/2017,2200353959,"21,978.50",Arriva Trains Holdings Ltd
http://statistics.data.gov.uk/id/local-authority/38,Oxfordshire County Council,TRANSPORT COSTS,5227,Other Transport Arrangements,10/05/2017,3110223913,600,Ash Cars (UK) Ltd
http://statistics.data.gov.uk/id/local-authority/38,Oxfordshire County Council,North FSS Statutory - Witney,4330,Transport to School Activities,10/05/2017,3110223885,855,Ash Cars (UK) Ltd
http://statistics.data.gov.uk/id/local-authority/38,Oxfordshire County Council,Mental Health Clients,5691,,16/05/2017,3110225169,"1,922.00",Ashamber Homes Limited
http://statistics.data.gov.uk/id/local-authority/38,Oxfordshire County Council,CSB - CITY,5688,,11/05/2017,3110224440,"8,269.87",Ashamber Homes Limited
http://statistics.data.gov.uk/id/local-authority/38,Oxfordshire County Council,CARE HOME SPOT CITY,5686,,11/05/2017,3110224197,"16,991.90",Ashamber Homes Limited
http://statistics.data.gov.uk/id/local-authority/38,Oxfordshire County Council,LD CLIENTS NORTH,5686,,11/05/2017,3110224216,"6,379.14",Ashgrange House
http://statistics.data.gov.uk/id/local-authority/38,Oxfordshire County Council,LD CLIENTS SOUTH,5899,Social Care - Direct Payments,17/05/2017,3110225699,"3,339.32",Redacted Personal Data
http://statistics.data.gov.uk/id/local-authority/38,Oxfordshire County Council,LIBRARY COLLECTIONS,4539,"Books, DVDs and CDs",18/05/2017,3110227681,514.76,ASKEWS & HOLTS LIBRARY SERVICES LTD
http://statistics.data.gov.uk/id/local-authority/38,Oxfordshire County Council,LIBRARY COLLECTIONS,4539,"Books, DVDs and CDs",08/05/2017,3110223073,546.78,ASKEWS & HOLTS LIBRARY SERVICES LTD
http://statistics.data.gov.uk/id/local-authority/38,Oxfordshire County Council,LIBRARY COLLECTIONS,4539,"Books, DVDs and CDs",03/05/2017,3110223064,630.94,ASKEWS & HOLTS LIBRARY SERVICES LTD
http://statistics.data.gov.uk/id/local-authority/38,Oxfordshire County Council,LIBRARY COLLECTIONS,4539,"Books, DVDs and CDs",08/05/2017,3110223063,674.9,ASKEWS & HOLTS LIBRARY SERVICES LTD
http://statistics.data.gov.uk/id/local-authority/38,Oxfordshire County Council,LIBRARY COLLECTIONS,4539,"Books, DVDs and CDs",18/05/2017,3110227688,685.98,ASKEWS & HOLTS LIBRARY SERVICES LTD
http://statistics.data.gov.uk/id/local-authority/38,Oxfordshire County Council,LIBRARY COLLECTIONS,4539,"Books, DVDs and CDs",18/05/2017,3110227679,715.95,ASKEWS & HOLTS LIBRARY SERVICES LTD
http://statistics.data.gov.uk/id/local-authority/38,Oxfordshire County Council,LIBRARY COLLECTIONS,4539,"Books, DVDs and CDs",03/05/2017,3110222997,737.39,ASKEWS & HOLTS LIBRARY SERVICES LTD
http://statistics.data.gov.uk/id/local-authority/38,Oxfordshire County Council,LIBRARY COLLECTIONS,4539,"Books, DVDs and CDs",18/05/2017,3110227664,756.41,ASKEWS & HOLTS LIBRARY SERVICES LTD
http://statistics.data.gov.uk/id/local-authority/38,Oxfordshire County Council,LIBRARY COLLECTIONS,4539,"Books, DVDs and CDs",08/05/2017,3110223052,793.92,ASKEWS & HOLTS LIBRARY SERVICES LTD
http://statistics.data.gov.uk/id/local-authority/38,Oxfordshire County Council,LIBRARY COLLECTIONS,4539,"Books, DVDs and CDs",18/05/2017,3110227663,849.32,ASKEWS & HOLTS LIBRARY SERVICES LTD
http://statistics.data.gov.uk/id/local-authority/38,Oxfordshire County Council,LIBRARY COLLECTIONS,4539,"Books, DVDs and CDs",03/05/2017,3110223084,"1,620.00",ASKEWS & HOLTS LIBRARY SERVICES LTD
http://statistics.data.gov.uk/id/local-authority/38,Oxfordshire County Council,LD CLIENTS NORTH,5691,,10/05/2017,2200349399,"2,436.00",Aspirations
http://statistics.data.gov.uk/id/local-authority/38,Oxfordshire County Council,LD CLIENTS CITY,5688,,11/05/2017,3110224446,"8,011.29",Aspirations
http://statistics.data.gov.uk/id/local-authority/38,Oxfordshire County Council,LD CLIENTS NORTH,5688,,11/05/2017,3110224452,"4,597.92",Aspirations (North West Adults)
http://statistics.data.gov.uk/id/local-authority/38,Oxfordshire County Council,HILL END,4070,Cleaning services,12/05/2017,2200351300,674.05,Aspire Oxfordshire
http://statistics.data.gov.uk/id/local-authority/38,Oxfordshire County Council,RESOURCE EFFICIENCY,4835,Management Consultant Fees,05/05/2017,2200347616,"2,750.00",Asset Utilities
http://statistics.data.gov.uk/id/local-authority/38,Oxfordshire County Council,RESOURCE EFFICIENCY,4835,Management Consultant Fees,05/05/2017,2200347615,"3,250.00",Asset Utilities
http://statistics.data.gov.uk/id/local-authority/38,Oxfordshire County Council,Corp Proc Service,4495,IT Software,05/05/2017,2200347327,"-29,250.00",Atamis Ltd
http://statistics.data.gov.uk/id/local-authority/38,Oxfordshire County Council,Corp Proc Service,4495,IT Software,05/05/2017,2200347396,"-29,250.00",Atamis Ltd
http://statistics.data.gov.uk/id/local-authority/38,Oxfordshire County Council,Corp Proc Service,4495,IT Software,02/05/2017,2200344855,750,Atamis Ltd
http://statistics.data.gov.uk/id/local-authority/38,Oxfordshire County Council,Corp Proc Service,4495,IT Software,02/05/2017,3110220775,"1,462.50",Atamis Ltd
http://statistics.data.gov.uk/id/local-authority/38,Oxfordshire County Council,Corp Proc Service,4495,IT Software,05/05/2017,2200347329,"29,250.00",Atamis Ltd
http://statistics.data.gov.uk/id/local-authority/38,Oxfordshire County Council,Corp Proc Service,4495,IT Software,05/05/2017,2200347395,"29,250.00",Atamis Ltd
http://statistics.data.gov.uk/id/local-authority/38,Oxfordshire County Council,RISING BOLLARDS,5526,Payments to Private Contractors,12/05/2017,2200351156,"4,358.02",ATG ACCESS LTD
http://statistics.data.gov.uk/id/local-authority/38,Oxfordshire County Council,ITS PROJECTS,5668,Technical and Professional Consultant F,04/05/2017,2200347015,"1,490.00",ATKINS LIMITED
http://statistics.data.gov.uk/id/local-authority/38,Oxfordshire County Council,Oxfordshire Growth Board,4861,Hired and Contracted Services,17/05/2017,2200353434,"6,759.27",ATKINS LIMITED
http://statistics.data.gov.uk/id/local-authority/38,Oxfordshire County Council,OXFORD LOCALITY,4861,Hired and Contracted Services,31/05/2017,2200358780,"20,985.00",ATKINS LIMITED
http://statistics.data.gov.uk/id/local-authority/38,Oxfordshire County Council,FLEET MAINTENANCE,4220,Vehicle Workshop Spares and Consumables,24/05/2017,2200356970,"4,600.00",Auden Funeral Supplies Limited
http://statistics.data.gov.uk/id/local-authority/38,Oxfordshire County Council,OUT OF COUNTY,5537,Payments to Other Establishments,04/05/2017,2200346494,"58,333.25",Aurora Meldreth Manor
http://statistics.data.gov.uk/id/local-authority/38,Oxfordshire County Council,OUT OF COUNTY,5537,Payments to Other Establishments,04/05/2017,2200346444,"60,438.56",Aurora Meldreth Manor
http://statistics.data.gov.uk/id/local-authority/38,Oxfordshire County Council,Care Packages & Placements- Older People,5687,,11/05/2017,3110224038,"3,427.49",AUSTEN HOUSE
http://statistics.data.gov.uk/id/local-authority/38,Oxfordshire County Council,LD CLIENTS NORTH,5686,,11/05/2017,3110224238,"21,770.81",Autism Care (Bedford) Ltd
http://statistics.data.gov.uk/id/local-authority/38,Oxfordshire County Council,LD CLIENTS NORTH,5688,,11/05/2017,3110224454,"8,150.70",AUTISM CARE (UK) LTD
http://statistics.data.gov.uk/id/local-authority/38,Oxfordshire County Council,OCC ELECTIONS,4495,IT Software,15/05/2017,2200352117,"7,800.00",Avco Systems Ltd
http://statistics.data.gov.uk/id/local-authority/38,Oxfordshire County Council,CSB - CITY,5899,Social Care - Direct Payments,10/05/2017,3110223733,"-9,179.75",Redacted Personal Data
http://statistics.data.gov.uk/id/local-authority/38,Oxfordshire County Council,Care Packages & Placements- Older People,5899,Social Care - Direct Payments,17/05/2017,3110225944,"3,120.00",Redacted Personal Data
http://statistics.data.gov.uk/id/local-authority/38,Oxfordshire County Council,Care Packages & Placements- Older People,5899,Social Care - Direct Payments,10/05/2017,3110223736,"11,254.29",Redacted Personal Data
http://statistics.data.gov.uk/id/local-authority/38,Oxfordshire County Council,OPPB FAST TRACK,5687,,11/05/2017,3110224268,"11,332.72",Avondale Care Home
http://statistics.data.gov.uk/id/local-authority/38,Oxfordshire County Council,CSB - BANBURY,5689,,03/05/2017,3110221988,515.42,AVR (Oxon) Ltd
http://statistics.data.gov.uk/id/local-authority/38,Oxfordshire County Council,PD COMM SUPP BANB,5689,,03/05/2017,3110222000,523.13,AVR (Oxon) Ltd
http://statistics.data.gov.uk/id/local-authority/38,Oxfordshire County Council,Care Packages & Placements- Older People,5689,,03/05/2017,3110221995,532.23,AVR (Oxon) Ltd
http://statistics.data.gov.uk/id/local-authority/38,Oxfordshire County Council,PD COMM SUPP BANB,5689,,31/05/2017,3110231300,558.33,AVR (Oxon) Ltd
http://statistics.data.gov.uk/id/local-authority/38,Oxfordshire County Council,CSB - BANBURY,5689,,03/05/2017,3110221982,578.36,AVR (Oxon) Ltd
http://statistics.data.gov.uk/id/local-authority/38,Oxfordshire County Council,CSB - BANBURY,5689,,31/05/2017,3110231288,600.08,AVR (Oxon) Ltd
http://statistics.data.gov.uk/id/local-authority/38,Oxfordshire County Council,Care Packages & Placements- Older People,5689,,31/05/2017,3110231296,609.91,AVR (Oxon) Ltd
http://statistics.data.gov.uk/id/local-authority/38,Oxfordshire County Council,Care Packages & Placements- Older People,5689,,03/05/2017,3110221992,766.87,AVR (Oxon) Ltd
http://statistics.data.gov.uk/id/local-authority/38,Oxfordshire County Council,Care Packages & Placements- Older People,5689,,31/05/2017,3110231292,779.63,AVR (Oxon) Ltd
http://statistics.data.gov.uk/id/local-authority/38,Oxfordshire County Council,Care Packages & Placements- Older People,5689,,03/05/2017,3110221996,"1,042.88",AVR (Oxon) Ltd
http://statistics.data.gov.uk/id/local-authority/38,Oxfordshire County Council,Care Packages & Placements- Older People,5689,,31/05/2017,3110231297,"1,049.33",AVR (Oxon) Ltd
http://statistics.data.gov.uk/id/local-authority/38,Oxfordshire County Council,Care Packages & Placements- PD - OCC,5689,,31/05/2017,3110231299,"1,101.39",AVR (Oxon) Ltd
http://statistics.data.gov.uk/id/local-authority/38,Oxfordshire County Council,Care Packages & Placements- Older People,5689,,03/05/2017,3110221994,"1,154.04",AVR (Oxon) Ltd
http://statistics.data.gov.uk/id/local-authority/38,Oxfordshire County Council,CSB - BANBURY,5689,,31/05/2017,3110231289,"1,202.66",AVR (Oxon) Ltd
http://statistics.data.gov.uk/id/local-authority/38,Oxfordshire County Council,Care Packages & Placements- Older People,5689,,31/05/2017,3110231295,"1,222.76",AVR (Oxon) Ltd
http://statistics.data.gov.uk/id/local-authority/38,Oxfordshire County Council,CSB - BANBURY,5689,,31/05/2017,3110231285,"1,238.43",AVR (Oxon) Ltd
http://statistics.data.gov.uk/id/local-authority/38,Oxfordshire County Council,CSB - BANBURY,5689,,03/05/2017,3110221989,"1,256.51",AVR (Oxon) Ltd
http://statistics.data.gov.uk/id/local-authority/38,Oxfordshire County Council,CSB - BANBURY,5689,,03/05/2017,3110221985,"1,265.22",AVR (Oxon) Ltd
http://statistics.data.gov.uk/id/local-authority/38,Oxfordshire County Council,CSB - BANBURY,5689,,31/05/2017,3110231283,"1,465.61",AVR (Oxon) Ltd
http://statistics.data.gov.uk/id/local-authority/38,Oxfordshire County Council,Care Packages & Placements- Older People,5689,,31/05/2017,3110231293,"1,526.29",AVR (Oxon) Ltd
http://statistics.data.gov.uk/id/local-authority/38,Oxfordshire County Council,CSB - BANBURY,5689,,03/05/2017,3110221983,"1,549.33",AVR (Oxon) Ltd
http://statistics.data.gov.uk/id/local-authority/38,Oxfordshire County Council,CSB - BANBURY,5689,,03/05/2017,3110221987,"1,945.49",AVR (Oxon) Ltd
http://statistics.data.gov.uk/id/local-authority/38,Oxfordshire County Council,CSB - BANBURY,5689,,31/05/2017,3110231287,"1,995.99",AVR (Oxon) Ltd
http://statistics.data.gov.uk/id/local-authority/38,Oxfordshire County Council,Care Packages & Placements- Older People,5689,,31/05/2017,3110231291,"2,256.55",AVR (Oxon) Ltd
http://statistics.data.gov.uk/id/local-authority/38,Oxfordshire County Council,Care Packages & Placements- Older People,5689,,03/05/2017,3110221991,"2,306.03",AVR (Oxon) Ltd
http://statistics.data.gov.uk/id/local-authority/38,Oxfordshire County Council,Care Packages & Placements- PD - OCC,5689,,03/05/2017,3110221998,"2,596.16",AVR (Oxon) Ltd
http://statistics.data.gov.uk/id/local-authority/38,Oxfordshire County Council,COMM DRAWDOWN FUNDNG,8102,Payments to main contractor,26/05/2017,2200358146,575,Aylesbury Mains
http://statistics.data.gov.uk/id/local-authority/38,Oxfordshire County Council,COMM DRAWDOWN FUNDNG,8102,Payments to main contractor,17/05/2017,2200353855,835.83,Aylesbury Mains
http://statistics.data.gov.uk/id/local-authority/38,Oxfordshire County Council,COMM DRAWDOWN FUNDNG,8102,Payments to main contractor,18/05/2017,2200354547,"3,890.14",Aylesbury Mains
http://statistics.data.gov.uk/id/local-authority/38,Oxfordshire County Council,LD CLIENTS NORTH,5899,Social Care - Direct Payments,17/05/2017,3110226247,"2,600.00",Redacted Personal Data
http://statistics.data.gov.uk/id/local-authority/38,Oxfordshire County Council,Care Packages & Placements- OP Health,5691,,12/05/2017,3110224946,511.65,B CARERS LTD
http://statistics.data.gov.uk/id/local-authority/38,Oxfordshire County Council,Care Packages & Placements- OP Health,5691,,12/05/2017,3110224947,511.65,B CARERS LTD
http://statistics.data.gov.uk/id/local-authority/38,Oxfordshire County Council,Care Packages & Placements- OP Health,5691,,12/05/2017,3110225005,511.65,B CARERS LTD
http://statistics.data.gov.uk/id/local-authority/38,Oxfordshire County Council,Care Packages & Placements- OP Health,5691,,23/05/2017,3110228015,511.65,B CARERS LTD
http://statistics.data.gov.uk/id/local-authority/38,Oxfordshire County Council,Care Packages & Placements- OP Health,5691,,12/05/2017,3110224982,549.55,B CARERS LTD
http://statistics.data.gov.uk/id/local-authority/38,Oxfordshire County Council,Care Packages & Placements- OP Health,5691,,23/05/2017,3110228014,549.55,B CARERS LTD
http://statistics.data.gov.uk/id/local-authority/38,Oxfordshire County Council,MH SPOT FUNDING,5686,,11/05/2017,3110224358,"5,314.29",B O'CONNOR T/A DUNRAVEN
http://statistics.data.gov.uk/id/local-authority/38,Oxfordshire County Council,Mockingbird,5549,B*Fostering Allowance - Regulation 38,24/05/2017,3110229304,546.86,Redacted Personal Data
http://statistics.data.gov.uk/id/local-authority/38,Oxfordshire County Council,Mockingbird,5549,B*Fostering Allowance - Regulation 38,03/05/2017,3110221718,670.15,Redacted Personal Data
http://statistics.data.gov.uk/id/local-authority/38,Oxfordshire County Council,Mockingbird,5549,B*Fostering Allowance - Regulation 38,31/05/2017,3110230400,704.11,Redacted Personal Data
http://statistics.data.gov.uk/id/local-authority/38,Oxfordshire County Council,PD RES PURC - VALE,5686,,11/05/2017,3110224223,"137,839.54",Badby Park Ltd
http://statistics.data.gov.uk/id/local-authority/38,Oxfordshire County Council,Transformation,2040,Agency Staff,24/05/2017,2200357058,"1,635.00",Badenoch and Clark
http://statistics.data.gov.uk/id/local-authority/38,Oxfordshire County Council,Transformation,2040,Agency Staff,30/05/2017,2200358607,"1,635.00",Badenoch and Clark
http://statistics.data.gov.uk/id/local-authority/38,Oxfordshire County Council,Transformation,2040,Agency Staff,12/05/2017,2200351095,"2,120.00",Badenoch and Clark
http://statistics.data.gov.uk/id/local-authority/38,Oxfordshire County Council,Transformation,2040,Agency Staff,15/05/2017,2200351916,"2,180.00",Badenoch and Clark
http://statistics.data.gov.uk/id/local-authority/38,Oxfordshire County Council,Transformation,2040,Agency Staff,11/05/2017,2200350750,"2,200.00",Badenoch and Clark
http://statistics.data.gov.uk/id/local-authority/38,Oxfordshire County Council,Transformation,2040,Agency Staff,11/05/2017,2200350751,"2,340.00",Badenoch and Clark
http://statistics.data.gov.uk/id/local-authority/38,Oxfordshire County Council,Transformation,2040,Agency Staff,25/05/2017,2200357390,"2,340.00",Badenoch and Clark
http://statistics.data.gov.uk/id/local-authority/38,Oxfordshire County Council,Transformation,2040,Agency Staff,12/05/2017,2200351099,"2,650.00",Badenoch and Clark
http://statistics.data.gov.uk/id/local-authority/38,Oxfordshire County Council,Transformation,2040,Agency Staff,30/05/2017,2200358633,"2,650.00",Badenoch and Clark
http://statistics.data.gov.uk/id/local-authority/38,Oxfordshire County Council,Transformation,2040,Agency Staff,30/05/2017,2200358636,"2,650.00",Badenoch and Clark
http://statistics.data.gov.uk/id/local-authority/38,Oxfordshire County Council,Transformation,2040,Agency Staff,30/05/2017,2200358635,"2,725.00",Badenoch and Clark
http://statistics.data.gov.uk/id/local-authority/38,Oxfordshire County Council,Transformation,2040,Agency Staff,09/05/2017,2200349363,"2,750.00",Badenoch and Clark
http://statistics.data.gov.uk/id/local-authority/38,Oxfordshire County Council,Transformation,2040,Agency Staff,24/05/2017,2200357057,"2,750.00",Badenoch and Clark
http://statistics.data.gov.uk/id/local-authority/38,Oxfordshire County Council,Transformation,2040,Agency Staff,30/05/2017,2200358536,"2,750.00",Badenoch and Clark
http://statistics.data.gov.uk/id/local-authority/38,Oxfordshire County Council,Transformation,2040,Agency Staff,30/05/2017,2200358537,"2,750.00",Badenoch and Clark
http://statistics.data.gov.uk/id/local-authority/38,Oxfordshire County Council,Transformation,2040,Agency Staff,31/05/2017,2200358858,"2,925.00",Badenoch and Clark
http://statistics.data.gov.uk/id/local-authority/38,Oxfordshire County Council,MAINSTREAM-SECONDARY,4330,Transport to School Activities,17/05/2017,3110227193,975,Bakers Commercial Services Ltd
http://statistics.data.gov.uk/id/local-authority/38,Oxfordshire County Council,MAINSTREAM-SECONDARY,4330,Transport to School Activities,17/05/2017,3110227192,"1,575.00",Bakers Commercial Services Ltd
http://statistics.data.gov.uk/id/local-authority/38,Oxfordshire County Council,MAINSTREAM-SECONDARY,4330,Transport to School Activities,17/05/2017,3110227188,"1,755.00",Bakers Commercial Services Ltd
http://statistics.data.gov.uk/id/local-authority/38,Oxfordshire County Council,MAINSTREAM-SECONDARY,4330,Transport to School Activities,17/05/2017,3110227190,"1,890.00",Bakers Commercial Services Ltd
http://statistics.data.gov.uk/id/local-authority/38,Oxfordshire County Council,PLAYGROUP FEES,5537,Payments to Other Establishments,11/05/2017,3110224869,808.5,Balliol Day Nursery
http://statistics.data.gov.uk/id/local-authority/38,Oxfordshire County Council,PROCUREMENT,4685,Clothing and Uniforms,08/05/2017,2200347867,"24,099.50",Ballyclare LHD Ltd
http://statistics.data.gov.uk/id/local-authority/38,Oxfordshire County Council,CORPORATE LANDLORD,3945,Rent,02/05/2017,3500029311,"1,500.00",Bampton Exhibition Foundation
http://statistics.data.gov.uk/id/local-authority/38,Oxfordshire County Council,NHS HEALTHCHECK PROG,4933,,10/05/2017,3110224498,"1,709.00",Bampton Surgery
http://statistics.data.gov.uk/id/local-authority/38,Oxfordshire County Council,OPPB CONTCARE RNCC,5687,,11/05/2017,3110224174,"91,359.30",Banbury Heights Nursing Home
http://statistics.data.gov.uk/id/local-authority/38,Oxfordshire County Council,CONTRACEPTION,4933,,04/05/2017,3110223816,525,Banbury Road Medical Centre
http://statistics.data.gov.uk/id/local-authority/38,Oxfordshire County Council,PLAYGROUP FEES,5537,Payments to Other Establishments,11/05/2017,3110224865,"3,003.00",Banbury School Day Nursery Ltd
http://statistics.data.gov.uk/id/local-authority/38,Oxfordshire County Council,LAC PUPIL PREMIUM,5537,Payments to Other Establishments,16/05/2017,3110225103,600,Banbury Schools AAT
http://statistics.data.gov.uk/id/local-authority/38,Oxfordshire County Council,HN IN SEC SCHOOLS,5537,Payments to Other Establishments,02/05/2017,3110220880,"3,827.00",Banbury Schools AAT
http://statistics.data.gov.uk/id/local-authority/38,Oxfordshire County Council,HN IN SEC SCHOOLS,5537,Payments to Other Establishments,18/05/2017,3110227612,"3,827.00",Banbury Schools AAT
http://statistics.data.gov.uk/id/local-authority/38,Oxfordshire County Council,LD CLIENTS NORTH,5688,,11/05/2017,3110224402,"5,411.36",BANYA FAMILY PLACEMENT
http://statistics.data.gov.uk/id/local-authority/38,Oxfordshire County Council,CSB - BANBURY,5899,Social Care - Direct Payments,17/05/2017,3110225766,"1,360.00",Redacted Personal Data
http://statistics.data.gov.uk/id/local-authority/38,Oxfordshire County Council,CSB - BANBURY,5899,Social Care - Direct Payments,17/05/2017,3110225898,"1,432.12",Redacted Personal Data
http://statistics.data.gov.uk/id/local-authority/38,Oxfordshire County Council,CARE HOME SPOT WEST,5686,,11/05/2017,3110224067,"185,025.26",Barchester Healthcare Homes Ltd
http://statistics.data.gov.uk/id/local-authority/38,Oxfordshire County Council,TIMS,5526,Payments to Private Contractors,10/05/2017,2200349501,949.9,Barco
http://statistics.data.gov.uk/id/local-authority/38,Oxfordshire County Council,HILL END,4122,Other premises related costs,09/05/2017,2200348686,533.45,BARLOW & SONS (HERMITAGE) LTD
http://statistics.data.gov.uk/id/local-authority/38,Oxfordshire County Council,LD CLIENTS NORTH,5899,Social Care - Direct Payments,17/05/2017,3110225948,"2,261.00",Redacted Personal Data
http://statistics.data.gov.uk/id/local-authority/38,Oxfordshire County Council,MAINSTREAM-SECONDARY,4330,Transport to School Activities,11/05/2017,3110224840,625,Barnes Coaches Ltd
http://statistics.data.gov.uk/id/local-authority/38,Oxfordshire County Council,MAINSTREAM-SECONDARY,4330,Transport to School Activities,08/05/2017,3110223108,712,Barnes Coaches Ltd
http://statistics.data.gov.uk/id/local-authority/38,Oxfordshire County Council,MAINSTREAM-SECONDARY,4330,Transport to School Activities,08/05/2017,3110223110,720,Barnes Coaches Ltd
http://statistics.data.gov.uk/id/local-authority/38,Oxfordshire County Council,MAINSTREAM-SECONDARY,4330,Transport to School Activities,08/05/2017,3110223107,828.24,Barnes Coaches Ltd
http://statistics.data.gov.uk/id/local-authority/38,Oxfordshire County Council,MAINSTREAM-PRIMARY,4330,Transport to School Activities,11/05/2017,3110224841,845,Barnes Coaches Ltd
http://statistics.data.gov.uk/id/local-authority/38,Oxfordshire County Council,MAINSTREAM-SECONDARY,4330,Transport to School Activities,08/05/2017,3110223111,870,Barnes Coaches Ltd
http://statistics.data.gov.uk/id/local-authority/38,Oxfordshire County Council,MAINSTREAM-SECONDARY,4330,Transport to School Activities,08/05/2017,3110223109,"1,096.50",Barnes Coaches Ltd
http://statistics.data.gov.uk/id/local-authority/38,Oxfordshire County Council,MAINSTREAM-SECONDARY,4330,Transport to School Activities,11/05/2017,3110224843,"1,425.00",Barnes Coaches Ltd
http://statistics.data.gov.uk/id/local-authority/38,Oxfordshire County Council,MAINSTREAM-SECONDARY,4330,Transport to School Activities,11/05/2017,3110224842,"1,725.00",Barnes Coaches Ltd
http://statistics.data.gov.uk/id/local-authority/38,Oxfordshire County Council,MAINSTREAM-SECONDARY,4330,Transport to School Activities,11/05/2017,3110224838,"2,205.00",Barnes Coaches Ltd
http://statistics.data.gov.uk/id/local-authority/38,Oxfordshire County Council,LD CLIENTS NORTH,5899,Social Care - Direct Payments,17/05/2017,3110225787,840.68,Redacted Personal Data
http://statistics.data.gov.uk/id/local-authority/38,Oxfordshire County Council,Care Packages & Placements- PD - OCC,5687,,11/05/2017,3110224158,"23,848.65",Beacher Hall Nursing Centre
http://statistics.data.gov.uk/id/local-authority/38,Oxfordshire County Council,OPPB CONTCARE RNCC,5687,,11/05/2017,3110224095,"16,612.68",Beech Court Nursing Home
http://statistics.data.gov.uk/id/local-authority/38,Oxfordshire County Council,Interim Beds,5687,,18/05/2017,3110227406,"11,938.58",Beech Haven Care Home
http://statistics.data.gov.uk/id/local-authority/38,Oxfordshire County Council,Care Packages & Placements- Older People,5687,,26/05/2017,3110229807,"12,530.68",Beech Haven Care Home
http://statistics.data.gov.uk/id/local-authority/38,Oxfordshire County Council,CARE HOME SPOT CHERW,5686,,11/05/2017,3110224160,"53,466.56",Beech Haven Care Home
http://statistics.data.gov.uk/id/local-authority/38,Oxfordshire County Council,OUT OF COUNTY,5537,Payments to Other Establishments,10/05/2017,2200349397,"2,395.00",Belmont School
http://statistics.data.gov.uk/id/local-authority/38,Oxfordshire County Council,Care Packages & Placements- LD - OCC,5899,Social Care - Direct Payments,17/05/2017,3110226311,"1,535.08",Redacted Personal Data
http://statistics.data.gov.uk/id/local-authority/38,Oxfordshire County Council,INFRA FUNDING,4940,Other Services,04/05/2017,2200346468,"1,140.00",Bentley Cook Ltd
http://statistics.data.gov.uk/id/local-authority/38,Oxfordshire County Council,COMP LICENCES/SYST,4495,IT Software,02/05/2017,2200345628,"-47,414.98",Bentley Systems International Ltd
http://statistics.data.gov.uk/id/local-authority/38,Oxfordshire County Council,COMP LICENCES/SYST,4495,IT Software,08/05/2017,2200348431,"23,707.49",Bentley Systems International Ltd
http://statistics.data.gov.uk/id/local-authority/38,Oxfordshire County Council,COMP LICENCES/SYST,4495,IT Software,08/05/2017,2200348472,"23,707.49",Bentley Systems International Ltd
http://statistics.data.gov.uk/id/local-authority/38,Oxfordshire County Council,COMP LICENCES/SYST,4495,IT Software,08/05/2017,2200348392,"47,414.98",Bentley Systems International Ltd
http://statistics.data.gov.uk/id/local-authority/38,Oxfordshire County Council,NHS HEALTHCHECK PROG,4933,,10/05/2017,3110224495,648,Berinsfield Health Centre
http://statistics.data.gov.uk/id/local-authority/38,Oxfordshire County Council,GP Services,4933,,02/05/2017,3110230054,650,Berinsfield Health Centre
http://statistics.data.gov.uk/id/local-authority/38,Oxfordshire County Council,NHS HEALTHCHECK PROG,4933,,10/05/2017,3110224522,774,Berinsfield Health Centre
http://statistics.data.gov.uk/id/local-authority/38,Oxfordshire County Council,NHS HEALTHCHECK PROG,4933,,10/05/2017,3110224515,"1,290.00",Berinsfield Health Centre
http://statistics.data.gov.uk/id/local-authority/38,Oxfordshire County Council,CONTRACEPTION,4933,,04/05/2017,3110223817,"1,600.00",Berinsfield Health Centre
http://statistics.data.gov.uk/id/local-authority/38,Oxfordshire County Council,Care Packages & Placements- LD - OCC,5227,Other Transport Arrangements,10/05/2017,3110223881,840,Berkeley Executive Travel
http://statistics.data.gov.uk/id/local-authority/38,Oxfordshire County Council,MUSIC UNALLOCABLE,5668,Technical and Professional Consultant F,19/05/2017,2200355085,-682.5,BERKSHIRE MAESTROS
http://statistics.data.gov.uk/id/local-authority/38,Oxfordshire County Council,MUSIC UNALLOCABLE,5668,Technical and Professional Consultant F,18/05/2017,2200354429,"3,093.75",BERKSHIRE MAESTROS
http://statistics.data.gov.uk/id/local-authority/38,Oxfordshire County Council,2 YEAR OLD FUNDING,5537,Payments to Other Establishments,10/05/2017,3110223870,-596.16,Bernetta Scarlett
http://statistics.data.gov.uk/id/local-authority/38,Oxfordshire County Council,,1441,Uncleared Misc Income Receipts,17/05/2017,3110227114,596.16,Bernetta Scarlett
http://statistics.data.gov.uk/id/local-authority/38,Oxfordshire County Council,,1162,VAT - Input Adjustment,24/05/2017,3110229538,"1,048.43",BERRYMANS LACE MAWER SOLICITORS
http://statistics.data.gov.uk/id/local-authority/38,Oxfordshire County Council,,1162,VAT - Input Adjustment,12/05/2017,3110224885,"1,138.50",BERRYMANS LACE MAWER SOLICITORS
http://statistics.data.gov.uk/id/local-authority/38,Oxfordshire County Council,,1162,VAT - Input Adjustment,12/05/2017,3110224887,"1,483.50",BERRYMANS LACE MAWER SOLICITORS
http://statistics.data.gov.uk/id/local-authority/38,Oxfordshire County Council,,1162,VAT - Input Adjustment,12/05/2017,3110224886,"1,833.00",BERRYMANS LACE MAWER SOLICITORS
http://statistics.data.gov.uk/id/local-authority/38,Oxfordshire County Council,PD COMM SUPP DIDCOT,5899,Social Care - Direct Payments,17/05/2017,3110226378,"3,428.00",Redacted Personal Data
http://statistics.data.gov.uk/id/local-authority/38,Oxfordshire County Council,CSB - ABINGDON,5899,Social Care - Direct Payments,17/05/2017,3110226381,992,Redacted Personal Data
http://statistics.data.gov.uk/id/local-authority/38,Oxfordshire County Council,LIBRARY COLLECTIONS,4539,"Books, DVDs and CDs",10/05/2017,2200350126,"12,000.00",Bibliotheca Ltd
http://statistics.data.gov.uk/id/local-authority/38,Oxfordshire County Council,LAC PUPIL PREMIUM,5537,Payments to Other Establishments,16/05/2017,3110225145,700,Bicester Learning Academy
http://statistics.data.gov.uk/id/local-authority/38,Oxfordshire County Council,HN IN SEC SCHOOLS,5537,Payments to Other Establishments,02/05/2017,3110220887,"3,841.00",Bicester Learning Academy
http://statistics.data.gov.uk/id/local-authority/38,Oxfordshire County Council,HN IN SEC SCHOOLS,5537,Payments to Other Establishments,18/05/2017,3110227619,"3,841.00",Bicester Learning Academy
http://statistics.data.gov.uk/id/local-authority/38,Oxfordshire County Council,SEN DELEGATION,5537,Payments to Other Establishments,18/05/2017,3110227421,"10,283.65",Bicester Learning Academy
http://statistics.data.gov.uk/id/local-authority/38,Oxfordshire County Council,LAC PUPIL PREMIUM,5537,Payments to Other Establishments,16/05/2017,3110225113,"10,400.00",Bicester Learning Academy
http://statistics.data.gov.uk/id/local-authority/38,Oxfordshire County Council,POST 16 SEN,4330,Transport to School Activities,04/05/2017,3110222702,513.82,Black and White Cars T/A Banbury Ta
http://statistics.data.gov.uk/id/local-authority/38,Oxfordshire County Council,SEN TRANSPORT,5227,Other Transport Arrangements,04/05/2017,3110222687,747,Black and White Cars T/A Banbury Ta
http://statistics.data.gov.uk/id/local-authority/38,Oxfordshire County Council,SEN TRANSPORT,5227,Other Transport Arrangements,04/05/2017,3110222681,813.97,Black and White Cars T/A Banbury Ta
http://statistics.data.gov.uk/id/local-authority/38,Oxfordshire County Council,SEN TRANSPORT,5227,Other Transport Arrangements,04/05/2017,3110222657,"1,012.00",Black and White Cars T/A Banbury Ta
http://statistics.data.gov.uk/id/local-authority/38,Oxfordshire County Council,SEN TRANSPORT,4330,Transport to School Activities,04/05/2017,3110222666,"1,150.00",Black and White Cars T/A Banbury Ta
http://statistics.data.gov.uk/id/local-authority/38,Oxfordshire County Council,SEN TRANSPORT,5227,Other Transport Arrangements,04/05/2017,3110222675,"1,230.00",Black and White Cars T/A Banbury Ta
http://statistics.data.gov.uk/id/local-authority/38,Oxfordshire County Council,SEN TRANSPORT,4330,Transport to School Activities,04/05/2017,3110222669,"1,260.00",Black and White Cars T/A Banbury Ta
http://statistics.data.gov.uk/id/local-authority/38,Oxfordshire County Council,SEN TRANSPORT,5227,Other Transport Arrangements,04/05/2017,3110222663,"1,320.00",Black and White Cars T/A Banbury Ta
http://statistics.data.gov.uk/id/local-authority/38,Oxfordshire County Council,SEN TRANSPORT,4330,Transport to School Activities,04/05/2017,3110222684,"2,185.50",Black and White Cars T/A Banbury Ta
http://statistics.data.gov.uk/id/local-authority/38,Oxfordshire County Council,SEN TRANSPORT,4330,Transport to School Activities,04/05/2017,3110222660,"2,200.00",Black and White Cars T/A Banbury Ta
http://statistics.data.gov.uk/id/local-authority/38,Oxfordshire County Council,SEN TRANSPORT,4330,Transport to School Activities,04/05/2017,3110222696,"2,208.00",Black and White Cars T/A Banbury Ta
http://statistics.data.gov.uk/id/local-authority/38,Oxfordshire County Council,Care Packages & Placements- LD - OCC,4314,"Other Trans Contract Costs (CRB, Car Sea",04/05/2017,3110222699,"2,564.18",Black and White Cars T/A Banbury Ta
http://statistics.data.gov.uk/id/local-authority/38,Oxfordshire County Council,SEN TRANSPORT,4330,Transport to School Activities,04/05/2017,3110222690,"2,691.00",Black and White Cars T/A Banbury Ta
http://statistics.data.gov.uk/id/local-authority/38,Oxfordshire County Council,SEN TRANSPORT,4330,Transport to School Activities,04/05/2017,3110222678,"2,720.67",Black and White Cars T/A Banbury Ta
http://statistics.data.gov.uk/id/local-authority/38,Oxfordshire County Council,SEN TRANSPORT,4330,Transport to School Activities,04/05/2017,3110222654,"2,872.00",Black and White Cars T/A Banbury Ta
http://statistics.data.gov.uk/id/local-authority/38,Oxfordshire County Council,RESPITE,4330,Transport to School Activities,04/05/2017,3110222693,"4,158.00",Black and White Cars T/A Banbury Ta
http://statistics.data.gov.uk/id/local-authority/38,Oxfordshire County Council,SEN TRANSPORT,4330,Transport to School Activities,04/05/2017,3110222672,"4,920.00",Black and White Cars T/A Banbury Ta
http://statistics.data.gov.uk/id/local-authority/38,Oxfordshire County Council,SEN DELEGATION,5537,Payments to Other Establishments,18/05/2017,3110227422,"3,601.45",Blackbird Academy Trust
http://statistics.data.gov.uk/id/local-authority/38,Oxfordshire County Council,SEN DELEGATION,5537,Payments to Other Establishments,18/05/2017,3110227420,"12,068.71",Blackbird Academy Trust
http://statistics.data.gov.uk/id/local-authority/38,Oxfordshire County Council,SEN DELEGATION,5537,Payments to Other Establishments,18/05/2017,3110227430,"18,899.25",Blackbird Academy Trust
http://statistics.data.gov.uk/id/local-authority/38,Oxfordshire County Council,CARE HOME SPOT VALE,5686,,11/05/2017,3110224301,"2,856.43",Blackwood House
http://statistics.data.gov.uk/id/local-authority/38,Oxfordshire County Council,ContrO ASC Payments Control Account,7190,Other Recovered Costs,11/05/2017,3110224132,"3,255.48",Blanchworth Care Ltd
http://statistics.data.gov.uk/id/local-authority/38,Oxfordshire County Council,HN IN SEC SCHOOLS,5537,Payments to Other Establishments,02/05/2017,3110220906,"2,445.00",Blessed George Napier C School
http://statistics.data.gov.uk/id/local-authority/38,Oxfordshire County Council,HN IN SEC SCHOOLS,5537,Payments to Other Establishments,18/05/2017,3110227638,"2,445.00",Blessed George Napier C School
http://statistics.data.gov.uk/id/local-authority/38,Oxfordshire County Council,LPP MANAGEMENT,4861,Hired and Contracted Services,10/05/2017,2200349394,"10,000.00",Blue Marble Group LLP
http://statistics.data.gov.uk/id/local-authority/38,Oxfordshire County Council,Care Packages & Placements- Older People,5688,,22/05/2017,2200355158,680.4,Bluebird Care
http://statistics.data.gov.uk/id/local-authority/38,Oxfordshire County Council,OPPB CONTCARE DEL HE,5691,,09/05/2017,3110223152,830.8,Bluebird Care
http://statistics.data.gov.uk/id/local-authority/38,Oxfordshire County Council,Care Packages & Placements- Older People,5688,,22/05/2017,2200355159,"1,171.26",Bluebird Care
http://statistics.data.gov.uk/id/local-authority/38,Oxfordshire County Council,OPPB CONTCARE DEL HE,5691,,09/05/2017,3110223149,"1,246.20",Bluebird Care
http://statistics.data.gov.uk/id/local-authority/38,Oxfordshire County Council,Care Packages & Placements- Older People,5688,,22/05/2017,2200355160,"1,343.60",Bluebird Care
http://statistics.data.gov.uk/id/local-authority/38,Oxfordshire County Council,OPPB CONTCARE DEL HE,5691,,12/05/2017,3110224970,552.6,Bluebird Care (Oxford South & West)
http://statistics.data.gov.uk/id/local-authority/38,Oxfordshire County Council,OPPB CONTCARE DEL HE,5691,,12/05/2017,3110224971,591.1,Bluebird Care (Oxford South & West)
http://statistics.data.gov.uk/id/local-authority/38,Oxfordshire County Council,OPPB CONTCARE DEL HE,5691,,12/05/2017,3110224959,664.7,Bluebird Care (Oxford South & West)
http://statistics.data.gov.uk/id/local-authority/38,Oxfordshire County Council,OPPB CONTCARE H SUPP,5691,,26/05/2017,3110229902,"2,086.00",Bluebird Care (Oxford South & West)
http://statistics.data.gov.uk/id/local-authority/38,Oxfordshire County Council,Care Packages & Placements- OP Health,5691,,26/05/2017,3110229927,"2,417.16",Bluebird Care (Oxford South & West)
http://statistics.data.gov.uk/id/local-authority/38,Oxfordshire County Council,OPPB FAST TRACK,5691,,12/05/2017,3110224983,"2,459.90",Bluebird Care (Oxford South & West)
http://statistics.data.gov.uk/id/local-authority/38,Oxfordshire County Council,Care Packages & Placements- OP Health,5691,,26/05/2017,3110229900,"2,516.40",Bluebird Care (Oxford South & West)
http://statistics.data.gov.uk/id/local-authority/38,Oxfordshire County Council,Care Packages & Placements- OP Health,5691,,26/05/2017,3110229905,"2,516.40",Bluebird Care (Oxford South & West)
http://statistics.data.gov.uk/id/local-authority/38,Oxfordshire County Council,Care Packages & Placements- OP Health,5691,,26/05/2017,3110229923,"2,673.40",Bluebird Care (Oxford South & West)
http://statistics.data.gov.uk/id/local-authority/38,Oxfordshire County Council,Care Packages & Placements- OP Health,5691,,26/05/2017,3110229924,"2,673.40",Bluebird Care (Oxford South & West)
http://statistics.data.gov.uk/id/local-authority/38,Oxfordshire County Council,OPPB CONTCARE H SUPP,5691,,26/05/2017,3110229903,"2,706.00",Bluebird Care (Oxford South & West)
http://statistics.data.gov.uk/id/local-authority/38,Oxfordshire County Council,Care Packages & Placements- OP Health,5691,,26/05/2017,3110229904,"2,836.80",Bluebird Care (Oxford South & West)
http://statistics.data.gov.uk/id/local-authority/38,Oxfordshire County Council,Care Packages & Placements- OP Health,5691,,26/05/2017,3110229926,"2,836.90",Bluebird Care (Oxford South & West)
http://statistics.data.gov.uk/id/local-authority/38,Oxfordshire County Council,Care Packages & Placements- OP Health,5691,,26/05/2017,3110229901,"2,984.80",Bluebird Care (Oxford South & West)
http://statistics.data.gov.uk/id/local-authority/38,Oxfordshire County Council,Care Packages & Placements- OP Health,5691,,26/05/2017,3110229925,"3,220.68",Bluebird Care (Oxford South & West)
http://statistics.data.gov.uk/id/local-authority/38,Oxfordshire County Council,MAINSTREAM-SECONDARY,4330,Transport to School Activities,02/05/2017,3110220844,860.35,Blunsdons Coach Travel
http://statistics.data.gov.uk/id/local-authority/38,Oxfordshire County Council,MAINSTREAM-SECONDARY,4330,Transport to School Activities,02/05/2017,3110220843,899.9,Blunsdons Coach Travel
http://statistics.data.gov.uk/id/local-authority/38,Oxfordshire County Council,MAINSTREAM-SECONDARY,4330,Transport to School Activities,02/05/2017,3110220841,"3,957.61",Blunsdons Coach Travel
http://statistics.data.gov.uk/id/local-authority/38,Oxfordshire County Council,MAINSTREAM-SECONDARY,4330,Transport to School Activities,02/05/2017,3110220839,"4,139.54",Blunsdons Coach Travel
http://statistics.data.gov.uk/id/local-authority/38,Oxfordshire County Council,OPERATIONS,4407,Equipment,12/05/2017,2200351222,539.46,Boc Ltd
http://statistics.data.gov.uk/id/local-authority/38,Oxfordshire County Council,LAC PUPIL PREMIUM,4539,"Books, DVDs and CDs",04/05/2017,2200346433,"18,343.44",Booktrust
http://statistics.data.gov.uk/id/local-authority/38,Oxfordshire County Council,CONTRACEPTION,4934,,07/05/2017,3110224895,"1,824.55",Boots the Chemist
http://statistics.data.gov.uk/id/local-authority/38,Oxfordshire County Council,Care Packages & Placements- Older People,5687,,24/05/2017,3110229548,"9,369.26",Bothwells Limited
http://statistics.data.gov.uk/id/local-authority/38,Oxfordshire County Council,NHS HEALTHCHECK PROG,4933,,10/05/2017,3110224518,795,Botley Medical Centre
http://statistics.data.gov.uk/id/local-authority/38,Oxfordshire County Council,NHS HEALTHCHECK PROG,4933,,10/05/2017,3110224525,"1,386.00",Botley Medical Centre
http://statistics.data.gov.uk/id/local-authority/38,Oxfordshire County Council,MEMBERS SERVICES,5105,Members' Expenses and Allowances,26/05/2017,2200358041,892.5,Bournemouth Convention Bureau Ltd
http://statistics.data.gov.uk/id/local-authority/38,Oxfordshire County Council,L&D CORE PROGRAMME,3100,Educational and Vocational Training,02/05/2017,2200345182,"5,600.00",BOURNEMOUTH UNIVERSITY
http://statistics.data.gov.uk/id/local-authority/38,Oxfordshire County Council,L&D CORE PROGRAMME,3100,Educational and Vocational Training,02/05/2017,2200345266,"5,600.00",BOURNEMOUTH UNIVERSITY
http://statistics.data.gov.uk/id/local-authority/38,Oxfordshire County Council,L&D CORE PROGRAMME,3100,Educational and Vocational Training,02/05/2017,2200345290,"5,600.00",BOURNEMOUTH UNIVERSITY
http://statistics.data.gov.uk/id/local-authority/38,Oxfordshire County Council,L&D CORE PROGRAMME,3100,Educational and Vocational Training,02/05/2017,2200345292,"5,600.00",BOURNEMOUTH UNIVERSITY
http://statistics.data.gov.uk/id/local-authority/38,Oxfordshire County Council,L&D CORE PROGRAMME,3100,Educational and Vocational Training,10/05/2017,2200350065,"7,845.00",BOURNEMOUTH UNIVERSITY
http://statistics.data.gov.uk/id/local-authority/38,Oxfordshire County Council,Lib ICT Supprt&Maint,5039,ITC Services,25/05/2017,2200357167,700,BPH Data Ltd
http://statistics.data.gov.uk/id/local-authority/38,Oxfordshire County Council,LD CLIENTS CITY,5686,,11/05/2017,3110224201,"2,956.20",Bradbury House Organisation
http://statistics.data.gov.uk/id/local-authority/38,Oxfordshire County Council,SPECIAL GUARDIANSHIP,5664,B*Holiday Allowance,03/05/2017,3110222482,979.6,Redacted Personal Data
http://statistics.data.gov.uk/id/local-authority/38,Oxfordshire County Council,SPECIAL GUARDIANSHIP,5664,B*Holiday Allowance,10/05/2017,3110223568,979.6,Redacted Personal Data
http://statistics.data.gov.uk/id/local-authority/38,Oxfordshire County Council,SPECIAL GUARDIANSHIP,5664,B*Holiday Allowance,17/05/2017,3110225389,979.6,Redacted Personal Data
http://statistics.data.gov.uk/id/local-authority/38,Oxfordshire County Council,SPECIAL GUARDIANSHIP,5664,B*Holiday Allowance,24/05/2017,3110229467,979.6,Redacted Personal Data
http://statistics.data.gov.uk/id/local-authority/38,Oxfordshire County Council,SPECIAL GUARDIANSHIP,5664,B*Holiday Allowance,31/05/2017,3110230281,979.6,Redacted Personal Data
http://statistics.data.gov.uk/id/local-authority/38,Oxfordshire County Council,PD COMM SUPP - CITY,5899,Social Care - Direct Payments,17/05/2017,3110226371,"3,160.00",Redacted Personal Data
http://statistics.data.gov.uk/id/local-authority/38,Oxfordshire County Council,SEN TRANSPORT,4330,Transport to School Activities,24/05/2017,3110229676,630,Brians Hire Ltd
http://statistics.data.gov.uk/id/local-authority/38,Oxfordshire County Council,SEN TRANSPORT,4330,Transport to School Activities,03/05/2017,3110222659,"1,410.00",Brians Hire Ltd
http://statistics.data.gov.uk/id/local-authority/38,Oxfordshire County Council,CARE HOME SPOT VALE,5686,,11/05/2017,3110224260,"111,732.66",Bridge House
http://statistics.data.gov.uk/id/local-authority/38,Oxfordshire County Council,ContrO ASC Payments Control Account,5689,,24/05/2017,3110229040,"-1,099.00",Bridges Home Care Ltd
http://statistics.data.gov.uk/id/local-authority/38,Oxfordshire County Council,Care Packages & Placements- Older People,5689,,24/05/2017,3110229007,517.12,Bridges Home Care Ltd
http://statistics.data.gov.uk/id/local-authority/38,Oxfordshire County Council,CSB - DIDCOT,5689,,24/05/2017,3110228941,549.98,Bridges Home Care Ltd
http://statistics.data.gov.uk/id/local-authority/38,Oxfordshire County Council,CSB - DIDCOT,5689,,24/05/2017,3110228950,553.04,Bridges Home Care Ltd
http://statistics.data.gov.uk/id/local-authority/38,Oxfordshire County Council,CSB - DIDCOT,5689,,24/05/2017,3110228975,560.69,Bridges Home Care Ltd
http://statistics.data.gov.uk/id/local-authority/38,Oxfordshire County Council,Care Packages & Placements- Older People,5689,,24/05/2017,3110228983,570.62,Bridges Home Care Ltd
http://statistics.data.gov.uk/id/local-authority/38,Oxfordshire County Council,Care Packages & Placements- Older People,5689,,24/05/2017,3110229010,611.9,Bridges Home Care Ltd
http://statistics.data.gov.uk/id/local-authority/38,Oxfordshire County Council,Care Packages & Placements- Older People,5689,,24/05/2017,3110229000,616.49,Bridges Home Care Ltd
http://statistics.data.gov.uk/id/local-authority/38,Oxfordshire County Council,Care Packages & Placements- Older People,5689,,24/05/2017,3110229011,636.74,Bridges Home Care Ltd
http://statistics.data.gov.uk/id/local-authority/38,Oxfordshire County Council,CSB - DIDCOT,5689,,24/05/2017,3110228954,648.98,Bridges Home Care Ltd
http://statistics.data.gov.uk/id/local-authority/38,Oxfordshire County Council,CSB - DIDCOT,5689,,24/05/2017,3110228959,653.56,Bridges Home Care Ltd
http://statistics.data.gov.uk/id/local-authority/38,Oxfordshire County Council,CSB - DIDCOT,5689,,24/05/2017,3110228976,653.94,Bridges Home Care Ltd
http://statistics.data.gov.uk/id/local-authority/38,Oxfordshire County Council,Care Packages & Placements- Older People,5689,,24/05/2017,3110229020,667.32,Bridges Home Care Ltd
http://statistics.data.gov.uk/id/local-authority/38,Oxfordshire County Council,CSB - DIDCOT,5689,,24/05/2017,3110228962,671.52,Bridges Home Care Ltd
http://statistics.data.gov.uk/id/local-authority/38,Oxfordshire County Council,CSB - DIDCOT,5689,,24/05/2017,3110228944,671.91,Bridges Home Care Ltd
http://statistics.data.gov.uk/id/local-authority/38,Oxfordshire County Council,CSB - DIDCOT,5689,,24/05/2017,3110228951,674.2,Bridges Home Care Ltd
http://statistics.data.gov.uk/id/local-authority/38,Oxfordshire County Council,LD CLIENTS SOUTH,5689,,24/05/2017,3110228980,691.78,Bridges Home Care Ltd
http://statistics.data.gov.uk/id/local-authority/38,Oxfordshire County Council,Care Packages & Placements- Older People,5689,,24/05/2017,3110229003,692.93,Bridges Home Care Ltd
http://statistics.data.gov.uk/id/local-authority/38,Oxfordshire County Council,Care Packages & Placements- Older People,5689,,24/05/2017,3110228994,731.15,Bridges Home Care Ltd
http://statistics.data.gov.uk/id/local-authority/38,Oxfordshire County Council,Care Packages & Placements- Older People,5689,,24/05/2017,3110228995,754.85,Bridges Home Care Ltd
http://statistics.data.gov.uk/id/local-authority/38,Oxfordshire County Council,Care Packages & Placements- Older People,5689,,24/05/2017,3110229027,788.48,Bridges Home Care Ltd
http://statistics.data.gov.uk/id/local-authority/38,Oxfordshire County Council,CSB - DIDCOT,5689,,24/05/2017,3110228957,794.98,Bridges Home Care Ltd
http://statistics.data.gov.uk/id/local-authority/38,Oxfordshire County Council,CSB - DIDCOT,5689,,24/05/2017,3110228972,795.36,Bridges Home Care Ltd
http://statistics.data.gov.uk/id/local-authority/38,Oxfordshire County Council,CSB - DIDCOT,5689,,24/05/2017,3110228940,801.85,Bridges Home Care Ltd
http://statistics.data.gov.uk/id/local-authority/38,Oxfordshire County Council,CSB - DIDCOT,5689,,24/05/2017,3110228969,812.55,Bridges Home Care Ltd
http://statistics.data.gov.uk/id/local-authority/38,Oxfordshire County Council,CSB - DIDCOT,5689,,24/05/2017,3110228964,837.78,Bridges Home Care Ltd
http://statistics.data.gov.uk/id/local-authority/38,Oxfordshire County Council,Care Packages & Placements- Older People,5689,,24/05/2017,3110228989,843.51,Bridges Home Care Ltd
http://statistics.data.gov.uk/id/local-authority/38,Oxfordshire County Council,CSB - DIDCOT,5689,,24/05/2017,3110228942,860.72,Bridges Home Care Ltd
http://statistics.data.gov.uk/id/local-authority/38,Oxfordshire County Council,CSB - DIDCOT,5689,,24/05/2017,3110228979,877.15,Bridges Home Care Ltd
http://statistics.data.gov.uk/id/local-authority/38,Oxfordshire County Council,Care Packages & Placements- Older People,5689,,24/05/2017,3110229006,877.53,Bridges Home Care Ltd
http://statistics.data.gov.uk/id/local-authority/38,Oxfordshire County Council,Care Packages & Placements- Older People,5689,,24/05/2017,3110229019,897.78,Bridges Home Care Ltd
http://statistics.data.gov.uk/id/local-authority/38,Oxfordshire County Council,Care Packages & Placements- Older People,5689,,24/05/2017,3110228987,911.55,Bridges Home Care Ltd
http://statistics.data.gov.uk/id/local-authority/38,Oxfordshire County Council,CSB - DIDCOT,5689,,24/05/2017,3110228967,916.14,Bridges Home Care Ltd
http://statistics.data.gov.uk/id/local-authority/38,Oxfordshire County Council,CSB - DIDCOT,5689,,24/05/2017,3110228963,987.22,Bridges Home Care Ltd
http://statistics.data.gov.uk/id/local-authority/38,Oxfordshire County Council,Care Packages & Placements- Older People,5689,,24/05/2017,3110228992,"1,054.11",Bridges Home Care Ltd
http://statistics.data.gov.uk/id/local-authority/38,Oxfordshire County Council,Care Packages & Placements- PD - OCC,5689,,24/05/2017,3110229031,"1,088.51",Bridges Home Care Ltd
http://statistics.data.gov.uk/id/local-authority/38,Oxfordshire County Council,Care Packages & Placements- Older People,5689,,24/05/2017,3110229004,"1,100.74",Bridges Home Care Ltd
http://statistics.data.gov.uk/id/local-authority/38,Oxfordshire County Council,CSB - DIDCOT,5689,,24/05/2017,3110228958,"1,161.50",Bridges Home Care Ltd
http://statistics.data.gov.uk/id/local-authority/38,Oxfordshire County Council,Care Packages & Placements- Older People,5689,,24/05/2017,3110229013,"1,163.79",Bridges Home Care Ltd
http://statistics.data.gov.uk/id/local-authority/38,Oxfordshire County Council,Care Packages & Placements- Older People,5689,,24/05/2017,3110228998,"1,170.30",Bridges Home Care Ltd
http://statistics.data.gov.uk/id/local-authority/38,Oxfordshire County Council,Care Packages & Placements- Older People,5689,,24/05/2017,3110229016,"1,174.51",Bridges Home Care Ltd
http://statistics.data.gov.uk/id/local-authority/38,Oxfordshire County Council,CSB - DIDCOT,5689,,24/05/2017,3110228948,"1,199.35",Bridges Home Care Ltd
http://statistics.data.gov.uk/id/local-authority/38,Oxfordshire County Council,Care Packages & Placements- Older People,5689,,24/05/2017,3110229017,"1,231.83",Bridges Home Care Ltd
http://statistics.data.gov.uk/id/local-authority/38,Oxfordshire County Council,Care Packages & Placements- Older People,5689,,24/05/2017,3110229015,"1,393.89",Bridges Home Care Ltd
http://statistics.data.gov.uk/id/local-authority/38,Oxfordshire County Council,CSB - DIDCOT,5689,,24/05/2017,3110228943,"1,398.47",Bridges Home Care Ltd
http://statistics.data.gov.uk/id/local-authority/38,Oxfordshire County Council,Care Packages & Placements- PD - OCC,5689,,24/05/2017,3110229030,"1,458.48",Bridges Home Care Ltd
http://statistics.data.gov.uk/id/local-authority/38,Oxfordshire County Council,CSB - DIDCOT,5689,,24/05/2017,3110228946,"1,461.15",Bridges Home Care Ltd
http://statistics.data.gov.uk/id/local-authority/38,Oxfordshire County Council,CSB - DIDCOT,5689,,24/05/2017,3110228968,"1,565.50",Bridges Home Care Ltd
http://statistics.data.gov.uk/id/local-authority/38,Oxfordshire County Council,CSB - DIDCOT,5689,,24/05/2017,3110228953,"1,663.34",Bridges Home Care Ltd
http://statistics.data.gov.uk/id/local-authority/38,Oxfordshire County Council,CSB - DIDCOT,5689,,24/05/2017,3110228965,"1,880.04",Bridges Home Care Ltd
http://statistics.data.gov.uk/id/local-authority/38,Oxfordshire County Council,Care Packages & Placements- Older People,5689,,24/05/2017,3110228986,"2,010.37",Bridges Home Care Ltd
http://statistics.data.gov.uk/id/local-authority/38,Oxfordshire County Council,CSB - DIDCOT,5689,,24/05/2017,3110228974,"2,060.06",Bridges Home Care Ltd
http://statistics.data.gov.uk/id/local-authority/38,Oxfordshire County Council,CSB - DIDCOT,5689,,24/05/2017,3110228952,"2,177.39",Bridges Home Care Ltd
http://statistics.data.gov.uk/id/local-authority/38,Oxfordshire County Council,Care Packages & Placements- Older People,5689,,24/05/2017,3110229008,"2,314.22",Bridges Home Care Ltd
http://statistics.data.gov.uk/id/local-authority/38,Oxfordshire County Council,PD COMM SUPP DIDCOT,5689,,24/05/2017,3110229037,"2,321.48",Bridges Home Care Ltd
http://statistics.data.gov.uk/id/local-authority/38,Oxfordshire County Council,CSB - DIDCOT,5689,,24/05/2017,3110228960,"2,327.21",Bridges Home Care Ltd
http://statistics.data.gov.uk/id/local-authority/38,Oxfordshire County Council,CSB - DIDCOT,5689,,24/05/2017,3110228966,"2,349.77",Bridges Home Care Ltd
http://statistics.data.gov.uk/id/local-authority/38,Oxfordshire County Council,Care Packages & Placements- Older People,5689,,24/05/2017,3110229012,"2,535.13",Bridges Home Care Ltd
http://statistics.data.gov.uk/id/local-authority/38,Oxfordshire County Council,CSB - DIDCOT,5689,,24/05/2017,3110228971,"2,541.63",Bridges Home Care Ltd
http://statistics.data.gov.uk/id/local-authority/38,Oxfordshire County Council,PD COMM SUPP DIDCOT,5689,,24/05/2017,3110229036,"2,657.43",Bridges Home Care Ltd
http://statistics.data.gov.uk/id/local-authority/38,Oxfordshire County Council,Care Packages & Placements- Older People,5689,,24/05/2017,3110229009,"2,855.03",Bridges Home Care Ltd
http://statistics.data.gov.uk/id/local-authority/38,Oxfordshire County Council,Care Packages & Placements- PD - OCC,5689,,24/05/2017,3110229034,"3,544.14",Bridges Home Care Ltd
http://statistics.data.gov.uk/id/local-authority/38,Oxfordshire County Council,Care Packages & Placements- LD - OCC,5899,Social Care - Direct Payments,17/05/2017,3110225783,"13,543.64",Redacted Personal Data
http://statistics.data.gov.uk/id/local-authority/38,Oxfordshire County Council,PSYCHOLOGY SERVICE,3103,Other Training Courses and Qualification,17/05/2017,2200353625,600,Brighton and Hove City Council
http://statistics.data.gov.uk/id/local-authority/38,Oxfordshire County Council,PSYCHOLOGY SERVICE,3103,Other Training Courses and Qualification,22/05/2017,2200355736,600,Brighton and Hove City Council
http://statistics.data.gov.uk/id/local-authority/38,Oxfordshire County Council,ICT Operations & Maintenance,5039,ITC Services,22/05/2017,2200355360,"1,859.63",Britannic Technologies Limited
http://statistics.data.gov.uk/id/local-authority/38,Oxfordshire County Council,ON ST PARK OXFD SPA,5190,Subscriptions,16/05/2017,2200352955,875,BRITISH PARKING ASSOCIATION
http://statistics.data.gov.uk/id/local-authority/38,Oxfordshire County Council,Care Packages & Placements- Older People,4330,Transport to School Activities,30/05/2017,3110230028,"67,211.25",British Red Cross Society
http://statistics.data.gov.uk/id/local-authority/38,Oxfordshire County Council,SEN DELEGATION,5537,Payments to Other Establishments,18/05/2017,3110227423,"13,970.60",Brize Norton Primary School
http://statistics.data.gov.uk/id/local-authority/38,Oxfordshire County Council,PLAYGROUP FEES,5537,Payments to Other Establishments,04/05/2017,3110222925,808.5,BROADHILL PRE-SCHOOL
http://statistics.data.gov.uk/id/local-authority/38,Oxfordshire County Council,OUT OF COUNTY,5537,Payments to Other Establishments,11/05/2017,2200350321,"13,160.00",Broadlands Hall Ltd
http://statistics.data.gov.uk/id/local-authority/38,Oxfordshire County Council,Mainstream Res,5558,,10/05/2017,2200350183,"15,012.68",Broadlands Hall Ltd
http://statistics.data.gov.uk/id/local-authority/38,Oxfordshire County Council,OUT OF COUNTY,5537,Payments to Other Establishments,24/05/2017,2200356760,"24,778.80",Broadlands Hall Ltd
http://statistics.data.gov.uk/id/local-authority/38,Oxfordshire County Council,OUT OF COUNTY,5537,Payments to Other Establishments,24/05/2017,2200356761,"25,596.70",Broadlands Hall Ltd
http://statistics.data.gov.uk/id/local-authority/38,Oxfordshire County Council,RESIDENTIAL TREATMEN,5686,,18/05/2017,2200354634,"1,290.53",BROADREACH HOUSE
http://statistics.data.gov.uk/id/local-authority/38,Oxfordshire County Council,RESIDENTIAL TREATMEN,5686,,18/05/2017,2200354635,"4,010.23",BROADREACH HOUSE
http://statistics.data.gov.uk/id/local-authority/38,Oxfordshire County Council,NHS HEALTHCHECK PROG,4933,,10/05/2017,3110224584,705,Broadshires Health Centre
http://statistics.data.gov.uk/id/local-authority/38,Oxfordshire County Council,CONTRACEPTION,4933,,04/05/2017,3110223837,"4,130.00",Broadshires Health Centre
http://statistics.data.gov.uk/id/local-authority/38,Oxfordshire County Council,RESIDENTIAL TREATMEN,5686,,31/05/2017,2200358902,"2,456.04",BROADWAY LODGE LTD
http://statistics.data.gov.uk/id/local-authority/38,Oxfordshire County Council,RESIDENTIAL TREATMEN,5686,,18/05/2017,2200354633,"2,842.32",BROADWAY LODGE LTD
http://statistics.data.gov.uk/id/local-authority/38,Oxfordshire County Council,RESIDENTIAL TREATMEN,5686,,18/05/2017,2200354632,"2,900.00",BROADWAY LODGE LTD
http://statistics.data.gov.uk/id/local-authority/38,Oxfordshire County Council,RESIDENTIAL TREATMEN,5686,,31/05/2017,2200358904,"3,407.20",BROADWAY LODGE LTD
http://statistics.data.gov.uk/id/local-authority/38,Oxfordshire County Council,RESIDENTIAL TREATMEN,5686,,31/05/2017,2200358901,"4,350.00",BROADWAY LODGE LTD
http://statistics.data.gov.uk/id/local-authority/38,Oxfordshire County Council,LD EXT RESP CONTRACT,5544,B*Fostering - Temp/Respite,11/05/2017,3110224186,"1,993.21",Redacted Personal Data
http://statistics.data.gov.uk/id/local-authority/38,Oxfordshire County Council,NCS,5360,Exhibitions (Purchase/Hire/Production),26/05/2017,2200357931,"4,500.00",Brook
http://statistics.data.gov.uk/id/local-authority/38,Oxfordshire County Council,LD CLIENTS SOUTH,5688,,11/05/2017,3110224442,"3,809.90",Brook House Residential
http://statistics.data.gov.uk/id/local-authority/38,Oxfordshire County Council,LD CLIENTS SOUTH,5686,,11/05/2017,3110224199,"15,995.21",Brook House Residential
http://statistics.data.gov.uk/id/local-authority/38,Oxfordshire County Council,MH SPOT FUNDING,5686,,11/05/2017,3110224168,"21,271.00",Brookdale Care
http://statistics.data.gov.uk/id/local-authority/38,Oxfordshire County Council,,1162,VAT - Input Adjustment,03/05/2017,3110222526,"1,983.84",Browne Jacobson LLP
http://statistics.data.gov.uk/id/local-authority/38,Oxfordshire County Council,MEADOWBROOK TRANSPT,4330,Transport to School Activities,17/05/2017,3110227160,500,Browns Taxis Ltd
http://statistics.data.gov.uk/id/local-authority/38,Oxfordshire County Council,SEN TRANSPORT,4330,Transport to School Activities,22/05/2017,3110227951,724,Browns Taxis Ltd
http://statistics.data.gov.uk/id/local-authority/38,Oxfordshire County Council,SEN TRANSPORT,4330,Transport to School Activities,24/05/2017,3110229704,810,Browns Taxis Ltd
http://statistics.data.gov.uk/id/local-authority/38,Oxfordshire County Council,POST 16 SEN,4330,Transport to School Activities,17/05/2017,3110227168,836,Browns Taxis Ltd
http://statistics.data.gov.uk/id/local-authority/38,Oxfordshire County Council,SEN TRANSPORT,4330,Transport to School Activities,11/05/2017,3110224737,888,Browns Taxis Ltd
http://statistics.data.gov.uk/id/local-authority/38,Oxfordshire County Council,MEADOWBROOK TRANSPT,4330,Transport to School Activities,04/05/2017,3110222735,"2,328.00",Browns Taxis Ltd
http://statistics.data.gov.uk/id/local-authority/38,Oxfordshire County Council,SEN TRANSPORT,4330,Transport to School Activities,11/05/2017,3110224735,"2,827.00",Browns Taxis Ltd
http://statistics.data.gov.uk/id/local-authority/38,Oxfordshire County Council,OPPB CONTCARE H SUPP,5899,Social Care - Direct Payments,17/05/2017,3110225892,"5,932.96",Redacted Personal Data
http://statistics.data.gov.uk/id/local-authority/38,Oxfordshire County Council,LD CLIENTS CITY,5686,,11/05/2017,3110224185,"5,582.21",Bryn-y-Wawr
http://statistics.data.gov.uk/id/local-authority/38,Oxfordshire County Council,COMMUNICATIONS,5072,Telephone - Equipment,22/05/2017,2200355355,"4,631.73",BT Payment Services Ltd
http://statistics.data.gov.uk/id/local-authority/38,Oxfordshire County Council,ICT Operations & Maintenance,5072,Telephone - Equipment,09/05/2017,2200348567,"86,671.68",BT Plc (One Bill)
http://statistics.data.gov.uk/id/local-authority/38,Oxfordshire County Council,DEVELOPMENT MANAGEME,4861,Hired and Contracted Services,10/05/2017,2200349484,"1,193.80",Buckinghamshire County Council
http://statistics.data.gov.uk/id/local-authority/38,Oxfordshire County Council,MANAGEMENT & ADMIN,4625,"Newspapers, Periodicals and Publications",22/05/2017,2200355526,"9,800.00",Buckinghamshire County Council
http://statistics.data.gov.uk/id/local-authority/38,Oxfordshire County Council,STI TESTING+TREATMEN,4940,Other Services,01/05/2017,3110222494,"11,084.63",Buckinghamshire Healthcare NHS Trus
http://statistics.data.gov.uk/id/local-authority/38,Oxfordshire County Council,OPPB OTHER DD FINES,5394,Other Expenses,30/05/2017,2200358406,"1,320.00",BUCKINGHAMSHIRE HOSPITALS NHS TRUST
http://statistics.data.gov.uk/id/local-authority/38,Oxfordshire County Council,CSDP TEAM,4450,Disability Aids and Equipment,16/05/2017,2200353204,"2,820.00",Buddi Limited
http://statistics.data.gov.uk/id/local-authority/38,Oxfordshire County Council,CARE HOME SPOT CITY,5686,,11/05/2017,3110224008,"1,984.49",BUPA CARE SERVICES
http://statistics.data.gov.uk/id/local-authority/38,Oxfordshire County Council,LIBRARY COLLECTIONS,4539,"Books, DVDs and CDs",11/05/2017,2200350294,"12,002.00",BUREAU VAN DIJK ELECTRONIC
http://statistics.data.gov.uk/id/local-authority/38,Oxfordshire County Council,HN IN SEC SCHOOLS,5537,Payments to Other Establishments,02/05/2017,3110220888,"3,235.00",Burford Academy
http://statistics.data.gov.uk/id/local-authority/38,Oxfordshire County Council,HN IN SEC SCHOOLS,5537,Payments to Other Establishments,18/05/2017,3110227620,"3,235.00",Burford Academy
http://statistics.data.gov.uk/id/local-authority/38,Oxfordshire County Council,LD CLIENTS NORTH,5688,,11/05/2017,3110224453,708.57,Burgess Care Ltd.
http://statistics.data.gov.uk/id/local-authority/38,Oxfordshire County Council,LD CLIENTS NORTH,5686,,11/05/2017,3110224290,"26,571.47",Burgess Care Ltd.
http://statistics.data.gov.uk/id/local-authority/38,Oxfordshire County Council,STI TESTING+TREATMEN,4933,,16/05/2017,3110227343,"1,042.00",Bury Knowle Health Centre
http://statistics.data.gov.uk/id/local-authority/38,Oxfordshire County Council,GP Services,4933,,02/05/2017,3110230048,"1,755.00",Bury Knowle Health Centre
http://statistics.data.gov.uk/id/local-authority/38,Oxfordshire County Council,CONTRACEPTION,4933,,04/05/2017,3110223807,"2,252.50",Bury Knowle Health Centre
http://statistics.data.gov.uk/id/local-authority/38,Oxfordshire County Council,NHS HEALTHCHECK PROG,4933,,10/05/2017,3110224496,"2,832.00",Bury Knowle Health Centre
http://statistics.data.gov.uk/id/local-authority/38,Oxfordshire County Council,NHS HEALTHCHECK PROG,4933,,10/05/2017,3110224484,"3,945.00",Bury Knowle Health Centre
http://statistics.data.gov.uk/id/local-authority/38,Oxfordshire County Council,LOWER WINDRUSH PROJ,4940,Other Services,26/05/2017,2200357877,"1,020.00",Buryhook Countryside Management
http://statistics.data.gov.uk/id/local-authority/38,Oxfordshire County Council,The Ridgeway,4861,Hired and Contracted Services,30/05/2017,2200358602,"1,750.00",Buryhook Countryside Management
http://statistics.data.gov.uk/id/local-authority/38,Oxfordshire County Council,THAMES PATH,4407,Equipment,09/05/2017,2200348817,"4,800.00",Buryhook Countryside Management
http://statistics.data.gov.uk/id/local-authority/38,Oxfordshire County Council,LEGAL SERVICES,4407,Equipment,30/05/2017,2200358449,625.99,BUSINESS DICTATION LTD
http://statistics.data.gov.uk/id/local-authority/38,Oxfordshire County Council,PLAYGROUP FEES,5537,Payments to Other Establishments,11/05/2017,3110224866,"1,386.00",Busy Bees Day Nursery
http://statistics.data.gov.uk/id/local-authority/38,Oxfordshire County Council,PLAYGROUP FEES,5537,Payments to Other Establishments,11/05/2017,3110224867,"1,386.00",Busy Bees Day Nursery
http://statistics.data.gov.uk/id/local-authority/38,Oxfordshire County Council,SEN DELEGATION,5500,Payments to Other Local Authorities,11/05/2017,2200350764,"12,522.00",Buxton Community School
http://statistics.data.gov.uk/id/local-authority/38,Oxfordshire County Council,Independent Foster,5559,,08/05/2017,2200347989,"4,078.16",BY THE BRIDGE
http://statistics.data.gov.uk/id/local-authority/38,Oxfordshire County Council,Independent Foster,5559,,08/05/2017,2200347997,"4,078.16",BY THE BRIDGE
http://statistics.data.gov.uk/id/local-authority/38,Oxfordshire County Council,Independent Foster,5559,,08/05/2017,2200347961,"4,204.29",BY THE BRIDGE
http://statistics.data.gov.uk/id/local-authority/38,Oxfordshire County Council,Independent Foster,5559,,08/05/2017,2200347964,"4,204.29",BY THE BRIDGE
http://statistics.data.gov.uk/id/local-authority/38,Oxfordshire County Council,Independent Foster,5559,,08/05/2017,2200347979,"4,204.29",BY THE BRIDGE
http://statistics.data.gov.uk/id/local-authority/38,Oxfordshire County Council,Independent Foster,5559,,08/05/2017,2200347985,"4,204.29",BY THE BRIDGE
http://statistics.data.gov.uk/id/local-authority/38,Oxfordshire County Council,Independent Foster,5559,,08/05/2017,2200347999,"4,204.29",BY THE BRIDGE
http://statistics.data.gov.uk/id/local-authority/38,Oxfordshire County Council,Independent Foster,5559,,08/05/2017,2200348013,"4,204.29",BY THE BRIDGE
http://statistics.data.gov.uk/id/local-authority/38,Oxfordshire County Council,Independent Foster,5559,,08/05/2017,2200348018,"4,204.29",BY THE BRIDGE
http://statistics.data.gov.uk/id/local-authority/38,Oxfordshire County Council,Independent Foster,5559,,12/05/2017,2200351705,"4,204.29",BY THE BRIDGE
http://statistics.data.gov.uk/id/local-authority/38,Oxfordshire County Council,Independent Foster,5559,,08/05/2017,2200348007,"4,308.29",BY THE BRIDGE
http://statistics.data.gov.uk/id/local-authority/38,Oxfordshire County Council,UASC UNDER 16,5559,,03/05/2017,2200346132,"4,427.14",BY THE BRIDGE
http://statistics.data.gov.uk/id/local-authority/38,Oxfordshire County Council,Independent Foster,5559,,08/05/2017,2200347968,"4,427.14",BY THE BRIDGE
http://statistics.data.gov.uk/id/local-authority/38,Oxfordshire County Council,Independent Foster,5559,,02/05/2017,2200345324,"4,567.29",BY THE BRIDGE
http://statistics.data.gov.uk/id/local-authority/38,Oxfordshire County Council,AGENCY RESID - DISAB,5559,,04/05/2017,2200347079,"5,507.14",BY THE BRIDGE
http://statistics.data.gov.uk/id/local-authority/38,Oxfordshire County Council,OneTransport Project,4531,Materials,12/05/2017,2200351234,800,C A Traffic Ltd
http://statistics.data.gov.uk/id/local-authority/38,Oxfordshire County Council,WCR IMPROVEMENT,5190,Subscriptions,08/05/2017,2200348433,840,C A Traffic Ltd
http://statistics.data.gov.uk/id/local-authority/38,Oxfordshire County Council,FOSTERING MAIN,5549,B*Fostering Allowance - Regulation 38,03/05/2017,3110221803,795.34,Redacted Personal Data
http://statistics.data.gov.uk/id/local-authority/38,Oxfordshire County Council,FOSTERING MAIN,5549,B*Fostering Allowance - Regulation 38,10/05/2017,3110223637,795.34,Redacted Personal Data
http://statistics.data.gov.uk/id/local-authority/38,Oxfordshire County Council,FOSTERING MAIN,5549,B*Fostering Allowance - Regulation 38,17/05/2017,3110225545,795.34,Redacted Personal Data
http://statistics.data.gov.uk/id/local-authority/38,Oxfordshire County Council,FOSTERING MAIN,5549,B*Fostering Allowance - Regulation 38,24/05/2017,3110229394,795.34,Redacted Personal Data
http://statistics.data.gov.uk/id/local-authority/38,Oxfordshire County Council,FOSTERING MAIN,5549,B*Fostering Allowance - Regulation 38,31/05/2017,3110230438,795.34,Redacted Personal Data
http://statistics.data.gov.uk/id/local-authority/38,Oxfordshire County Council,SEN TRANSPORT,4330,Transport to School Activities,11/05/2017,3110224808,545.6,Redacted Personal Data
http://statistics.data.gov.uk/id/local-authority/38,Oxfordshire County Council,FOSTERING MAIN,5542,B*Payments to carers,03/05/2017,3110221701,708.63,Redacted Personal Data
http://statistics.data.gov.uk/id/local-authority/38,Oxfordshire County Council,FOSTERING MAIN,5542,B*Payments to carers,10/05/2017,3110223591,708.63,Redacted Personal Data
http://statistics.data.gov.uk/id/local-authority/38,Oxfordshire County Council,FOSTERING MAIN,5542,B*Payments to carers,24/05/2017,3110229285,708.63,Redacted Personal Data
http://statistics.data.gov.uk/id/local-authority/38,Oxfordshire County Council,FOSTERING MAIN,5542,B*Payments to carers,31/05/2017,3110230393,708.63,Redacted Personal Data
http://statistics.data.gov.uk/id/local-authority/38,Oxfordshire County Council,LOOKED AFTER CITY 2,5394,Other Expenses,17/05/2017,3110225500,942.63,Redacted Personal Data
http://statistics.data.gov.uk/id/local-authority/38,Oxfordshire County Council,BRIDGES GENERAL,4531,Materials,03/05/2017,2200345978,810.83,C J Clarke (Timber Merchants) Ltd
http://statistics.data.gov.uk/id/local-authority/38,Oxfordshire County Council,BRIDGES GENERAL,4531,Materials,10/05/2017,2200349744,958.32,C J Clarke (Timber Merchants) Ltd
http://statistics.data.gov.uk/id/local-authority/38,Oxfordshire County Council,BRIDGES GENERAL,4531,Materials,05/05/2017,2200347614,973.5,C J Clarke (Timber Merchants) Ltd
http://statistics.data.gov.uk/id/local-authority/38,Oxfordshire County Council,FOSTERING MAIN,5542,B*Payments to carers,03/05/2017,3110221713,931.68,Redacted Personal Data
http://statistics.data.gov.uk/id/local-authority/38,Oxfordshire County Council,FOSTERING MAIN,5542,B*Payments to carers,10/05/2017,3110223597,931.68,Redacted Personal Data
http://statistics.data.gov.uk/id/local-authority/38,Oxfordshire County Council,FOSTERING MAIN,5542,B*Payments to carers,17/05/2017,3110225506,931.68,Redacted Personal Data
http://statistics.data.gov.uk/id/local-authority/38,Oxfordshire County Council,FOSTERING MAIN,5542,B*Payments to carers,31/05/2017,3110230398,931.68,Redacted Personal Data
http://statistics.data.gov.uk/id/local-authority/38,Oxfordshire County Council,FOSTERING MAIN,4940,Other Services,24/05/2017,3110229299,"1,081.68",Redacted Personal Data
http://statistics.data.gov.uk/id/local-authority/38,Oxfordshire County Council,SPECIAL GUARDIANSHIP,5664,B*Holiday Allowance,03/05/2017,3110222377,608.21,Redacted Personal Data
http://statistics.data.gov.uk/id/local-authority/38,Oxfordshire County Council,SPECIAL GUARDIANSHIP,5664,B*Holiday Allowance,10/05/2017,3110223394,608.21,Redacted Personal Data
http://statistics.data.gov.uk/id/local-authority/38,Oxfordshire County Council,SPECIAL GUARDIANSHIP,5664,B*Holiday Allowance,17/05/2017,3110225283,608.21,Redacted Personal Data
http://statistics.data.gov.uk/id/local-authority/38,Oxfordshire County Council,SPECIAL GUARDIANSHIP,5664,B*Holiday Allowance,24/05/2017,3110229290,608.21,Redacted Personal Data
http://statistics.data.gov.uk/id/local-authority/38,Oxfordshire County Council,SPECIAL GUARDIANSHIP,5664,B*Holiday Allowance,31/05/2017,3110230176,608.21,Redacted Personal Data
http://statistics.data.gov.uk/id/local-authority/38,Oxfordshire County Council,Care Packages & Placements- LD - OCC,4314,"Other Trans Contract Costs (CRB, Car Sea",04/05/2017,3110222733,547.45,C S Comley
http://statistics.data.gov.uk/id/local-authority/38,Oxfordshire County Council,POST 16 SEN,4330,Transport to School Activities,04/05/2017,3110222729,689.66,C S Comley
http://statistics.data.gov.uk/id/local-authority/38,Oxfordshire County Council,SEN TRANSPORT,5227,Other Transport Arrangements,04/05/2017,3110222728,828,C S Comley
http://statistics.data.gov.uk/id/local-authority/38,Oxfordshire County Council,POST 16 SEN,4330,Transport to School Activities,04/05/2017,3110222732,"1,095.05",C S Comley
http://statistics.data.gov.uk/id/local-authority/38,Oxfordshire County Council,Care Packages & Placements- LD - OCC,5227,Other Transport Arrangements,04/05/2017,3110222726,"1,380.00",C S Comley
http://statistics.data.gov.uk/id/local-authority/38,Oxfordshire County Council,Care Packages & Placements- LD - OCC,4314,"Other Trans Contract Costs (CRB, Car Sea",04/05/2017,3110222731,"2,156.00",C S Comley
http://statistics.data.gov.uk/id/local-authority/38,Oxfordshire County Council,SEN TRANSPORT,4330,Transport to School Activities,04/05/2017,3110222727,"2,581.75",C S Comley
http://statistics.data.gov.uk/id/local-authority/38,Oxfordshire County Council,FOSTERING MAIN,5663,B*Birthday Allowance,31/05/2017,3110230411,589.62,Redacted Personal Data
http://statistics.data.gov.uk/id/local-authority/38,Oxfordshire County Council,RESPITE,4330,Transport to School Activities,02/05/2017,3110220836,539,C V OSullivan
http://statistics.data.gov.uk/id/local-authority/38,Oxfordshire County Council,POST 16 SEN,5227,Other Transport Arrangements,02/05/2017,3110220835,690,C V OSullivan
http://statistics.data.gov.uk/id/local-authority/38,Oxfordshire County Council,Care Packages & Placements- LD - OCC,4314,"Other Trans Contract Costs (CRB, Car Sea",02/05/2017,3110220833,"1,150.00",C V OSullivan
http://statistics.data.gov.uk/id/local-authority/38,Oxfordshire County Council,SEN TRANSPORT,5227,Other Transport Arrangements,02/05/2017,3110220832,"1,243.38",C V OSullivan
http://statistics.data.gov.uk/id/local-authority/38,Oxfordshire County Council,POST 16 SEN,4330,Transport to School Activities,02/05/2017,3110220834,"1,840.00",C V OSullivan
http://statistics.data.gov.uk/id/local-authority/38,Oxfordshire County Council,SEN TRANSPORT,4330,Transport to School Activities,02/05/2017,3110220830,"3,892.06",C V OSullivan
http://statistics.data.gov.uk/id/local-authority/38,Oxfordshire County Council,POST 16 SEN,4330,Transport to School Activities,11/05/2017,3110224758,540,C&M Management Services Ltd
http://statistics.data.gov.uk/id/local-authority/38,Oxfordshire County Council,Care Packages & Placements- LD - OCC,4314,"Other Trans Contract Costs (CRB, Car Sea",11/05/2017,3110224756,720,C&M Management Services Ltd
http://statistics.data.gov.uk/id/local-authority/38,Oxfordshire County Council,SEN TRANSPORT,5227,Other Transport Arrangements,11/05/2017,3110224795,790,C&M Management Services Ltd
http://statistics.data.gov.uk/id/local-authority/38,Oxfordshire County Council,SEN TRANSPORT,4330,Transport to School Activities,11/05/2017,3110224763,918,C&M Management Services Ltd
http://statistics.data.gov.uk/id/local-authority/38,Oxfordshire County Council,POST 16 SEN,4330,Transport to School Activities,11/05/2017,3110224778,967.48,C&M Management Services Ltd
http://statistics.data.gov.uk/id/local-authority/38,Oxfordshire County Council,SEN TRANSPORT,4330,Transport to School Activities,24/05/2017,3110229705,972.36,C&M Management Services Ltd
http://statistics.data.gov.uk/id/local-authority/38,Oxfordshire County Council,POST 16 SEN,4330,Transport to School Activities,11/05/2017,3110224772,"1,100.00",C&M Management Services Ltd
http://statistics.data.gov.uk/id/local-authority/38,Oxfordshire County Council,SEN TRANSPORT,4330,Transport to School Activities,11/05/2017,3110224788,"1,112.50",C&M Management Services Ltd
http://statistics.data.gov.uk/id/local-authority/38,Oxfordshire County Council,SEN TRANSPORT,4330,Transport to School Activities,11/05/2017,3110224780,"1,120.00",C&M Management Services Ltd
http://statistics.data.gov.uk/id/local-authority/38,Oxfordshire County Council,SEN TRANSPORT,4330,Transport to School Activities,11/05/2017,3110224782,"1,170.00",C&M Management Services Ltd
http://statistics.data.gov.uk/id/local-authority/38,Oxfordshire County Council,SEN TRANSPORT,4330,Transport to School Activities,11/05/2017,3110224790,"1,226.20",C&M Management Services Ltd
http://statistics.data.gov.uk/id/local-authority/38,Oxfordshire County Council,SEN TRANSPORT,4330,Transport to School Activities,11/05/2017,3110224796,"1,231.29",C&M Management Services Ltd
http://statistics.data.gov.uk/id/local-authority/38,Oxfordshire County Council,SEN TRANSPORT,4330,Transport to School Activities,11/05/2017,3110224767,"1,271.25",C&M Management Services Ltd
http://statistics.data.gov.uk/id/local-authority/38,Oxfordshire County Council,SEN TRANSPORT,4330,Transport to School Activities,11/05/2017,3110224792,"1,280.00",C&M Management Services Ltd
http://statistics.data.gov.uk/id/local-authority/38,Oxfordshire County Council,SEN TRANSPORT,4330,Transport to School Activities,24/05/2017,3110229707,"1,327.81",C&M Management Services Ltd
http://statistics.data.gov.uk/id/local-authority/38,Oxfordshire County Council,SEN TRANSPORT,4330,Transport to School Activities,11/05/2017,3110224784,"1,664.00",C&M Management Services Ltd
http://statistics.data.gov.uk/id/local-authority/38,Oxfordshire County Council,SEN TRANSPORT,4330,Transport to School Activities,11/05/2017,3110224794,"2,029.00",C&M Management Services Ltd
http://statistics.data.gov.uk/id/local-authority/38,Oxfordshire County Council,PLACEMENTS-FRELEVANT,5559,,24/05/2017,2200356656,"7,465.50",CALCOT SERVICES FOR CHILDREN
http://statistics.data.gov.uk/id/local-authority/38,Oxfordshire County Council,PLACEMENTS-FRELEVANT,5559,,24/05/2017,2200356654,"7,714.35",CALCOT SERVICES FOR CHILDREN
http://statistics.data.gov.uk/id/local-authority/38,Oxfordshire County Council,PLACEMENTS- RELEVANT,5559,,24/05/2017,2200356659,"9,844.28",CALCOT SERVICES FOR CHILDREN
http://statistics.data.gov.uk/id/local-authority/38,Oxfordshire County Council,PLACEMENTS- RELEVANT,5559,,24/05/2017,2200356658,"10,172.42",CALCOT SERVICES FOR CHILDREN
http://statistics.data.gov.uk/id/local-authority/38,Oxfordshire County Council,Mainstream Res,5558,,12/05/2017,2200351755,"14,142.85",Calcot Services For Children
http://statistics.data.gov.uk/id/local-authority/38,Oxfordshire County Council,Mainstream Res,5558,,12/05/2017,2200351757,"14,142.85",Calcot Services For Children
http://statistics.data.gov.uk/id/local-authority/38,Oxfordshire County Council,Mainstream Res,5558,,12/05/2017,2200351754,"17,022.85",Calcot Services For Children
http://statistics.data.gov.uk/id/local-authority/38,Oxfordshire County Council,PD COMM SUPP DIDCOT,5899,Social Care - Direct Payments,17/05/2017,3110226239,"1,152.00",Redacted Personal Data
http://statistics.data.gov.uk/id/local-authority/38,Oxfordshire County Council,LD CLIENTS NORTH,5686,,11/05/2017,3110224046,"28,956.39",Cambian Care Services Ltd
http://statistics.data.gov.uk/id/local-authority/38,Oxfordshire County Council,OUT OF COUNTY,5537,Payments to Other Establishments,24/05/2017,2200357009,"29,330.32",Cambian Care Services Ltd
http://statistics.data.gov.uk/id/local-authority/38,Oxfordshire County Council,Mainstream Res,5558,,30/05/2017,2200358660,"12,400.00",Cambian Childcare Ltd
http://statistics.data.gov.uk/id/local-authority/38,Oxfordshire County Council,Mainstream Res,5558,,30/05/2017,2200358665,"18,600.00",Cambian Childcare Ltd
http://statistics.data.gov.uk/id/local-authority/38,Oxfordshire County Council,Mainstream Res,5558,,30/05/2017,2200358658,"20,371.34",Cambian Childcare Ltd
http://statistics.data.gov.uk/id/local-authority/38,Oxfordshire County Council,LD CLIENTS SOUTH,5686,,11/05/2017,3110224030,"39,028.91",CAMBIAN LEARNING DISABILITIES LTD
http://statistics.data.gov.uk/id/local-authority/38,Oxfordshire County Council,PLAYGROUP FEES,5537,Payments to Other Establishments,23/05/2017,3110229728,669.9,Camel Pre-School
http://statistics.data.gov.uk/id/local-authority/38,Oxfordshire County Council,LD CLIENTS SOUTH,5899,Social Care - Direct Payments,17/05/2017,3110226334,736,Redacted Personal Data
http://statistics.data.gov.uk/id/local-authority/38,Oxfordshire County Council,FOSTERING MAIN,5569,,03/05/2017,3110221958,641.3,Redacted Personal Data
http://statistics.data.gov.uk/id/local-authority/38,Oxfordshire County Council,FOSTERING MAIN,5569,,10/05/2017,3110223716,641.3,Redacted Personal Data
http://statistics.data.gov.uk/id/local-authority/38,Oxfordshire County Council,FOSTERING MAIN,5569,,17/05/2017,3110225624,641.3,Redacted Personal Data
http://statistics.data.gov.uk/id/local-authority/38,Oxfordshire County Council,FOSTERING MAIN,5569,,24/05/2017,3110229526,641.3,Redacted Personal Data
http://statistics.data.gov.uk/id/local-authority/38,Oxfordshire County Council,FOSTERING MAIN,5569,,31/05/2017,3110230515,641.3,Redacted Personal Data
http://statistics.data.gov.uk/id/local-authority/38,Oxfordshire County Council,LD CLIENTS NORTH,5688,,11/05/2017,3110224441,"3,758.44",Camphill Communities Thornbury
http://statistics.data.gov.uk/id/local-authority/38,Oxfordshire County Council,LAC PUPIL PREMIUM,5537,Payments to Other Establishments,16/05/2017,3110225105,"1,900.00",Campion School
http://statistics.data.gov.uk/id/local-authority/38,Oxfordshire County Council,LAC PUPIL PREMIUM,5537,Payments to Other Establishments,16/05/2017,3110225106,"1,900.00",Campion School
http://statistics.data.gov.uk/id/local-authority/38,Oxfordshire County Council,LEGAL BUDGET,5251,Legal Costs,23/05/2017,2200355769,993.28,Canterbury Psychological Clinic Ltd
http://statistics.data.gov.uk/id/local-authority/38,Oxfordshire County Council,Transformation,4835,Management Consultant Fees,17/05/2017,2200353994,"7,000.00",CAPITA BUSINESS SERVICES LTD
http://statistics.data.gov.uk/id/local-authority/38,Oxfordshire County Council,UASC 16&17,5559,,11/05/2017,2200350978,"1,705.00",Capstone Vision Foster Care Ltd
http://statistics.data.gov.uk/id/local-authority/38,Oxfordshire County Council,PD COMM SUPP DIDCOT,5899,Social Care - Direct Payments,17/05/2017,3110225704,"3,720.00",Redacted Personal Data
http://statistics.data.gov.uk/id/local-authority/38,Oxfordshire County Council,LD CLIENTS NORTH,5899,Social Care - Direct Payments,17/05/2017,3110226064,916,Redacted Personal Data
http://statistics.data.gov.uk/id/local-authority/38,Oxfordshire County Council,ETMS,4861,Hired and Contracted Services,15/05/2017,2200352127,"3,732.00",CARE MONITORING 2000 LTD
http://statistics.data.gov.uk/id/local-authority/38,Oxfordshire County Council,ETMS,4861,Hired and Contracted Services,08/05/2017,2200348147,"15,746.33",CARE MONITORING 2000 LTD
http://statistics.data.gov.uk/id/local-authority/38,Oxfordshire County Council,ContrO ASC Payments Control Account,5689,,03/05/2017,3110221295,"-39,265.00",Care Outlook Ltd
http://statistics.data.gov.uk/id/local-authority/38,Oxfordshire County Council,ContrO ASC Payments Control Account,5689,,03/05/2017,3110221294,"-9,290.00",Care Outlook Ltd
http://statistics.data.gov.uk/id/local-authority/38,Oxfordshire County Council,ContrO ASC Payments Control Account,5689,,31/05/2017,3110230853,"-4,782.00",Care Outlook Ltd
http://statistics.data.gov.uk/id/local-authority/38,Oxfordshire County Council,Care Packages & Placements- Older People,5689,,03/05/2017,3110221285,502.43,Care Outlook Ltd
http://statistics.data.gov.uk/id/local-authority/38,Oxfordshire County Council,Care Packages & Placements- Older People,5689,,31/05/2017,3110230838,526.61,Care Outlook Ltd
http://statistics.data.gov.uk/id/local-authority/38,Oxfordshire County Council,CSB - CITY,5689,,31/05/2017,3110230826,539.61,Care Outlook Ltd
http://statistics.data.gov.uk/id/local-authority/38,Oxfordshire County Council,PD COMM SUPP - CITY,5689,,31/05/2017,3110230852,576.18,Care Outlook Ltd
http://statistics.data.gov.uk/id/local-authority/38,Oxfordshire County Council,CSB - CITY,5689,,31/05/2017,3110230828,644.81,Care Outlook Ltd
http://statistics.data.gov.uk/id/local-authority/38,Oxfordshire County Council,Care Packages & Placements- Older People,5689,,31/05/2017,3110230842,647.22,Care Outlook Ltd
http://statistics.data.gov.uk/id/local-authority/38,Oxfordshire County Council,CSB - CITY,5689,,31/05/2017,3110230836,671.71,Care Outlook Ltd
http://statistics.data.gov.uk/id/local-authority/38,Oxfordshire County Council,Care Packages & Placements- Older People,5689,,31/05/2017,3110230841,740.33,Care Outlook Ltd
http://statistics.data.gov.uk/id/local-authority/38,Oxfordshire County Council,Care Packages & Placements- PD - OCC,5689,,03/05/2017,3110221286,746.07,Care Outlook Ltd
http://statistics.data.gov.uk/id/local-authority/38,Oxfordshire County Council,PD COMM SUPP - CITY,5689,,03/05/2017,3110221291,792.33,Care Outlook Ltd
http://statistics.data.gov.uk/id/local-authority/38,Oxfordshire County Council,Care Packages & Placements- Older People,5689,,03/05/2017,3110221278,805.02,Care Outlook Ltd
http://statistics.data.gov.uk/id/local-authority/38,Oxfordshire County Council,CSB - CITY,5689,,31/05/2017,3110230835,831.02,Care Outlook Ltd
http://statistics.data.gov.uk/id/local-authority/38,Oxfordshire County Council,Care Packages & Placements- PD - OCC,5689,,31/05/2017,3110230847,841.6,Care Outlook Ltd
http://statistics.data.gov.uk/id/local-authority/38,Oxfordshire County Council,CSB - CITY,5689,,03/05/2017,3110221260,867.3,Care Outlook Ltd
http://statistics.data.gov.uk/id/local-authority/38,Oxfordshire County Council,Care Packages & Placements- Older People,5689,,31/05/2017,3110230843,886.34,Care Outlook Ltd
http://statistics.data.gov.uk/id/local-authority/38,Oxfordshire County Council,Care Packages & Placements- Older People,5689,,31/05/2017,3110230837,991.24,Care Outlook Ltd
http://statistics.data.gov.uk/id/local-authority/38,Oxfordshire County Council,CSB - CITY,5689,,31/05/2017,3110230833,"1,060.77",Care Outlook Ltd
http://statistics.data.gov.uk/id/local-authority/38,Oxfordshire County Council,CSB - CITY,5689,,03/05/2017,3110221263,"1,154.19",Care Outlook Ltd
http://statistics.data.gov.uk/id/local-authority/38,Oxfordshire County Council,CSB - CITY,5689,,31/05/2017,3110230834,"1,166.58",Care Outlook Ltd
http://statistics.data.gov.uk/id/local-authority/38,Oxfordshire County Council,CSB - CITY,5689,,03/05/2017,3110221254,"1,166.88",Care Outlook Ltd
http://statistics.data.gov.uk/id/local-authority/38,Oxfordshire County Council,CSB - CITY,5689,,03/05/2017,3110221252,"1,180.18",Care Outlook Ltd
http://statistics.data.gov.uk/id/local-authority/38,Oxfordshire County Council,CSB - CITY,5689,,03/05/2017,3110221253,"1,195.30",Care Outlook Ltd
http://statistics.data.gov.uk/id/local-authority/38,Oxfordshire County Council,CSB - CITY,5689,,03/05/2017,3110221267,"1,198.91",Care Outlook Ltd
http://statistics.data.gov.uk/id/local-authority/38,Oxfordshire County Council,CSB - CITY,5689,,31/05/2017,3110230830,"1,307.45",Care Outlook Ltd
http://statistics.data.gov.uk/id/local-authority/38,Oxfordshire County Council,CSB - CITY,5689,,03/05/2017,3110221256,"1,480.06",Care Outlook Ltd
http://statistics.data.gov.uk/id/local-authority/38,Oxfordshire County Council,PD COMM SUPP - CITY,5689,,03/05/2017,3110221293,"1,533.88",Care Outlook Ltd
http://statistics.data.gov.uk/id/local-authority/38,Oxfordshire County Council,CSB - CITY,5689,,03/05/2017,3110221257,"1,604.30",Care Outlook Ltd
http://statistics.data.gov.uk/id/local-authority/38,Oxfordshire County Council,CSB - CITY,5689,,31/05/2017,3110230832,"1,616.40",Care Outlook Ltd
http://statistics.data.gov.uk/id/local-authority/38,Oxfordshire County Council,Care Packages & Placements- Older People,5689,,03/05/2017,3110221276,"1,648.45",Care Outlook Ltd
http://statistics.data.gov.uk/id/local-authority/38,Oxfordshire County Council,CSB - CITY,5689,,03/05/2017,3110221261,"1,719.50",Care Outlook Ltd
http://statistics.data.gov.uk/id/local-authority/38,Oxfordshire County Council,CSB - CITY,5689,,03/05/2017,3110221262,"1,912.96",Care Outlook Ltd
http://statistics.data.gov.uk/id/local-authority/38,Oxfordshire County Council,CSB - CITY,5689,,03/05/2017,3110221275,"1,964.64",Care Outlook Ltd
http://statistics.data.gov.uk/id/local-authority/38,Oxfordshire County Council,Care Packages & Placements- Older People,5689,,03/05/2017,3110221279,"2,002.44",Care Outlook Ltd
http://statistics.data.gov.uk/id/local-authority/38,Oxfordshire County Council,LAUNDRY SERVICE,4861,Hired and Contracted Services,24/05/2017,2200356413,"2,003.82",Care Outlook Ltd
http://statistics.data.gov.uk/id/local-authority/38,Oxfordshire County Council,Care Packages & Placements- Older People,5689,,31/05/2017,3110230844,"2,097.96",Care Outlook Ltd
http://statistics.data.gov.uk/id/local-authority/38,Oxfordshire County Council,LAUNDRY SERVICE,4861,Hired and Contracted Services,24/05/2017,2200356414,"2,447.40",Care Outlook Ltd
http://statistics.data.gov.uk/id/local-authority/38,Oxfordshire County Council,LAUNDRY SERVICE,4861,Hired and Contracted Services,24/05/2017,2200356415,"2,447.40",Care Outlook Ltd
http://statistics.data.gov.uk/id/local-authority/38,Oxfordshire County Council,CSB - CITY,5689,,03/05/2017,3110221273,"2,490.35",Care Outlook Ltd
http://statistics.data.gov.uk/id/local-authority/38,Oxfordshire County Council,Care Packages & Placements- Older People,5689,,03/05/2017,3110221282,"2,499.12",Care Outlook Ltd
http://statistics.data.gov.uk/id/local-authority/38,Oxfordshire County Council,Care Packages & Placements- PD - OCC,5689,,03/05/2017,3110221287,"2,539.63",Care Outlook Ltd
http://statistics.data.gov.uk/id/local-authority/38,Oxfordshire County Council,CSB - CITY,5689,,03/05/2017,3110221274,"2,979.17",Care Outlook Ltd
http://statistics.data.gov.uk/id/local-authority/38,Oxfordshire County Council,Care Packages & Placements- Older People,5689,,03/05/2017,3110221283,"3,198.03",Care Outlook Ltd
http://statistics.data.gov.uk/id/local-authority/38,Oxfordshire County Council,CSB - CITY,5689,,03/05/2017,3110221271,"3,257.29",Care Outlook Ltd
http://statistics.data.gov.uk/id/local-authority/38,Oxfordshire County Council,CSB - CITY,5689,,03/05/2017,3110221272,"3,396.94",Care Outlook Ltd
http://statistics.data.gov.uk/id/local-authority/38,Oxfordshire County Council,CSB - CITY,5689,,03/05/2017,3110221265,"3,961.63",Care Outlook Ltd
http://statistics.data.gov.uk/id/local-authority/38,Oxfordshire County Council,LAUNDRY SERVICE,4861,Hired and Contracted Services,15/05/2017,2200351930,"4,021.55",Care Outlook Ltd
http://statistics.data.gov.uk/id/local-authority/38,Oxfordshire County Council,CSB - CITY,5689,,03/05/2017,3110221270,"4,697.44",Care Outlook Ltd
http://statistics.data.gov.uk/id/local-authority/38,Oxfordshire County Council,LD CLIENTS NORTH,5686,,11/05/2017,3110224259,"9,571.25",Care UK
http://statistics.data.gov.uk/id/local-authority/38,Oxfordshire County Council,LD CLIENTS NORTH,5686,,11/05/2017,3110224115,"12,742.02",Care UK Learning Disabilities
http://statistics.data.gov.uk/id/local-authority/38,Oxfordshire County Council,CMPB WITNEY,5689,,18/05/2017,3110227600,617.7,Care with Care Ltd
http://statistics.data.gov.uk/id/local-authority/38,Oxfordshire County Council,Care Packages & Placements- Older People,5693,,18/05/2017,3110227603,686.93,Care with Care Ltd
http://statistics.data.gov.uk/id/local-authority/38,Oxfordshire County Council,CMPB WITNEY,5689,,18/05/2017,3110227604,852,Care with Care Ltd
http://statistics.data.gov.uk/id/local-authority/38,Oxfordshire County Council,CMPB WITNEY,5689,,18/05/2017,3110227601,"1,033.05",Care with Care Ltd
http://statistics.data.gov.uk/id/local-authority/38,Oxfordshire County Council,Care Packages & Placements- Older People,5693,,18/05/2017,3110227598,"1,054.35",Care with Care Ltd
http://statistics.data.gov.uk/id/local-authority/38,Oxfordshire County Council,Care Packages & Placements- Older People,5693,,18/05/2017,3110227599,"1,278.00",Care with Care Ltd
http://statistics.data.gov.uk/id/local-authority/38,Oxfordshire County Council,Mental Health Clients,5691,,16/05/2017,3110225174,503.54,Care With Dignity Partnerships
http://statistics.data.gov.uk/id/local-authority/38,Oxfordshire County Council,Mental Health Clients,5691,,16/05/2017,3110225173,752,Care With Dignity Partnerships
http://statistics.data.gov.uk/id/local-authority/38,Oxfordshire County Council,Care Packages & Placements- PD - OCC,5691,,02/05/2017,2200344837,"3,216.00",Caremark (West Berkshire & Reading)
http://statistics.data.gov.uk/id/local-authority/38,Oxfordshire County Council,Care Packages & Placements- PD - OCC,5691,,25/05/2017,2200357265,"3,590.00",Caremark (West Berkshire & Reading)
http://statistics.data.gov.uk/id/local-authority/38,Oxfordshire County Council,Care Packages & Placements- Older People,5689,,31/05/2017,3110230733,504.12,Caremark (West Oxfordshire & Cherwe
http://statistics.data.gov.uk/id/local-authority/38,Oxfordshire County Council,Care Packages & Placements- PD - OCC,5689,,03/05/2017,3110221224,510.1,Caremark (West Oxfordshire & Cherwe
http://statistics.data.gov.uk/id/local-authority/38,Oxfordshire County Council,Care Packages & Placements- PD - OCC,5689,,31/05/2017,3110230798,514.58,Caremark (West Oxfordshire & Cherwe
http://statistics.data.gov.uk/id/local-authority/38,Oxfordshire County Council,Care Packages & Placements- Older People,5689,,03/05/2017,3110221179,521.68,Caremark (West Oxfordshire & Cherwe
http://statistics.data.gov.uk/id/local-authority/38,Oxfordshire County Council,Care Packages & Placements- Older People,5689,,03/05/2017,3110221217,521.68,Caremark (West Oxfordshire & Cherwe
http://statistics.data.gov.uk/id/local-authority/38,Oxfordshire County Council,Care Packages & Placements- Older People,5689,,31/05/2017,3110230743,522.06,Caremark (West Oxfordshire & Cherwe
http://statistics.data.gov.uk/id/local-authority/38,Oxfordshire County Council,Care Packages & Placements- Older People,5689,,03/05/2017,3110221164,524.91,Caremark (West Oxfordshire & Cherwe
http://statistics.data.gov.uk/id/local-authority/38,Oxfordshire County Council,Care Packages & Placements- Older People,5689,,03/05/2017,3110221171,540,Caremark (West Oxfordshire & Cherwe
http://statistics.data.gov.uk/id/local-authority/38,Oxfordshire County Council,Care Packages & Placements- Older People,5689,,31/05/2017,3110230791,542.24,Caremark (West Oxfordshire & Cherwe
http://statistics.data.gov.uk/id/local-authority/38,Oxfordshire County Council,Care Packages & Placements- Older People,5689,,31/05/2017,3110230752,547.12,Caremark (West Oxfordshire & Cherwe
http://statistics.data.gov.uk/id/local-authority/38,Oxfordshire County Council,Care Packages & Placements- Older People,5689,,03/05/2017,3110221163,547.85,Caremark (West Oxfordshire & Cherwe
http://statistics.data.gov.uk/id/local-authority/38,Oxfordshire County Council,Care Packages & Placements- Older People,5689,,31/05/2017,3110230775,561.81,Caremark (West Oxfordshire & Cherwe
http://statistics.data.gov.uk/id/local-authority/38,Oxfordshire County Council,Care Packages & Placements- PD - OCC,5689,,31/05/2017,3110230801,561.81,Caremark (West Oxfordshire & Cherwe
http://statistics.data.gov.uk/id/local-authority/38,Oxfordshire County Council,Care Packages & Placements- Older People,5689,,03/05/2017,3110221183,568.61,Caremark (West Oxfordshire & Cherwe
http://statistics.data.gov.uk/id/local-authority/38,Oxfordshire County Council,Care Packages & Placements- Older People,5689,,31/05/2017,3110230788,574.71,Caremark (West Oxfordshire & Cherwe
http://statistics.data.gov.uk/id/local-authority/38,Oxfordshire County Council,Care Packages & Placements- Older People,5689,,03/05/2017,3110221214,576.51,Caremark (West Oxfordshire & Cherwe
http://statistics.data.gov.uk/id/local-authority/38,Oxfordshire County Council,Care Packages & Placements- Older People,5689,,03/05/2017,3110221175,591.2,Caremark (West Oxfordshire & Cherwe
http://statistics.data.gov.uk/id/local-authority/38,Oxfordshire County Council,Care Packages & Placements- Older People,5689,,31/05/2017,3110230783,592.31,Caremark (West Oxfordshire & Cherwe
http://statistics.data.gov.uk/id/local-authority/38,Oxfordshire County Council,Care Packages & Placements- Older People,5689,,31/05/2017,3110230792,592.99,Caremark (West Oxfordshire & Cherwe
http://statistics.data.gov.uk/id/local-authority/38,Oxfordshire County Council,CMPB WITNEY,5689,,31/05/2017,3110230731,593.44,Caremark (West Oxfordshire & Cherwe
http://statistics.data.gov.uk/id/local-authority/38,Oxfordshire County Council,Care Packages & Placements- Older People,5689,,31/05/2017,3110230757,594.42,Caremark (West Oxfordshire & Cherwe
http://statistics.data.gov.uk/id/local-authority/38,Oxfordshire County Council,Care Packages & Placements- Older People,5689,,31/05/2017,3110230737,595.3,Caremark (West Oxfordshire & Cherwe
http://statistics.data.gov.uk/id/local-authority/38,Oxfordshire County Council,CMPB WITNEY,5689,,03/05/2017,3110221157,600.16,Caremark (West Oxfordshire & Cherwe
http://statistics.data.gov.uk/id/local-authority/38,Oxfordshire County Council,Care Packages & Placements- Older People,5689,,31/05/2017,3110230748,601.94,Caremark (West Oxfordshire & Cherwe
http://statistics.data.gov.uk/id/local-authority/38,Oxfordshire County Council,CMPB WITNEY,5689,,31/05/2017,3110230730,602.03,Caremark (West Oxfordshire & Cherwe
http://statistics.data.gov.uk/id/local-authority/38,Oxfordshire County Council,Care Packages & Placements- Older People,5689,,03/05/2017,3110221182,607.26,Caremark (West Oxfordshire & Cherwe
http://statistics.data.gov.uk/id/local-authority/38,Oxfordshire County Council,CMPB WITNEY,5689,,03/05/2017,3110221158,609.51,Caremark (West Oxfordshire & Cherwe
http://statistics.data.gov.uk/id/local-authority/38,Oxfordshire County Council,Care Packages & Placements- Older People,5689,,03/05/2017,3110221218,609.83,Caremark (West Oxfordshire & Cherwe
http://statistics.data.gov.uk/id/local-authority/38,Oxfordshire County Council,CMPB WITNEY,5689,,31/05/2017,3110230723,609.88,Caremark (West Oxfordshire & Cherwe
http://statistics.data.gov.uk/id/local-authority/38,Oxfordshire County Council,Care Packages & Placements- Older People,5689,,31/05/2017,3110230756,620.72,Caremark (West Oxfordshire & Cherwe
http://statistics.data.gov.uk/id/local-authority/38,Oxfordshire County Council,CMPB WITNEY,5689,,03/05/2017,3110221150,621.83,Caremark (West Oxfordshire & Cherwe
http://statistics.data.gov.uk/id/local-authority/38,Oxfordshire County Council,PD COMM SUPP WITNEY,5689,,31/05/2017,3110230802,623.33,Caremark (West Oxfordshire & Cherwe
http://statistics.data.gov.uk/id/local-authority/38,Oxfordshire County Council,PD COMM SUPP WITNEY,5689,,03/05/2017,3110221228,625.57,Caremark (West Oxfordshire & Cherwe
http://statistics.data.gov.uk/id/local-authority/38,Oxfordshire County Council,Care Packages & Placements- PD - OCC,5689,,03/05/2017,3110221227,627.02,Caremark (West Oxfordshire & Cherwe
http://statistics.data.gov.uk/id/local-authority/38,Oxfordshire County Council,CMPB WITNEY,5689,,03/05/2017,3110221147,656.59,Caremark (West Oxfordshire & Cherwe
http://statistics.data.gov.uk/id/local-authority/38,Oxfordshire County Council,CMPB WITNEY,5689,,31/05/2017,3110230720,656.96,Caremark (West Oxfordshire & Cherwe
http://statistics.data.gov.uk/id/local-authority/38,Oxfordshire County Council,Care Packages & Placements- Older People,5689,,03/05/2017,3110221209,670.42,Caremark (West Oxfordshire & Cherwe
http://statistics.data.gov.uk/id/local-authority/38,Oxfordshire County Council,Care Packages & Placements- Older People,5689,,03/05/2017,3110221190,699.4,Caremark (West Oxfordshire & Cherwe
http://statistics.data.gov.uk/id/local-authority/38,Oxfordshire County Council,Care Packages & Placements- Older People,5689,,31/05/2017,3110230764,717.67,Caremark (West Oxfordshire & Cherwe
http://statistics.data.gov.uk/id/local-authority/38,Oxfordshire County Council,Care Packages & Placements- Older People,5689,,03/05/2017,3110221201,724.12,Caremark (West Oxfordshire & Cherwe
http://statistics.data.gov.uk/id/local-authority/38,Oxfordshire County Council,OPPB CONTCARE DEL HE,5695,,03/05/2017,3110221231,737.38,Caremark (West Oxfordshire & Cherwe
http://statistics.data.gov.uk/id/local-authority/38,Oxfordshire County Council,Care Packages & Placements- Older People,5689,,31/05/2017,3110230774,750.28,Caremark (West Oxfordshire & Cherwe
http://statistics.data.gov.uk/id/local-authority/38,Oxfordshire County Council,OPPB CONTCARE DEL HE,5695,,31/05/2017,3110230804,773.21,Caremark (West Oxfordshire & Cherwe
http://statistics.data.gov.uk/id/local-authority/38,Oxfordshire County Council,CMPB WITNEY,5689,,03/05/2017,3110221151,794.11,Caremark (West Oxfordshire & Cherwe
http://statistics.data.gov.uk/id/local-authority/38,Oxfordshire County Council,CMPB WITNEY,5689,,31/05/2017,3110230724,805.7,Caremark (West Oxfordshire & Cherwe
http://statistics.data.gov.uk/id/local-authority/38,Oxfordshire County Council,CMPB WITNEY,5689,,31/05/2017,3110230718,828.05,Caremark (West Oxfordshire & Cherwe
http://statistics.data.gov.uk/id/local-authority/38,Oxfordshire County Council,Care Packages & Placements- Older People,5689,,03/05/2017,3110221172,865.65,Caremark (West Oxfordshire & Cherwe
http://statistics.data.gov.uk/id/local-authority/38,Oxfordshire County Council,Care Packages & Placements- Older People,5689,,03/05/2017,3110221177,879.99,Caremark (West Oxfordshire & Cherwe
http://statistics.data.gov.uk/id/local-authority/38,Oxfordshire County Council,Care Packages & Placements- Older People,5689,,31/05/2017,3110230750,886.43,Caremark (West Oxfordshire & Cherwe
http://statistics.data.gov.uk/id/local-authority/38,Oxfordshire County Council,Care Packages & Placements- Older People,5689,,31/05/2017,3110230744,889.66,Caremark (West Oxfordshire & Cherwe
http://statistics.data.gov.uk/id/local-authority/38,Oxfordshire County Council,Care Packages & Placements- Older People,5689,,31/05/2017,3110230773,901.12,Caremark (West Oxfordshire & Cherwe
http://statistics.data.gov.uk/id/local-authority/38,Oxfordshire County Council,Care Packages & Placements- Older People,5689,,03/05/2017,3110221193,904.71,Caremark (West Oxfordshire & Cherwe
http://statistics.data.gov.uk/id/local-authority/38,Oxfordshire County Council,CMPB WITNEY,5689,,03/05/2017,3110221152,905.85,Caremark (West Oxfordshire & Cherwe
http://statistics.data.gov.uk/id/local-authority/38,Oxfordshire County Council,Care Packages & Placements- Older People,5689,,31/05/2017,3110230779,909.37,Caremark (West Oxfordshire & Cherwe
http://statistics.data.gov.uk/id/local-authority/38,Oxfordshire County Council,CMPB WITNEY,5689,,31/05/2017,3110230727,912.58,Caremark (West Oxfordshire & Cherwe
http://statistics.data.gov.uk/id/local-authority/38,Oxfordshire County Council,Care Packages & Placements- Older People,5689,,03/05/2017,3110221200,915.1,Caremark (West Oxfordshire & Cherwe
http://statistics.data.gov.uk/id/local-authority/38,Oxfordshire County Council,Care Packages & Placements- Older People,5689,,31/05/2017,3110230767,919.04,Caremark (West Oxfordshire & Cherwe
http://statistics.data.gov.uk/id/local-authority/38,Oxfordshire County Council,CMPB WITNEY,5689,,03/05/2017,3110221154,924.53,Caremark (West Oxfordshire & Cherwe
http://statistics.data.gov.uk/id/local-authority/38,Oxfordshire County Council,Care Packages & Placements- PD - OCC,5689,,03/05/2017,3110221223,963.46,Caremark (West Oxfordshire & Cherwe
http://statistics.data.gov.uk/id/local-authority/38,Oxfordshire County Council,Care Packages & Placements- PD - OCC,5689,,31/05/2017,3110230797,963.47,Caremark (West Oxfordshire & Cherwe
http://statistics.data.gov.uk/id/local-authority/38,Oxfordshire County Council,Care Packages & Placements- Older People,5689,,03/05/2017,3110221215,978.35,Caremark (West Oxfordshire & Cherwe
http://statistics.data.gov.uk/id/local-authority/38,Oxfordshire County Council,CMPB WITNEY,5689,,31/05/2017,3110230725,989.93,Caremark (West Oxfordshire & Cherwe
http://statistics.data.gov.uk/id/local-authority/38,Oxfordshire County Council,Care Packages & Placements- Older People,5689,,31/05/2017,3110230789,999.65,Caremark (West Oxfordshire & Cherwe
http://statistics.data.gov.uk/id/local-authority/38,Oxfordshire County Council,Care Packages & Placements- Older People,5689,,31/05/2017,3110230759,"1,021.51",Caremark (West Oxfordshire & Cherwe
http://statistics.data.gov.uk/id/local-authority/38,Oxfordshire County Council,Care Packages & Placements- Older People,5689,,31/05/2017,3110230762,"1,028.42",Caremark (West Oxfordshire & Cherwe
http://statistics.data.gov.uk/id/local-authority/38,Oxfordshire County Council,Care Packages & Placements- Older People,5689,,03/05/2017,3110221196,"1,029.04",Caremark (West Oxfordshire & Cherwe
http://statistics.data.gov.uk/id/local-authority/38,Oxfordshire County Council,Care Packages & Placements- Older People,5689,,03/05/2017,3110221188,"1,043.38",Caremark (West Oxfordshire & Cherwe
http://statistics.data.gov.uk/id/local-authority/38,Oxfordshire County Council,Care Packages & Placements- Older People,5689,,31/05/2017,3110230769,"1,054.48",Caremark (West Oxfordshire & Cherwe
http://statistics.data.gov.uk/id/local-authority/38,Oxfordshire County Council,Care Packages & Placements- Older People,5689,,31/05/2017,3110230751,"1,058.42",Caremark (West Oxfordshire & Cherwe
http://statistics.data.gov.uk/id/local-authority/38,Oxfordshire County Council,Care Packages & Placements- Older People,5689,,03/05/2017,3110221185,"1,064.87",Caremark (West Oxfordshire & Cherwe
http://statistics.data.gov.uk/id/local-authority/38,Oxfordshire County Council,Care Packages & Placements- Older People,5689,,03/05/2017,3110221210,"1,068.09",Caremark (West Oxfordshire & Cherwe
http://statistics.data.gov.uk/id/local-authority/38,Oxfordshire County Council,Care Packages & Placements- Older People,5689,,31/05/2017,3110230784,"1,079.20",Caremark (West Oxfordshire & Cherwe
http://statistics.data.gov.uk/id/local-authority/38,Oxfordshire County Council,CMPB WITNEY,5689,,03/05/2017,3110221153,"1,079.24",Caremark (West Oxfordshire & Cherwe
http://statistics.data.gov.uk/id/local-authority/38,Oxfordshire County Council,Care Packages & Placements- Older People,5689,,03/05/2017,3110221220,"1,102.78",Caremark (West Oxfordshire & Cherwe
http://statistics.data.gov.uk/id/local-authority/38,Oxfordshire County Council,Care Packages & Placements- Older People,5689,,03/05/2017,3110221178,"1,116.10",Caremark (West Oxfordshire & Cherwe
http://statistics.data.gov.uk/id/local-authority/38,Oxfordshire County Council,Care Packages & Placements- Older People,5689,,03/05/2017,3110221192,"1,161.25",Caremark (West Oxfordshire & Cherwe
http://statistics.data.gov.uk/id/local-authority/38,Oxfordshire County Council,CMPB WITNEY,5689,,31/05/2017,3110230726,"1,168.19",Caremark (West Oxfordshire & Cherwe
http://statistics.data.gov.uk/id/local-authority/38,Oxfordshire County Council,Care Packages & Placements- Older People,5689,,31/05/2017,3110230766,"1,172.00",Caremark (West Oxfordshire & Cherwe
http://statistics.data.gov.uk/id/local-authority/38,Oxfordshire County Council,Care Packages & Placements- Older People,5689,,03/05/2017,3110221173,"1,201.38",Caremark (West Oxfordshire & Cherwe
http://statistics.data.gov.uk/id/local-authority/38,Oxfordshire County Council,Care Packages & Placements- Older People,5689,,31/05/2017,3110230746,"1,245.45",Caremark (West Oxfordshire & Cherwe
http://statistics.data.gov.uk/id/local-authority/38,Oxfordshire County Council,Care Packages & Placements- Older People,5689,,03/05/2017,3110221189,"1,276.26",Caremark (West Oxfordshire & Cherwe
http://statistics.data.gov.uk/id/local-authority/38,Oxfordshire County Council,Care Packages & Placements- PD - OCC,5689,,31/05/2017,3110230796,"1,309.94",Caremark (West Oxfordshire & Cherwe
http://statistics.data.gov.uk/id/local-authority/38,Oxfordshire County Council,CMPB WITNEY,5689,,03/05/2017,3110221145,"1,313.79",Caremark (West Oxfordshire & Cherwe
http://statistics.data.gov.uk/id/local-authority/38,Oxfordshire County Council,Care Packages & Placements- Older People,5689,,03/05/2017,3110221199,"1,317.83",Caremark (West Oxfordshire & Cherwe
http://statistics.data.gov.uk/id/local-authority/38,Oxfordshire County Council,Care Packages & Placements- Older People,5689,,31/05/2017,3110230763,"1,335.38",Caremark (West Oxfordshire & Cherwe
http://statistics.data.gov.uk/id/local-authority/38,Oxfordshire County Council,Care Packages & Placements- Older People,5689,,31/05/2017,3110230772,"1,337.53",Caremark (West Oxfordshire & Cherwe
http://statistics.data.gov.uk/id/local-authority/38,Oxfordshire County Council,CMPB WITNEY,5689,,31/05/2017,3110230732,"1,360.64",Caremark (West Oxfordshire & Cherwe
http://statistics.data.gov.uk/id/local-authority/38,Oxfordshire County Council,Care Packages & Placements- Older People,5689,,03/05/2017,3110221202,"1,365.48",Caremark (West Oxfordshire & Cherwe
http://statistics.data.gov.uk/id/local-authority/38,Oxfordshire County Council,Care Packages & Placements- PD - OCC,5689,,03/05/2017,3110221222,"1,366.20",Caremark (West Oxfordshire & Cherwe
http://statistics.data.gov.uk/id/local-authority/38,Oxfordshire County Council,Care Packages & Placements- Older People,5689,,03/05/2017,3110221174,"1,398.80",Caremark (West Oxfordshire & Cherwe
http://statistics.data.gov.uk/id/local-authority/38,Oxfordshire County Council,CMPB WITNEY,5689,,03/05/2017,3110221159,"1,408.48",Caremark (West Oxfordshire & Cherwe
http://statistics.data.gov.uk/id/local-authority/38,Oxfordshire County Council,Care Packages & Placements- Older People,5689,,31/05/2017,3110230760,"1,425.29",Caremark (West Oxfordshire & Cherwe
http://statistics.data.gov.uk/id/local-authority/38,Oxfordshire County Council,CMPB WITNEY,5689,,03/05/2017,3110221148,"1,446.97",Caremark (West Oxfordshire & Cherwe
http://statistics.data.gov.uk/id/local-authority/38,Oxfordshire County Council,Care Packages & Placements- Older People,5689,,31/05/2017,3110230747,"1,451.47",Caremark (West Oxfordshire & Cherwe
http://statistics.data.gov.uk/id/local-authority/38,Oxfordshire County Council,Care Packages & Placements- Older People,5689,,03/05/2017,3110221206,"1,466.52",Caremark (West Oxfordshire & Cherwe
http://statistics.data.gov.uk/id/local-authority/38,Oxfordshire County Council,Care Packages & Placements- Older People,5689,,31/05/2017,3110230738,"1,467.24",Caremark (West Oxfordshire & Cherwe
http://statistics.data.gov.uk/id/local-authority/38,Oxfordshire County Council,Care Packages & Placements- Older People,5689,,03/05/2017,3110221162,"1,479.42",Caremark (West Oxfordshire & Cherwe
http://statistics.data.gov.uk/id/local-authority/38,Oxfordshire County Council,Care Packages & Placements- Older People,5689,,03/05/2017,3110221191,"1,488.38",Caremark (West Oxfordshire & Cherwe
http://statistics.data.gov.uk/id/local-authority/38,Oxfordshire County Council,CMPB WITNEY,5689,,31/05/2017,3110230721,"1,498.54",Caremark (West Oxfordshire & Cherwe
http://statistics.data.gov.uk/id/local-authority/38,Oxfordshire County Council,Care Packages & Placements- Older People,5689,,03/05/2017,3110221186,"1,508.63",Caremark (West Oxfordshire & Cherwe
http://statistics.data.gov.uk/id/local-authority/38,Oxfordshire County Council,Care Packages & Placements- Older People,5689,,31/05/2017,3110230770,"1,518.72",Caremark (West Oxfordshire & Cherwe
http://statistics.data.gov.uk/id/local-authority/38,Oxfordshire County Council,Care Packages & Placements- Older People,5689,,03/05/2017,3110221165,"1,529.18",Caremark (West Oxfordshire & Cherwe
http://statistics.data.gov.uk/id/local-authority/38,Oxfordshire County Council,Care Packages & Placements- Older People,5689,,03/05/2017,3110221197,"1,534.04",Caremark (West Oxfordshire & Cherwe
http://statistics.data.gov.uk/id/local-authority/38,Oxfordshire County Council,Care Packages & Placements- Older People,5689,,31/05/2017,3110230739,"1,547.12",Caremark (West Oxfordshire & Cherwe
http://statistics.data.gov.uk/id/local-authority/38,Oxfordshire County Council,Care Packages & Placements- Older People,5689,,31/05/2017,3110230736,"1,550.36",Caremark (West Oxfordshire & Cherwe
http://statistics.data.gov.uk/id/local-authority/38,Oxfordshire County Council,Care Packages & Placements- Older People,5689,,31/05/2017,3110230765,"1,559.32",Caremark (West Oxfordshire & Cherwe
http://statistics.data.gov.uk/id/local-authority/38,Oxfordshire County Council,Care Packages & Placements- Older People,5689,,03/05/2017,3110221203,"1,665.02",Caremark (West Oxfordshire & Cherwe
http://statistics.data.gov.uk/id/local-authority/38,Oxfordshire County Council,Care Packages & Placements- Older People,5689,,31/05/2017,3110230776,"1,681.14",Caremark (West Oxfordshire & Cherwe
http://statistics.data.gov.uk/id/local-authority/38,Oxfordshire County Council,CMPB WITNEY,5689,,31/05/2017,3110230722,"1,900.26",Caremark (West Oxfordshire & Cherwe
http://statistics.data.gov.uk/id/local-authority/38,Oxfordshire County Council,CMPB WITNEY,5689,,03/05/2017,3110221149,"1,901.39",Caremark (West Oxfordshire & Cherwe
http://statistics.data.gov.uk/id/local-authority/38,Oxfordshire County Council,Care Packages & Placements- Older People,5689,,03/05/2017,3110221219,"2,244.39",Caremark (West Oxfordshire & Cherwe
http://statistics.data.gov.uk/id/local-authority/38,Oxfordshire County Council,Care Packages & Placements- Older People,5689,,31/05/2017,3110230793,"2,249.05",Caremark (West Oxfordshire & Cherwe
http://statistics.data.gov.uk/id/local-authority/38,Oxfordshire County Council,Care Packages & Placements- Older People,5689,,31/05/2017,3110230786,"2,357.67",Caremark (West Oxfordshire & Cherwe
http://statistics.data.gov.uk/id/local-authority/38,Oxfordshire County Council,Care Packages & Placements- Older People,5689,,03/05/2017,3110221212,"2,375.61",Caremark (West Oxfordshire & Cherwe
http://statistics.data.gov.uk/id/local-authority/38,Oxfordshire County Council,Care Packages & Placements- Older People,5689,,03/05/2017,3110221170,"2,592.65",Caremark (West Oxfordshire & Cherwe
http://statistics.data.gov.uk/id/local-authority/38,Oxfordshire County Council,Care Packages & Placements- Older People,5689,,31/05/2017,3110230742,"2,622.76",Caremark (West Oxfordshire & Cherwe
http://statistics.data.gov.uk/id/local-authority/38,Oxfordshire County Council,Care Packages & Placements- PD - OCC,5689,,31/05/2017,3110230799,"2,632.43",Caremark (West Oxfordshire & Cherwe
http://statistics.data.gov.uk/id/local-authority/38,Oxfordshire County Council,Care Packages & Placements- PD - OCC,5689,,03/05/2017,3110221225,"2,679.01",Caremark (West Oxfordshire & Cherwe
